Workbook

Sheet TRM Spreadsheet
A1: Evergy MEEIA 3 Technical Resource Manual - 2024-01-01 Update
A2: Measures updated with final Cycle 3 PY3 EM&V results | AO2: Link to CDD | AP2: Link to HDD
A3: New Measures
A4: Measure Description | H4: Gross Measure Values | AA4: Efficiency Values | AI4: Algorithms | AM4: Start/End Dates | AO4: Quantities
A5: Program | B5: Measure Name | C5: Primary Key | D5: Segment | E5: End Use | F5: Notes | G5: Unit Definition | H5: Incremental Measure Cost ($/Unit) | I5: Incremental Measure Cost Source | J5: Incremental Measure Cost Source Page Number | K5: Electric Energy Savings (Annual kWh/unit) | L5: Electric Energy Savings (Annual kWh/unit) Source | M5: Electric Energy Savings (Annual kWh/unit) Source Page Number | N5: Nameplate Demand Savings (kW/unit) | O5: Peak Coincidence Factor | P5: Peak Coincident Factor Source | Q5: Peak Coincident Factor Source Page Number | R5: Coincident Peak Demand Savings (kW/unit) | S5: Coincident Peak Demand Savings (kW/unit) Source | T5: Coincident Peak Demand Savings (kW/unit) Source Page Number | U5: Annual Operating Hours | V5: Annual Operating Hours Source | W5: Annual Operating Hours Source Page Number | X5: Measure Life (Years) | Y5: Measure Life (Years) Source | Z5: Measure Life (Years) Source Page Number | AA5: Measure Definition | AB5: Measure Efficiency Value | AC5: Measure Efficiency Value Source | AD5: Measure Efficiency Value Source Page Number | AE5: Baseline Definition | AF5: Baseline Efficiency Value | AG5: Baseline Efficiency Value Source | AH5: Baseline Efficiency Value Source Page Number | AI5: Electric Energy Savings Algorithm | AJ5: Electric Demand Savings Algorithm | AK5: Savings Algorithms Source | AL5: Savings Algorithms Source Page Number | AM5: Effective Start Date | AN5: Effective End Date | AO5: Cooling Degree Days (CDD) | AP5: Heating Degree Days (HDD) | AQ5: Degree Days Source | AR5: Degree Days Source Page Number | AS5: Quantity 1 | AT5: Quantity 1 Description | AU5: Quantity 1 Source | AV5: Quantity 1 Source Page Number | AW5: Quantity 2 | AX5: Quantity 2 Description | AY5: Quantity 2 Source | AZ5: Quantity 2 Source Page Number | BA5: Quantity 3 | BB5: Quantity 3 Description | BC5: Quantity 3 Source | BD5: Quantity 3 Source Page Number | BE5: Quantity 4 | BF5: Quantity 4 Description | BG5: Quantity 4 Source | BH5: Quantity 4 Source Page Number | BI5: Quantity 5 | BJ5: Quantity 5 Description | BK5: Quantity 5 Source | BL5: Quantity 5 Source Page Number | BM5: Quantity 6 | BN5: Quantity 6 Description | BO5: Quantity 6 Source | BP5: Quantity 6 Source Page Number | BQ5: Quantity 7 | BR5: Quantity 7 Description | BS5: Quantity 7 Source | BT5: Quantity 7 Source Page Number | BU5: Quantity 8 | BV5: Quantity 8 Description | BW5: Quantity 8 Source | BX5: Quantity 8 Source Page Number | BY5: Quantity 9 | BZ5: Quantity 9 Description | CA5: Quantity 9 Source | CB5: Quantity 9 Source Page Number | CC5: Quantity 10 | CD5: Quantity 10 Description | CE5: Quantity 10 Source | CF5: Quantity 10 Source Page Number | CG5: Quantity 11 | CH5: Quantity 11 Description | CI5: Quantity 11 Source | CJ5: Quantity 11 Source Page Number | CK5: Quantity 12 | CL5: Quantity 12 Description | CM5: Quantity 12 Source | CN5: Quantity 12 Source Page Number | CO5: Quantity 13 | CP5: Quantity 13 Description | CQ5: Quantity 13 Source | CR5: Quantity 13 Source Page Number | CS5: Quantity 14 | CT5: Quantity 14 Description | CU5: Quantity 14 Source | CV5: Quantity 14 Source Page Number | CW5: Quantity 15 | CX5: Quantity 15 Description | CY5: Quantity 15 Source | CZ5: Quantity 15 Source Page Number | DA5: Quantity 16 | DB5: Quantity 16 Description | DC5: Quantity 16 Source | DD5: Quantity 16 Source Page Number | DE5: Quantity 17 | DF5: Quantity 17 Description | DG5: Quantity 17 Source | DH5: Quantity 17 Source Page Number | DI5: Quantity 18 | DJ5: Quantity 18 Description | DK5: Quantity 18 Source | DL5: Quantity 18 Source Page Number | DM5: Quantity 19 | DN5: Quantity 19 Description | DO5: Quantity 19 Source | DP5: Quantity 19 Source Page Number
A6: Business Custom | B6: Business Custom Measure | C6: 0.15 | D6: C&I | E6: All | AM6: 2020-01-01
A7: Business Custom | B7: Block Bidding Custom Measure | C7: 0.16 | D7: C&I | E7: All | AM7: 2020-01-01
A8: Business Custom | B8: C&I Custom - New Construction | C8: 0.2 | D8: C&I | E8: All | AM8: 2020-01-01
A9: Business Custom | B9: C&I Custom - New Construction Lighting | C9: 0.21 | D9: C&I | E9: All | AM9: 2020-01-01
A10: Business Custom | B10: C&I Custom - Peak Load Shift | C10: 0.22 | D10: C&I | E10: All | AM10: 2020-01-01
A11: Business Demand Response | B11: Business Demand Response Custom Measure | C11: 0.19 | D11: C&I | E11: All | AM11: 2020-01-01
A12: Business Process Efficiency | B12: Strategic Energy Management Custom Measure | C12: 0.17 | D12: C&I | E12: All | AM12: 2020-01-01
A13: Business Process Efficiency | B13: Retrocomissioning Custom Measure | C13: 0.18 | D13: C&I | E13: All | AM13: 2020-01-01
A14: Business Smart Thermostat | B14: Smart Thermostat | C14: 66.5 | D14: All | E14: HVAC | G14: per unit | H14: 170 | I14: Weighted average cost of actual units installed in PY2020. | K14: =ROUND(388,4) -> 388 | L14: ADM PY2021 Analysis | R14: =ROUND(0.939828,4) -> 0.9398 | S14: ADM PY2021 Analysis | X14: 11 | Y14: IL TRM v7 vol3 | Z14: 160 | AA14: PCT | AE14: No PCT | AI14: =cellformula(K14) -> =ROUND(388,4) | AJ14: =cellformula(R14) -> =ROUND(0.939828,4) | AM14: 2023-01-01 | AN14: 2023-12-31
A15: Business Smart Thermostat | B15: Smart Thermostat | C15: 66.6 | D15: All | E15: HVAC | G15: per unit | H15: 170 | I15: Weighted average cost of actual units installed in PY2020. | K15: =ROUND(388,4) -> 388 | L15: ADM PY2021 Analysis | R15: 0.9029 | S15: ADM PY2022 Analysis | X15: 11 | Y15: IL TRM 11 vol3 | Z15: 205 | AA15: PCT | AE15: No PCT | AI15: =ROUND(388,4) | AJ15: 0.9029 | AM15: 2024-01-01
A16: Business Standard | B16: Interior Daylighting Controls Replacing No Controls | C16: 67.2 | D16: Small C&I | E16: Lighting | G16: per sensor | H16: 66 | I16: IL TRM v6 vol2 | J16: 402 (portfolio weighted average) | K16: =ROUND(AB16/1000*AS16*U16*BA16,4) -> 692.634 | L16: Calculated Value | N16: =AB16/1000*AW16*BA16 -> 0.21316318 | O16: 0.66 | P16: IL TRM v6 vol2 | Q16: 337-338 (portfolio weighted average) | R16: =ROUND(N16*O16,4) -> 0.1407 | S16: Calculated Value | U16: 3088 | V16: IL TRM v6 vol2 | W16: 338 | X16: 8 | Y16: IL TRM v6 vol2 | Z16: 402 | AA16: Photocell Occupancy Sensor | AB16: 587 | AC16: Weighted average wattage ratings from verified participant data from the MEEIA Cycle 1 -2 portfolio with preference on most recent year of evaluated results if sufficient participation occurred | AE16: No Control | AI16: =ROUND(AB16/1000*AS16*U16*BA16,4) | AJ16: =ROUND(N16*O16,4) | AK16: IL TRM v6 vol2 | AL16: 403, 404 | AM16: 2020-01-01 | AS16: 1.41 | AT16: Waste Heat Factor Energy | AU16: IL TRM v6 vol2 | AV16: 337-338 (portfolio weighted average) | AW16: 1.34 | AX16: Waste Heat Factor Demand | AY16: IL TRM v6 vol2 | AZ16: 337-338 (portfolio weighted average) | BA16: 0.271 | BB16: ESF | BC16: IL TRM v6 vol2 | BD16: 419 (portfolio weighted average)
A17: Business Standard | B17: LED Exit Sign | C17: 68.3 | D17: Small C&I | E17: Lighting | F17: Direct Install | G17: per unit | H17: 30 | I17: IL TRM v6 vol2 | J17: 376 | K17: =ROUND((AF17-AB17)/1000*U17*AS17*BA17,4) -> 45.8683 | L17: Calculated Value | N17: =ROUND((AF17-AB17)/1000*AW17*BA17,4) -> 0.006 | O17: 0.9337378093 | P17: Navigant Field Work | Q17: (portfolio weighted average) | R17: =ROUND(N17*O17,4) -> 0.0056 | S17: Calculated Value | U17: 7706.016549 | V17: Navigant Field Work | W17: (portfolio weighted average) | X17: 16 | Y17: IL TRM v6 vol2 | Z17: 376 | AA17: LED (watts) | AB17: 3 | AC17: Weighted average wattage ratings from verified participant data from the MEEIA Cycle 1 -2 portfolio with preference on most recent year of evaluated results if sufficient participation occurred | AE17: Fluorescent (watts) | AF17: 7.666666667 | AH17: IL TRM V.5 | AI17: =ROUND((AF17-AB17)/1000*U17*AS17*BA17,4) | AJ17: =ROUND(N17*O17,4) | AK17: IL TRM v6 vol2 | AL17: 376378 | AM17: 2020-01-01 | AS17: 1.29 | AT17: Waste Heat Factor for energy | AU17: Navigant Field Work | AW17: 1.29 | AX17: Waste Heat Factor for demand | AY17: Navigant Field Work | BA17: 0.9887492598 | BB17: ISR - in service rate | BC17: Navigant field work
A18: Business Standard | B18: High‐Bay Fluorescent Fixture T5 > 4 Lamps w/ HE Electronic Ballast Replacing HID Fixture | C18: 69.2 | D18: Small C&I | E18: Lighting | G18: per fixture | H18: 100 | I18: IL TRM v6 vol2 | J18: 413 | K18: =ROUND((AF18-AB18)/1000*U18*AS18,4) -> 701.0069 | L18: Calculated Value | N18: =(AF18-AB18)/1000*AW18 -> 0.21574 | O18: 0.66 | P18: IL TRM v6 vol2 | Q18: 337-338 (portfolio weighted average) | R18: =ROUND(N18*O18,4) -> 0.1424 | S18: Calculated Value | U18: 3088 | V18: IL TRM v6 vol2 | W18: 338 | X18: 15 | Y18: IL TRM v6 vol2 | Z18: 410 | AA18: High Bay T5 (>4 lamps, wattage) | AB18: 295 | AC18: IL TRM v6 vol2 | AD18: 413 (weighted average) | AE18: Metal Halide (watts) | AF18: 456 | AG18: IL TRM v6 vol2 | AH18: 413 (weighted average) | AI18: =ROUND((AF18-AB18)/1000*U18*AS18,4) | AJ18: =ROUND(N18*O18,4) | AK18: IL TRM v6 vol2 | AL18: 364,368 | AM18: 2020-01-01 | AS18: 1.41 | AT18: Waste Heat Factor Energy | AU18: IL TRM v6 vol2 | AV18: 337-338 (portfolio weighted average) | AW18: 1.34 | AX18: Waste Heat Factor Demand | AY18: IL TRM v6 vol2 | AZ18: 337-338 (portfolio weighted average)
A19: Business Standard | B19: Interior Directional LED Lamp replacing 71-110W Lamp | C19: 70.3 | D19: Small C&I | E19: Lighting | G19: per lamp | H19: 20 | I19: IL TRM V11 Vol 2 | J19: 669 | K19: =ROUND((AF19-AB19)/1000*U19*AS19,4) -> 327.4268 | L19: Calculated Value | N19: =(AF19-AB19)/1000*AW19 -> 0.100768 | O19: 0.66 | P19: IL TRM v6 vol2 | Q19: 337-338 (portfolio weighted average) | R19: =ROUND(N19*O19,4) -> 0.0665 | S19: Calculated Value | U19: 3088 | V19: IL TRM v6 vol2 | W19: 338 | X19: 15 | Y19: IL TRM v6 vol2 | Z19: 363 | AA19: LED (watts) | AB19: 14.8 | AC19: Weighted average wattage ratings from verified participant data from the MEEIA Cycle 1 -2 portfolio with preference on most recent year of evaluated results if sufficient participation occurred | AE19: Incandescent (watts) | AF19: 90 | AG19: Measure Midpoint Value | AI19: =ROUND((AF19-AB19)/1000*U19*AS19,4) | AJ19: =ROUND(N19*O19,4) | AK19: IL TRM v6 vol2 | AL19: 364, 368 | AM19: 2020-01-01 | AS19: 1.41 | AT19: Waste Heat Factor Energy | AU19: IL TRM v6 vol2 | AV19: 337-338 (portfolio weighted average) | AW19: 1.34 | AX19: Waste Heat Factor Demand | AY19: IL TRM v6 vol2 | AZ19: 337-338 (portfolio weighted average)
A20: Business Standard | B20: Remove 4ft Lamp from T8 or T12 system | C20: 72.2 | D20: Small C&I | E20: Lighting | G20: per lamp | H20: 12 | I20: IL TRM v6 vol2 | J20: 346 | K20: =ROUND((AF20-AB20)/1000*U20*AS20,4) -> 121.9142 | L20: Calculated Value | N20: =(AF20-AB20)/1000*AW20 -> 0.03752 | O20: 0.66 | P20: IL TRM v6 vol2 | Q20: 337-338 (portfolio weighted average) | R20: =ROUND(N20*O20,4) -> 0.0248 | S20: Calculated Value | U20: 3088 | V20: IL TRM v6 vol2 | W20: 338 | X20: 11 | Y20: IL TRM v6 vol2 | Z20: 346 | AA20: Remove T8 | AB20: 0 | AC20: Measure Definition | AE20: T8 4 ft (watts) | AF20: 28 | AG20: IL TRM v6 vol2 | AH20: 347 (portfolio weighted average) | AI20: =ROUND((AF20-AB20)/1000*U20*AS20,4) | AJ20: =ROUND(N20*O20,4) | AK20: IL TRM v6 vol2 | AL20: 347348 | AM20: 2020-01-01 | AN20: 2023-12-31 | AS20: 1.41 | AT20: Waste Heat Factor Energy | AU20: IL TRM v6 vol2 | AV20: 337-338 (portfolio weighted average) | AW20: 1.34 | AX20: Waste Heat Factor Demand | AY20: IL TRM v6 vol2 | AZ20: 337-338 (portfolio weighted average)
A21: Business Standard | B21: Water Heater Tank Wrap | C21: 76.1 | D21: C&I | E21: Hot Water | G21: per unit | H21: 20 | I21: Program Tracking Data | K21: =ROUND((AS21/AW21-BA21/BE21)*BI21*BM21/BQ21/BU21,4) -> 134.0948 | L21: Calculated Value | N21: =ROUND(K21/U21,4) -> 0.0153 | O21: 1 | P21: IL TRM v7 vol3 | Q21: 203 | R21: =ROUND(K21/U21*O21,4) -> 0.0153 | S21: Calculated Value | U21: 8766 | V21: IL TRM v7 vol3 | W21: 204 | X21: 5 | Y21: IL TRM v7 vol3 | Z21: 203 | AA21: Water heater insulation increased from R12 to R22, 50gal | AC21: IL TRM v7 vol3 | AD21: 204 | AE21: R12, 50-gal water heater insulation (no wrap) | AG21: IL TRM v7 vol3 | AH21: 204 | AI21: =ROUND((AS21/AW21-BA21/BE21)*BI21*BM21/BQ21/BU21,4) | AJ21: =ROUND(K21/U21*O21,4) | AK21: IL TRM v7 vol3 | AL21: 203, 205 | AM21: 2020-01-01 | AS21: 24.99 | AT21: Abase | AU21: IL TRM v7 vol3 | AV21: 204 | AW21: 12 | AX21: Rbase | AY21: IL TRM v7 vol3 | AZ21: 204 | BA21: 27.06 | BB21: Ainsul | BC21: IL TRM v7 vol3 | BD21: 204 | BE21: 22 | BF21: Rinsul | BG21: IL TRM v7 vol3 | BH21: 204 | BI21: 60 | BJ21: deltaT | BK21: IL TRM v7 vol3 | BL21: 204 | BM21: 8766 | BN21: Hours | BO21: IL TRM v7 vol3 | BP21: 204 | BQ21: 0.98 | BR21: eta DHW | BS21: IL TRM v7 vol3 | BT21: 204 | BU21: 3412 | BV21: Conversion from BTU to kWh | BW21: IL TRM v7 vol3 | BX21: 204
A22: Business Standard | B22: High Efficiency Pool Pump | C22: 78.1 | D22: C&I | E22: Pools | G22: per unit | H22: 273.32 | I22: Program Tracking Data | K22: =ROUND(1301.2478,4) -> 1301.2478 | L22: Calculated Value | O22: 1 | P22: Calculated Value | R22: =ROUND(0.1485,4) -> 0.1485 | S22: Calculated Value | X22: 10 | Y22: IL TRM v6 vol3 | Z22: 296 | AA22: High Efficiency | AC22: IL TRM v6 vol3 | AD22: 296 | AE22: Standard Pool Pump | AG22: IL TRM v6 vol3 | AH22: 296 | AI22: =ROUND(1301.2478,4) | AJ22: =ROUND(0.1485,4) | AK22: IL TRM v6 vol2 | AL22: 479 | AM22: 2020-01-01 | AN22: 2023-12-31
A23: Business Standard | B23: High Efficiency Pool Pump | C23: 78.2 | D23: C&I | E23: Pools | G23: per unit | H23: =AVERAGE(314,930) -> 622 | I23: IL TRM V10 Vol 3 | J23: 392 | K23: =ROUND(1301.2478,4) -> 1301.2478 | L23: Calculated Value | O23: 1 | P23: Calculated Value | R23: =ROUND(0.1485,4) -> 0.1485 | S23: Calculated Value | X23: 10 | Y23: IL TRM v6 vol3 | Z23: 296 | AA23: High Efficiency | AC23: IL TRM v6 vol3 | AD23: 296 | AE23: Standard Pool Pump | AG23: IL TRM v6 vol3 | AH23: 296 | AI23: =ROUND(1301.2478,4) | AJ23: =ROUND(0.1485,4) | AK23: IL TRM v6 vol2 | AL23: 479 | AM23: 2024-01-01
A24: Business Standard | B24: Pool Pump VSD | C24: 79.1 | D24: C&I | E24: Pools | G24: per unit | H24: 579 | I24: Program Tracking Data | K24: =ROUND(2461.4482,4) -> 2461.4482 | L24: Calculated Value | O24: 1 | P24: Calculated Value | R24: =ROUND(0.281,4) -> 0.281 | S24: Calculated Value | X24: 10 | Y24: IL TRM v6 vol3 | Z24: 296 | AA24: VSD | AC24: IL TRM v6 vol3 | AD24: 296 | AE24: Standard Pool Pump | AG24: IL TRM v6 vol3 | AH24: 296 | AI24: =ROUND(2461.4482,4) | AJ24: =ROUND(0.281,4) | AK24: IL TRM v6 vol2 | AL24: 479 | AM24: 2020-01-01
A25: Business Standard | B25: LED Refrigerator Case Light | C25: 84.3 | D25: C&I | E25: Refrigeration | G25: per unit | H25: 44 | I25: IL TRM v5 vol2 - Assume 4 ft lamp | J25: 378 | K25: =ROUND((AF25-AB25)/1000*U25*AS25*BA25,4) -> 224.9713 | L25: Calculated Value | N25: =K25/U25 -> 0.03877478456 | O25: 0.69 | P25: IL TRM v5 vol2 | Q25: 341 | R25: =ROUND((AF25-AB25)/1000*AW25*BA25*O25,4) -> 0.0268 | S25: Calculated Value | U25: 5802 | V25: IL TRM v5 vol2 | W25: 341 | X25: 15 | Y25: IL TRM v5 vol2 | Z25: 369 | AA25: LED Display Lighting (watts) | AB25: 30.4 | AC25: IL TRM v5 vol2 - Assume 4 ft lamp | AD25: 378 | AE25: Base Refrigeration - Standard (watts) | AF25: 60.8 | AG25: IL TRM v5 vol2 - Assume 4 ft lamp | AH25: 378 | AI25: =ROUND((AF25-AB25)/1000*U25*AS25*BA25,4) | AJ25: =ROUND((AF25-AB25)/1000*AW25*BA25*O25,4) | AK25: IL TRM v6 vol2 | AL25: 364,368 | AM25: 2020-05-01 | AS25: 1.29 | AT25: Waste Heat Factor for Energy | AU25: IL TRM v5 vol2 | AV25: 341 | AW25: 1.29 | AX25: Waste Heat Factor Demand | AY25: IL TRM v5 vol2 | AZ25: 341 | BA25: 0.9887492598 | BB25: ISR | BC25: Navigant field work
A26: Business Standard | B26: ECM Motors Walk-In Coolers & Freezers | C26: 85.2 | D26: C&I | E26: Refrigeration | G26: per motor | H26: 50 | I26: IL TRM v5 vol2 | J26: 448 | K26: =ROUND(1064,4) -> 1064 | L26: IL TRM v7 vol2 | M26: 516 | O26: 1 | P26: IL TRM v5 vol2 | Q26: 448 | R26: =ROUND(K26/AS26*O26,4) -> 0.1215 | S26: IL TRM v7 vol2 | T26: 450 | X26: 15 | Y26: IL TRM v5 vol2 | Z26: 448 | AA26: ECM Motor | AC26: IL TRM v5 vol2 | AD26: 448 | AE26: Shaded pole motor | AG26: IL TRM v5 vol2 | AH26: 448 | AI26: =ROUND(1064,4) | AJ26: =ROUND(K26/AS26*O26,4) | AK26: IL TRM v6 vol2 | AL26: 450 | AM26: 2021-01-01 | AN26: 2023-12-31 | AS26: 8760 | AT26: Hours | AU26: IL TRM v7 vol2 | AV26: 514
A27: Business Standard | B27: ECM Motors Walk-In Coolers & Freezers | C27: 85.3 | D27: C&I | E27: Refrigeration | G27: per motor | H27: =AVERAGE(47.95,102.36) -> 75.155 | I27: WI TRM 2022 | J27: 789 | K27: =ROUND(1586,4) -> 1586 | L27: IL TRM V11, Vol 2, Deemed value considered for unknown motor rating | M27: 750 | O27: 1 | P27: IL TRM V11, Vol 2 | Q27: 750 | R27: =ROUND(K27/AS27*O27,4) -> 0.1811 | S27: IL TRM V11, Vol 2 | T27: 750 | X27: 15 | Y27: IL TRM V11, Vol 2 | Z27: 749 | AA27: ECM Motor | AC27: IL TRM V11, Vol 2 | AD27: 749 | AE27: Shaded-pole motor(s) with no fan control | AG27: IL TRM V11, Vol 2 | AH27: 749 | AI27: =ROUND(1586,4) | AJ27: =ROUND(K27/AS27*O27,4) | AK27: IL TRM V11, Vol 2 | AL27: 749, 750 | AM27: 2024-01-01 | AS27: 8760 | AT27: Hours | AU27: IL TRM V11, Vol 2 | AV27: 750
A28: Business Standard | B28: High Efficiency PTAC/PTHP | C28: 86.1 | D28: C&I | E28: HVAC | G28: per ton | H28: 84 | I28: IL TRM v6 vol2 | J28: 184 | K28: =ROUND(30.0701,4) -> 30.0701 | L28: Calculated Value | O28: 0.91 | P28: IL TRM v6 vol2 | Q28: 185 | R28: =ROUND(0.0118,4) -> 0.0118 | S28: Calculated Value | X28: 15 | Y28: IL TRM v6 vol2 | Z28: 184 | AA28: EER | AB28: 12 | AC28: Weighted average efficient efficiency ratings from verified participant data from the MEEIA Cycle 1 -2 portfolio with preference on most recent year of evaluated results if sufficient participation occurred | AE28: EER | AF28: 10.2 | AG28: IL TRM v6 vol2 | AH28: 186 | AI28: =ROUND(30.0701,4) | AJ28: =ROUND(0.0118,4) | AK28: IL TRM v6 vol2 | AL28: 185187 | AM28: 2020-01-01 | AO28: 1325 | AP28: 5249 | AQ28: MO TRM and Navigant Analysis | AS28: 12000 | AT28: Btu/hr | AU28: IL TRM v6 vol2 | AV28: 150 | AW28: 11535.60828 | AX28: Unit size conversion | AY28: Program Tracking Data | BA28: 0.001794835007 | BB28: HSPF improvement factor
A29: Business Standard | B29: Programmable Thermostat Controls | C29: 87.1 | D29: C&I | E29: HVAC | G29: per ton | H29: 36.2 | I29: IL TRM v6 vol2 | J29: 220 | K29: =ROUND(126.0527,4) -> 126.0527 | L29: Calculated Value | R29: =ROUND(0,4) -> 0 | S29: Calculated Value | X29: 8 | Y29: IL TRM v6 vol2 | Z29: 220 | AA29: Programmable Tstat | AC29: IL TRM v6 vol2 | AD29: 220 | AE29: No Tstat | AG29: IL TRM v6 vol2 | AH29: 220 | AI29: =ROUND(126.0527,4) | AJ29: =ROUND(0,4) | AK29: IL TRM v6 vol2 | AL29: 221 | AM29: 2020-01-01
A30: Business Standard | B30: CAC <65 kBtuh | C30: 90.2 | D30: C&I | E30: HVAC | G30: per ton | H30: 127 | I30: IL TRM v6 vol2 | J30: 203 | K30: =ROUND(AW30*(1/AF30-1/AB30)*AS30/1000,4) -> 151.8769 | L30: Calculated Value | N30: 0.08156 | O30: 0.91 | P30: IL TRM v6 vol2 | Q30: 204 | R30: =ROUND(((1/BA30-1/BE30)*AS30/1000)*O30,4) -> 0.0667 | S30: Calculated Value | U30: 1000 | V30: IL TRM v6 vol2 | W30: 133 (portfolio weighted average) | X30: 15 | Y30: IL TRM v6 vol2 | Z30: 203 | AA30: SEER | AB30: 15 | AC30: Average of 2019 Program Tracking Data | AE30: SEER | AF30: 13 | AG30: IL TRM v7 vol2 | AH30: 215 | AI30: =ROUND(AW30*(1/AF30-1/AB30)*AS30/1000,4) | AJ30: =ROUND(((1/BA30-1/BE30)*AS30/1000)*O30,4) | AK30: IL TRM v6 vol2 | AL30: 204, 209 | AM30: 2021-01-01 | AO30: 1325 | AP30: 5249 | AQ30: MO TRM and Navigant Analysis | AS30: 12000 | AT30: Btu/hr | AU30: IL TRM v6 vol2 | AV30: 150 | AW30: 1234 | AX30: EFLH | AY30: IL TRM v7 vol2 (average of zone 4 space types: Office - Mid Rise, Manufacturing Facility, Unknown, Retail-Strip Mall, High School, Warehouse, Garage | AZ30: 138-139 | BA30: =(-0.02*AF30^2)+(1.12*AF30) -> 11.18 | BB30: EERbase | BC30: IL TRM v7 vol2 | BD30: 220 | BE30: 12 | BF30: EERee | BG30: Average of 2019 program tracking data
A31: Business Standard | B31: CAC 65<135 kBtuh | C31: 91.2 | D31: C&I | E31: HVAC | G31: per ton | H31: 127 | I31: IL TRM v6 vol2 | J31: 203 | K31: =ROUND(AW31*(1/AF31-1/AB31)*AS31/1000,4) -> 581.7429 | L31: Calculated Value | N31: 0.0566389 | O31: 0.91 | P31: IL TRM v6 vol2 | Q31: 204 | R31: =ROUND(((1/BA31-1/BE31)*AS31/1000)*O31,4) -> 0.1527 | S31: Calculated Value | U31: 1000 | V31: IL TRM v6 vol2 | W31: 133 (portfolio weighted average) | X31: 15 | Y31: IL TRM v6 vol2 | Z31: 203 | AA31: IEER | AB31: 20 | AC31: Average of 2019 Program Tracking Data | AE31: IEER | AF31: 11.2 | AG31: IL TRM v7 vol2 | AH31: 215 | AI31: =ROUND(AW31*(1/AF31-1/AB31)*AS31/1000,4) | AJ31: =ROUND(((1/BA31-1/BE31)*AS31/1000)*O31,4) | AK31: IL TRM v6 vol2 | AL31: 204, 209 | AM31: 2021-01-01 | AO31: 1325 | AP31: 5249 | AQ31: MO TRM and Navigant Analysis | AS31: 12000 | AT31: Btu/hr | AU31: IL TRM v6 vol2 | AV31: 150 | AW31: 1234 | AX31: EFLH | AY31: IL TRM v7 vol2 (average of zone 4 space types: Office - Mid Rise, Manufacturing Facility, Unknown, Retail-Strip Mall, High School, Warehouse, Garage | AZ31: 138-139 | BA31: 11 | BB31: EERbase | BC31: IL TRM v7 vol2 | BD31: 220 | BE31: 13 | BF31: EERee | BG31: Average of 2019 program tracking data
A32: Business Standard | B32: CAC 135<240 kBtuh | C32: 92.2 | D32: C&I | E32: HVAC | G32: per ton | H32: 100 | I32: IL TRM v6 vol2 | J32: 203 | K32: =ROUND(AW32*(1/AF32-1/AB32)*AS32/1000,4) -> 605.7818 | L32: Calculated Value | N32: 0.0807362 | O32: 0.91 | P32: IL TRM v6 vol2 | Q32: 204 | R32: =ROUND(((1/BA32-1/BE32)*AS32/1000)*O32,4) -> 0.1711 | S32: Calculated Value | U32: 1000 | V32: IL TRM v6 vol2 | W32: 133 (portfolio weighted average) | X32: 15 | Y32: IL TRM v6 vol2 | Z32: 203 | AA32: IEER | AB32: 20 | AC32: Average of 2019 Program Tracking Data | AE32: IEER | AF32: 11 | AG32: IL TRM v7 vol2 | AH32: 215 | AI32: =ROUND(AW32*(1/AF32-1/AB32)*AS32/1000,4) | AJ32: =ROUND(((1/BA32-1/BE32)*AS32/1000)*O32,4) | AK32: IL TRM v6 vol2 | AL32: 204, 209 | AM32: 2021-01-01 | AO32: 1325 | AP32: 5249 | AQ32: MO TRM and Navigant Analysis | AS32: 12000 | AT32: Btu/hr | AU32: IL TRM v6 vol2 | AV32: 150 | AW32: 1234 | AX32: EFLH | AY32: IL TRM v7 vol2 (average of zone 4 space types: Office - Mid Rise, Manufacturing Facility, Unknown, Retail-Strip Mall, High School, Warehouse, Garage | AZ32: 138-139 | BA32: 10.8 | BB32: EERbase | BC32: IL TRM v7 vol2 | BD32: 220 | BE32: 13 | BF32: EERee | BG32: Average of 2019 program tracking data
A33: Business Standard | B33: CAC >240 kBtuh | C33: 93.2 | D33: C&I | E33: HVAC | G33: per ton | H33: 100 | I33: IL TRM v6 vol2 | J33: 203 | K33: =ROUND(AW33*(1/AF33-1/AB33)*AS33/1000,4) -> 356.6807 | L33: Calculated Value | N33: 0.0706853 | O33: 0.91 | P33: IL TRM v6 vol2 | Q33: 204 | R33: =ROUND(((1/BA33-1/BE33)*AS33/1000)*O33,4) -> 0.1216 | S33: Calculated Value | U33: 1000 | V33: IL TRM v6 vol2 | W33: 133 (portfolio weighted average) | X33: 15 | Y33: IL TRM v6 vol2 | Z33: 203 | AA33: IEER | AB33: 13 | AC33: Average of 2019 Program Tracking Data | AE33: IEER | AF33: 9.9 | AG33: IL TRM v7 vol2 | AH33: 215 | AI33: =ROUND(AW33*(1/AF33-1/AB33)*AS33/1000,4) | AJ33: =ROUND(((1/BA33-1/BE33)*AS33/1000)*O33,4) | AK33: IL TRM v6 vol2 | AL33: 204, 209 | AM33: 2021-01-01 | AO33: 1325 | AP33: 5249 | AQ33: MO TRM and Navigant Analysis | AS33: 12000 | AT33: Btu/hr | AU33: IL TRM v6 vol2 | AV33: 150 | AW33: 1234 | AX33: EFLH | AY33: IL TRM v7 vol2 (average of zone 4 space types: Office - Mid Rise, Manufacturing Facility, Unknown, Retail-Strip Mall, High School, Warehouse, Garage | AZ33: 138-139 | BA33: 9.8 | BB33: EERbase | BC33: IL TRM v7 vol2 | BD33: 220 | BE33: 11 | BF33: EERee | BG33: Average of 2019 program tracking data
A34: Business Standard | B34: Interior Directional LED Lamp replacing 50-70W Lamp | C34: 96.4 | D34: C&I | E34: Lighting | G34: per lamp | H34: 64.47 | I34: IL TRM v5 vol2 | J34: 377 | K34: =ROUND((AF34-AB34)/1000*U34*AS34,4) -> 214.6561 | L34: Calculated Value | N34: =(AF34-AB34)/1000*AW34 -> 0.066062 | O34: 0.6193 | P34: IL TRM v5 vol2 | Q34: 340-341(portfolio weighted average) | R34: =ROUND(N34*O34,4) -> 0.0409 | S34: Calculated Value | U34: 3088 | V34: IL TRM v6 vol2 | W34: 338 | X34: 15 | Y34: IL TRM v5 vol2 | Z34: 369 | AA34: LED (watts) | AB34: 10.7 | AC34: Weighted average efficient wattage ratings from verified participant data from the MEEIA Cycle 1 -2 portfolio with preference on most recent year of evaluated results if sufficient participation occurred | AE34: Incandescent (watts) | AF34: 60 | AG34: Measure midpoint Value | AI34: =ROUND((AF34-AB34)/1000*U34*AS34,4) | AJ34: =ROUND(N34*O34,4) | AK34: IL TRM v6 vol2 | AL34: 364,368 | AM34: 2020-01-01 | AS34: 1.41 | AT34: Waste Heat Factor Energy | AU34: IL TRM v5 vol2 | AV34: 340-341 (portfolio weighted average) | AW34: 1.34 | AX34: Waste Heat Factor Demand | AY34: IL TRM v5 vol2 | AZ34: 340-341 (portfolio weighted average)
A35: Business Standard | B35: Interior Directional LED Lamp replacing 71-110W Lamp | C35: 97.5 | D35: C&I | E35: Lighting | G35: per lamp | H35: 64.47 | I35: IL TRM v5 vol2 | J35: 377 | K35: 327.4268 | L35: Calculated Value | N35: 0.100768 | O35: 0.6193 | P35: IL TRM v5 vol2 | Q35: 340-341(portfolio weighted average) | R35: 0.0624 | S35: Calculated Value | U35: 3088 | V35: IL TRM v6 vol2 | W35: 338 | X35: 15 | Y35: IL TRM v5 vol2 | Z35: 369 | AA35: LED (watts) | AB35: 14.8 | AC35: Weighted average efficient wattage ratings from verified participant data from the MEEIA Cycle 1 -2 portfolio with preference on most recent year of evaluated results if sufficient participation occurred | AE35: Incandescent (watts) | AF35: 90 | AG35: Measure midpoint Value | AI35: =ROUND((AF35-AB35)/1000*U35*AS35,4) | AJ35: =ROUND(N35*O35,4) | AK35: IL TRM v6 vol2 | AL35: 364,368 | AM35: 2020-05-01 | AS35: 1.41 | AT35: Waste Heat Factor Energy | AU35: IL TRM v5 vol2 | AV35: 340-341 (portfolio weighted average) | AW35: 1.34 | AX35: Waste Heat Factor Demand | AY35: IL TRM v5 vol2 | AZ35: 340-341 (portfolio weighted average)
A36: Business Standard | B36: High Performance High-Bay Fluorescent Fixture T8 > 4 Lamps Replacing HID Fixture | C36: 98.2 | D36: C&I | E36: Lighting | G36: per fixture | H36: 200 | I36: IL TRM v6 vol2 | J36: 357 | K36: 1084.1659 | L36: Calculated Value | N36: 0.33366 | O36: 0.66 | P36: IL TRM v6 vol2 | Q36: 337-338 (portfolio weighted average) | R36: 0.2202 | S36: Calculated Value | U36: 3088 | V36: IL TRM v6 vol2 | W36: 338 | X36: 15 | Y36: IL TRM v6 vol2 | Z36: 352 | AA36: High Bay T8 (>4 lamps, wattage) | AB36: 206 | AC36: Weighted average efficient wattage ratings from verified participant data from the MEEIA Cycle 1 -2 portfolio with preference on most recent year of evaluated results if sufficient participation occurred | AE36: Metal Halide (watts) | AF36: 455 | AG36: IL TRM v6 vol2 | AH36: 357 (portfolio weighted average) | AI36: =ROUND((AF36-AB36)/1000*U36*AS36,4) | AJ36: =ROUND(N36*O36,4) | AK36: IL TRM v6 vol2 | AL36: 353354 | AM36: 2020-01-01 | AS36: 1.41 | AT36: Waste Heat Factor Energy | AU36: IL TRM v6 vol2 | AV36: 337-338 (portfolio weighted average) | AW36: 1.34 | AX36: Waste Heat Factor Demand | AY36: IL TRM v6 vol2 | AZ36: 337-338 (portfolio weighted average)
A37: Business Standard | B37: High Bay Fluorescent Fixture (HP T8 <=4 lamps) | C37: 99.1 | D37: C&I | E37: Lighting | G37: per fixture | H37: 225 | I37: IL TRM v6 vol2 | J37: 357 | K37: 648.7579 | L37: Calculated Value | N37: 0.19966 | O37: 0.66 | P37: IL TRM v6 vol2 | Q37: 337-338 (portfolio weighted average) | R37: 0.1318 | S37: Calculated Value | U37: 3088 | V37: IL TRM v6 vol2 | W37: 338 | X37: 15 | Y37: IL TRM v6 vol2 | Z37: 352 | AA37: High Bay T8 (≤4 lamps, wattage) | AB37: 146 | AC37: Weighted average efficient wattage ratings from verified participant data from the MEEIA Cycle 1 -2 portfolio with preference on most recent year of evaluated results if sufficient participation occurred | AE37: Metal Halide (watts) | AF37: 295 | AG37: IL TRM v6 vol2 | AH37: 357 | AI37: =ROUND((AF37-AB37)/1000*U37*AS37,4) | AJ37: =ROUND(N37*O37,4) | AK37: IL TRM v6 vol2 | AL37: 353354 | AM37: 2020-01-01 | AS37: 1.41 | AT37: Waste Heat Factor Energy | AU37: IL TRM v6 vol2 | AV37: 337-338 (portfolio weighted average) | AW37: 1.34 | AX37: Waste Heat Factor Demand | AY37: IL TRM v6 vol2 | AZ37: 337-338 (portfolio weighted average)
A38: Business Standard | B38: High-Bay Fluorescent Fixture T5 > 4 Lamps w/ HE Electronic Ballast Replacing HID Fixture | C38: 100.2 | D38: C&I | E38: Lighting | G38: per fixture | H38: 100 | I38: IL TRM v6 vol2 | J38: 413 | K38: 701.0069 | L38: Calculated Value | N38: 0.21574 | O38: 0.66 | P38: IL TRM v6 vol2 | Q38: 337-338 (portfolio weighted average) | R38: 0.1424 | S38: Calculated Value | U38: 3088 | V38: IL TRM v6 vol2 | W38: 338 | X38: 15 | Y38: IL TRM v6 vol2 | Z38: 410 | AA38: High Bay T5 (>4 lamps, wattage) | AB38: 295 | AC38: IL TRM v6 vol2 | AD38: 413 (weighted average) | AE38: Metal Halide (watts) | AF38: 456 | AG38: IL TRM v6 vol2 | AH38: 413 (weighted average) | AI38: =ROUND((AF38-AB38)/1000*U38*AS38,4) | AJ38: =ROUND(N38*O38,4) | AK38: IL TRM v6 vol2 | AL38: 411412 | AM38: 2020-01-01 | AS38: 1.41 | AT38: Waste Heat Factor Energy | AU38: IL TRM v6 vol2 | AV38: 337-338 (portfolio weighted average) | AW38: 1.34 | AX38: Waste Heat Factor Demand | AY38: IL TRM v6 vol2 | AZ38: 337-338 (portfolio weighted average)
A39: Business Standard | B39: High-Bay Fluorescent Fixture T5 <= 4 Lamps w/ HE Electronic Ballast Replacing HID Fixture | C39: 101.2 | D39: C&I | E39: Lighting | G39: per fixture | H39: 100 | I39: IL TRM v6 vol2 | J39: 413 | K39: 404.9294 | L39: Calculated Value | N39: 0.12462 | O39: 0.66 | P39: IL TRM v6 vol2 | Q39: 337-338 (portfolio weighted average) | R39: 0.0822 | S39: Calculated Value | U39: 3088 | V39: IL TRM v6 vol2 | W39: 338 | X39: 15 | Y39: IL TRM v6 vol2 | Z39: 410 | AA39: High Bay T5 (≤4 lamps, wattage) | AB39: 117 | AC39: Weighted average efficient wattage ratings from verified participant data from the MEEIA Cycle 1 -2 portfolio with preference on most recent year of evaluated results if sufficient participation occurred | AE39: Metal Halide (watts) | AF39: 210 | AG39: IL TRM v6 vol2 | AH39: 413-414 (portfolio weighted average) | AI39: =ROUND((AF39-AB39)/1000*U39*AS39,4) | AJ39: =ROUND(N39*O39,4) | AK39: IL TRM v6 vol2 | AL39: 411412 | AM39: 2020-01-01 | AS39: 1.41 | AT39: Waste Heat Factor Energy | AU39: IL TRM v6 vol2 | AV39: 337-338 (portfolio weighted average) | AW39: 1.34 | AX39: Waste Heat Factor Demand | AY39: IL TRM v6 vol2 | AZ39: 337-338 (portfolio weighted average)
A40: Business Standard | B40: LED Exit Sign | C40: 102.6 | D40: C&I | E40: Lighting | G40: per lamp | H40: 32.5 | I40: IL TRM v10 Vol2 | J40: 570 | K40: =ROUND((AF40-AB40)/1000*U40*AS40*BA40,4) -> 67.7789 | L40: Calculated Value | N40: =(AF40-AB40)/1000*AW40*BA40 -> 0.007732019212 | O40: 1 | P40: IL TRM v10 Vol2 | Q40: 570 | R40: =ROUND(N40*O40,4) -> 0.0077 | S40: Calculated Value | U40: 8766 | V40: IL TRM v10 Vol2 | W40: 571 | X40: 5 | Y40: IL TRM v10 Vol2 | Z40: 508 | AA40: LED (watts) | AB40: 2.68 | AC40: PY2 portfolio weighted average | AE40: Fluorescent (watts) | AF40: 10.5 | AG40: IL TRM V.10 vol 2 | AH40: 571(average of dual/single sided signs) | AI40: =ROUND((AF40-AB40)/1000*U40*AS40*BA40,4) | AJ40: =ROUND(N40*O40,4) | AK40: IL TRM v10 Vol2 | AL40: 570571 | AM40: 2023-01-01 | AN40: 2023-12-31 | AS40: 1 | AT40: Waste Heat Factor | AU40: PY2 portfolio weighted average | AW40: 1 | AX40: Waste Heat Factor | AY40: PY2 portfolio weighted average | BA40: 0.9887492598 | BB40: ISR | BC40: Guidehouse field work
A41: Business Standard | B41: LED Exit Sign | C41: 102.7 | D41: C&I | E41: Lighting | G41: per lamp | H41: 32.5 | I41: IL TRM V11 Vol2 | J41: 674 | K41: =ROUND((AF41-AB41)/1000*U41*AS41*BA41,4) -> 67.1489 | L41: Calculated Value | N41: =(AF41-AB41)/1000*AW41*BA41 -> 0.007660148835 | O41: 1 | P41: IL TRM V11 Vol2 | Q41: 674 | R41: 0.0077 | S41: Calculated Value | U41: 8766 | V41: IL TRM V11 Vol2 | W41: 675 | X41: 5 | Y41: IL TRM V11 Vol2 | Z41: 674 | AA41: LED (watts) | AB41: 2.752688172 | AC41: Weighted average efficient wattage from verified participant data from the MEEIA Cycle 3 PY1-3 portfolio with preference on most recent year of evaluated results if sufficient participation occurred | AE41: Fluorescent (watts) | AF41: 10.5 | AG41: IL TRM V11 Vol 2 | AH41: 675(average of dual/single sided signs) | AI41: =ROUND((AF41-AB41)/1000*U41*AS41*BA41,4) | AJ41: =ROUND(N41*O41,4) | AK41: IL TRM V11 Vol2 | AL41: 674675 | AM41: 2024-01-01 | AS41: 1 | AT41: Waste Heat Factor Energy | AU41: Weighted average Waste Heat Factor Energy from verified participant data from the MEEIA Cycle 3 PY1-3 portfolio with preference on most recent year of evaluated results if sufficient participation occurred | AW41: 1 | AX41: Waste Heat Factor Demand | AY41: Weighted average Waste Heat Factor Demand from verified participant data from the MEEIA Cycle 3 PY1-3 portfolio with preference on most recent year of evaluated results if sufficient participation occurred | BA41: 0.9887492598 | BB41: ISR | BC41: Guidehouse field work
A42: Business Standard | B42: LED Flood Light (<15W) | C42: 103.1 | D42: C&I | E42: Lighting | G42: per lamp | H42: 35 | I42: IL TRM v6 vol2 | J42: 370 | K42: =ROUND((AF42-AB42)/1000*U42*AS42,4) -> 210.829 | L42: Calculated Value | N42: =(AF42-AB42)/1000*AW42 -> 0.043 | O42: 0 | P42: IL TRM v6 vol2 | Q42: 338 | R42: =ROUND(N42*O42,4) -> 0 | S42: Calculated Value | U42: 4903 | V42: IL TRM v6 vol2 | W42: 338 | X42: 15 | Y42: IL TRM v6 vol2 | Z42: 363 | AA42: LED (watts) | AB42: 8.7 | AC42: Weighted average efficient wattage ratings from verified participant data from the MEEIA Cycle 1 -2 portfolio with preference on most recent year of evaluated results if sufficient participation occurred | AE42: Metal Halide (watts) | AF42: 51.7 | AI42: =ROUND((AF42-AB42)/1000*U42*AS42,4) | AJ42: =ROUND(N42*O42,4) | AK42: IL TRM v6 vol2 | AL42: 364,368 | AM42: 2020-01-01 | AS42: 1 | AT42: Waste Heat Factor Energy | AU42: IL TRM v6 vol2 | AV42: 338 | AW42: 1 | AX42: Waste Heat Factor Demand | AY42: IL TRM v6 vol2 | AZ42: 338
A43: Business Standard | B43: LED Flood Light (>=15W) | C43: 104.1 | D43: C&I | E43: Lighting | G43: per lamp | H43: 45 | I43: IL TRM v6 vol2 | J43: 370 | K43: 236.3246 | L43: Calculated Value | N43: 0.0482 | O43: 0 | P43: IL TRM v6 vol2 | Q43: 338 | R43: 0 | S43: Calculated Value | U43: 4903 | V43: IL TRM v6 vol2 | W43: 338 | X43: 15 | Y43: IL TRM v6 vol2 | Z43: 363 | AA43: LED (watts) | AB43: 16.2 | AC43: Weighted average efficient wattage ratings from verified participant data from the MEEIA Cycle 1 -2 portfolio with preference on most recent year of evaluated results if sufficient participation occurred | AE43: Metal Halide (watts) | AF43: 64.4 | AI43: =ROUND((AF43-AB43)/1000*U43*AS43,4) | AJ43: =ROUND(N43*O43,4) | AK43: IL TRM v6 vol2 | AL43: 364,368 | AM43: 2020-01-01 | AS43: 1 | AT43: Waste Heat Factor Energy | AU43: IL TRM v6 vol2 | AV43: 338 | AW43: 1 | AX43: Waste Heat Factor Demand | AY43: IL TRM v6 vol2 | AZ43: 338
A44: Business Standard | B44: LED Recessed Fixture (1 ft x 4 ft) | C44: 106.1 | D44: C&I | E44: Lighting | G44: per fixture | H44: 36.17 | I44: IL TRM v6 vol2 | J44: 371 | K44: 116.6893 | L44: Calculated Value | N44: 0.035912 | O44: 0.66 | P44: IL TRM v6 vol2 | Q44: 337-338 (portfolio weighted average) | R44: 0.0237 | S44: Calculated Value | U44: 3088 | V44: IL TRM v6 vol2 | W44: 338 | X44: 15 | Y44: IL TRM v6 vol2 | Z44: 363 | AA44: Linear style LED (watts) | AB44: 32.2 | AC44: Program Tracking Data | AE44: Standard T8 (watts) | AF44: 59 | AG44: Program Tracking Data | AI44: =ROUND((AF44-AB44)/1000*U44*AS44,4) | AJ44: =ROUND(N44*O44,4) | AK44: IL TRM v6 vol2 | AL44: 364,368 | AM44: 2020-01-01 | AN44: 2023-12-31 | AS44: 1.41 | AT44: Waste Heat Factor Energy | AU44: IL TRM v6 vol2 | AV44: 337-338 (portfolio weighted average) | AW44: 1.34 | AX44: Waste Heat Factor Demand | AY44: IL TRM v6 vol2 | AZ44: 337-338 (portfolio weighted average)
A45: Business Standard | B45: LED Recessed Fixture (2 ft x 2 ft) | C45: 107.1 | D45: C&I | E45: Lighting | G45: per fixture | H45: 22.55 | I45: IL TRM v6 vol2 | J45: 371 | K45: 70.1007 | L45: Calculated Value | N45: 0.021574 | O45: 0.66 | P45: IL TRM v6 vol2 | Q45: 337-338 (portfolio weighted average) | R45: 0.0142 | S45: Calculated Value | U45: 3088 | V45: IL TRM v6 vol2 | W45: 338 | X45: 15 | Y45: IL TRM v6 vol2 | Z45: 363 | AA45: Linear style LED (watts) | AB45: 44.9 | AC45: Program Tracking Data | AE45: T8 U-tube (watts) | AF45: 61 | AG45: Program Tracking Data | AI45: =ROUND((AF45-AB45)/1000*U45*AS45,4) | AJ45: =ROUND(N45*O45,4) | AK45: IL TRM v6 vol2 | AL45: 364,368 | AM45: 2020-01-01 | AN45: 2023-12-31 | AS45: 1.41 | AT45: Waste Heat Factor Energy | AU45: IL TRM v6 vol2 | AV45: 337-338 (portfolio weighted average) | AW45: 1.34 | AX45: Waste Heat Factor Demand | AY45: IL TRM v6 vol2 | AZ45: 337-338 (portfolio weighted average)
A46: Business Standard | B46: LED Recessed Fixture (2 ft x 4 ft) | C46: 108.1 | D46: C&I | E46: Lighting | G46: per fixture | H46: 55.5 | I46: IL TRM v6 vol2 | J46: 371 | K46: 149.7804 | L46: Calculated Value | N46: 0.046096 | O46: 0.66 | P46: IL TRM v6 vol2 | Q46: 337-338 (portfolio weighted average) | R46: 0.0304 | S46: Calculated Value | U46: 3088 | V46: IL TRM v6 vol2 | W46: 338 | X46: 15 | Y46: IL TRM v6 vol2 | Z46: 363 | AA46: Linear style LED (watts) | AB46: 53.6 | AC46: Program Tracking Data | AE46: Standard T8 (watts) | AF46: 88 | AG46: Program Tracking Data | AI46: =ROUND((AF46-AB46)/1000*U46*AS46,4) | AJ46: =ROUND(N46*O46,4) | AK46: IL TRM v6 vol2 | AL46: 364,368 | AM46: 2020-01-01 | AN46: 2023-12-31 | AS46: 1.41 | AT46: Waste Heat Factor Energy | AU46: IL TRM v6 vol2 | AV46: 337-338 (portfolio weighted average) | AW46: 1.34 | AX46: Waste Heat Factor Demand | AY46: IL TRM v6 vol2 | AZ46: 337-338 (portfolio weighted average)
A47: Business Standard | B47: Remove 4ft Lamp from T8 or T12 system | C47: 109.4 | D47: C&I | E47: Lighting | G47: per lamp | H47: 12 | I47: IL TRM v10 Vol2 | J47: 537 | K47: =ROUND((AF47-AB47)/1000*U47*AS47,4) -> 83.7095 | L47: Calculated Value | N47: =(AF47-AB47)/1000*AW47 -> 0.034136 | O47: 0.62 | P47: PY2 portfolio weighted average | R47: =ROUND(N47*O47,4) -> 0.0212 | S47: Calculated Value | U47: 3088 | V47: IL TRM v10 Vol2 | W47: 533 | X47: 11 | Y47: IL TRM v10 Vol2 | Z47: 537 | AA47: Remove T8 | AB47: 0 | AC47: IL TRM v10 Vol2 | AD47: 537 | AE47: T8 4 ft (watts) | AF47: 25.1 | AG47: IL TRM v10 Vol2 | AH47: 538 | AI47: =ROUND((AF47-AB47)/1000*U47*AS47,4) | AJ47: =ROUND(N47*O47,4) | AK47: IL TRM v10 Vol2 | AL47: 538539 | AM47: 2023-01-01 | AN47: 2023-12-31 | AS47: 1.08 | AT47: Waste Heat Factor Energy | AU47: PY2 portfolio weighted average | AW47: 1.36 | AX47: Waste Heat Factor Demand | AY47: PY2 portfolio weighted average
A48: Business Standard | B48: Remove 4ft Lamp from T8 or T12 system | C48: 109.5 | D48: C&I | E48: Lighting | G48: per lamp | H48: 12 | I48: IL TRM V11 Vol2 | J48: 641 | K48: 85.2597 | L48: Calculated Value | N48: 0.035893 | O48: 0.6267166738 | P48: Weighted average peak coincident factor from verified participant data from the MEEIA Cycle 3 PY1-3 portfolio with preference on most recent year of evaluated results if sufficient participation occurred | R48: 0.0225 | S48: Calculated Value | U48: 3088 | V48: IL TRM V11 Vol2 | W48: 637 | X48: 11 | Y48: IL TRM V11 Vol2 | Z48: 641 | AA48: Remove T8 | AB48: 0 | AC48: IL TRM V11 Vol2 | AD48: 641 | AE48: T8 4 ft (watts) | AF48: 25.1 | AG48: IL TRM v11 Vol2 | AH48: 642 | AI48: =ROUND((AF48-AB48)/1000*U48*AS48,4) | AJ48: =ROUND(N48*O48,4) | AK48: IL TRM V11 Vol2 | AL48: 642643 | AM48: 2024-01-01 | AS48: 1.1 | AT48: Waste Heat Factor Energy | AU48: Weighted average Waste Heat Factor Energy from verified participant data from the MEEIA Cycle 3 PY1-3 portfolio with preference on most recent year of evaluated results if sufficient participation occurred | AW48: 1.43 | AX48: Waste Heat Factor Demand | AY48: Weighted average Waste Heat Factor Demand from verified participant data from the MEEIA Cycle 3 PY1-3 portfolio with preference on most recent year of evaluated results if sufficient participation occurred
A49: Business Standard | B49: Remove 8ft Lamp from T8 or T12 System | C49: 110.4 | D49: C&I | E49: Lighting | G49: per lamp | H49: 16 | I49: IL TRM v10 Vol2 | J49: 537 | K49: =ROUND((AF49-AB49)/1000*U49*AS49,4) -> 150.4443 | L49: Calculated Value | N49: =(AF49-AB49)/1000*AW49 -> 0.056287 | O49: 0.56 | P49: PY2 portfolio weighted average | R49: =ROUND(N49*O49,4) -> 0.0315 | S49: Calculated Value | U49: 3088 | V49: IL TRM v10 Vol2 | W49: 533 | X49: 11 | Y49: IL TRM v10 Vol2 | Z49: 537 | AA49: Remove T8 | AB49: 0 | AC49: IL TRM v10 Vol2vol2 | AD49: 537 | AE49: T8 8 ft (watts) | AF49: 47.3 | AG49: IL TRM v10 Vol2 | AH49: 538 | AI49: =ROUND((AF49-AB49)/1000*U49*AS49,4) | AJ49: =ROUND(N49*O49,4) | AK49: IL TRM v10 Vol2 | AL49: 347348 | AM49: 2023-01-01 | AN49: 2023-12-31 | AS49: 1.03 | AT49: Waste Heat Factor Energy | AU49: PY2 portfolio weighted average | AW49: 1.19 | AX49: Waste Heat Factor Demand | AY49: PY2 portfolio weighted average
A50: Business Standard | B50: Remove 8ft Lamp from T8 or T12 System | C50: 110.5 | D50: C&I | E50: Lighting | G50: per lamp | H50: 16 | I50: IL TRM V11 Vol2 | J50: 641 | K50: 162.1293 | L50: Calculated Value | N50: 0.060544 | O50: 0.71381353 | P50: Weighted average peak coincident factor from verified participant data from the MEEIA Cycle 3 PY1-3 portfolio with preference on most recent year of evaluated results if sufficient participation occurred | R50: 0.0432 | S50: Calculated Value | U50: 3088 | V50: IL TRM V11 Vol2 | W50: 637 | X50: 11 | Y50: IL TRM V11 Vol2 | Z50: 641 | AA50: Remove T8 | AB50: 0 | AC50: IL TRM V11 Vol2 | AD50: 641 | AE50: T8 8 ft (watts) | AF50: 47.3 | AG50: IL TRM v11 Vol2 | AI50: =ROUND((AF50-AB50)/1000*U50*AS50,4) | AJ50: =ROUND(N50*O50,4) | AK50: IL TRM V11 Vol2 | AL50: 642643 | AM50: 2024-01-01 | AS50: 1.11 | AT50: Waste Heat Factor Energy | AU50: Weighted average Waste Heat Factor Energy from verified participant data from the MEEIA Cycle 3 PY1-3 portfolio with preference on most recent year of evaluated results if sufficient participation occurred | AW50: 1.28 | AX50: Waste Heat Factor Demand | AY50: Weighted average Waste Heat Factor Demand from verified participant data from the MEEIA Cycle 3 PY1-3 portfolio with preference on most recent year of evaluated results if sufficient participation occurred
A51: Business Standard | B51: Interior Omnidirectional LED Lamp replacing 40-60W Lamp | C51: 112.4 | D51: C&I | E51: Lighting | G51: per lamp | H51: 8 | I51: IL TRM v6 vol2 | J51: 370 | K51: =ROUND((AF51-AB51)/1000*U51*AS51,4) -> 178.2996 | L51: Calculated Value | N51: =(AF51-AB51)/1000*AW51 -> 0.054873 | O51: 0.6193 | P51: IL TRM v6 vol2 | Q51: 337-338 (portfolio weighted average) | R51: =ROUND(N51*O51,4) -> 0.034 | S51: Calculated Value | U51: 3088 | V51: IL TRM v6 vol2 | W51: 338 | X51: 15 | Y51: IL TRM v6 vol2 | Z51: 363 | AA51: LED (watts) | AB51: 9.05 | AC51: Weighted average efficient wattage ratings from verified participant data from the MEEIA Cycle 1 -2 portfolio with preference on most recent year of evaluated results if sufficient participation occurred | AE51: EISA tier 1 compliant Halogen (watts) | AF51: 50 | AH51: Midpoint Value | AI51: =ROUND((AF51-AB51)/1000*U51*AS51,4) | AJ51: =ROUND(N51*O51,4) | AK51: IL TRM v6 vol2 | AL51: 364,368 | AM51: 2020-01-01 | AS51: 1.41 | AT51: Waste Heat Factor Energy | AU51: IL TRM v6 vol2 | AV51: 337-338 (portfolio weighted average) | AW51: 1.34 | AX51: Waste Heat Factor Demand | AY51: IL TRM v6 vol2 | AZ51: 337-338 (portfolio weighted average)
A52: Business Standard | B52: Interior Omnidirectional LED Lamp replacing 61-100W Lamp | C52: 113.4 | D52: C&I | E52: Lighting | G52: per lamp | H52: 12 | I52: IL TRM v6 vol2 | J52: 370 | K52: =ROUND((AF52-AB52)/1000*U52*AS52,4) -> 300.4315 | L52: Calculated Value | N52: =(AF52-AB52)/1000*AW52 -> 0.09246 | O52: 0.6193 | P52: IL TRM v6 vol2 | Q52: 337-338 (portfolio weighted average) | R52: =ROUND(N52*O52,4) -> 0.0573 | S52: Calculated Value | U52: 3088 | V52: IL TRM v6 vol2 | W52: 338 | X52: 15 | Y52: IL TRM v6 vol2 | Z52: 363 | AA52: LED (watts) | AB52: 11 | AC52: Weighted average efficient wattage ratings from verified participant data from the MEEIA Cycle 1 -2 portfolio with preference on most recent year of evaluated results if sufficient participation occurred | AE52: EISA tier 1 compliant Halogen (watts) | AF52: 80 | AH52: Midpoint Value | AI52: =ROUND((AF52-AB52)/1000*U52*AS52,4) | AJ52: =ROUND(N52*O52,4) | AK52: IL TRM v6 vol2 | AL52: 364,368 | AM52: 2020-01-01 | AS52: 1.41 | AT52: Waste Heat Factor Energy | AU52: IL TRM v6 vol2 | AV52: 337-338 (portfolio weighted average) | AW52: 1.34 | AX52: Waste Heat Factor Demand | AY52: IL TRM v6 vol2 | AZ52: 337-338 (portfolio weighted average)
A53: Business Standard | B53: Interior Daylighting Controls Replacing No Controls | C53: 114.5 | D53: C&I | E53: Lighting | G53: per sensor | H53: 50 | I53: IL TRM v10 Vol2 | J53: 600 | K53: =ROUND(AB53/1000*AS53*U53*BA53,4) -> 547.0577 | L53: Calculated Value | N53: =AB53/1000*AW53*BA53 -> 0.209076 | O53: 0.69 | P53: PY2 portfolio weighted average | R53: =ROUND(AB53/1000*AW53*(O53-BE53),4) -> 0.4032 | S53: Calculated Value | U53: 3088 | V53: IL TRM v10 Vol2 | W53: 533 | X53: 15 | Y53: IL TRM v10 Vol2 | Z53: 599 | AA53: Photocell Occupancy Sensor (watts controlled) | AB53: 570 | AC53: Based on measure name: Wall-Mount Daylight Sensor Controlling >= 570W | AE53: No Control | AG53: IL TRM v10 Vol2 | AH53: 599 | AI53: =ROUND(AB53/1000*AS53*U53*BA53,4) | AJ53: =ROUND(AB53/1000*AW53*(O53-BE53),4) | AK53: IL TRM v10 Vol2 | AL53: 601604 | AM53: 2023-01-01 | AN53: 2023-12-31 | AS53: 1.11 | AT53: Waste Heat Factor Energy | AU53: PY2 portfolio weighted average | AW53: 1.31 | AX53: Waste Heat Factor Demand | AY53: PY2 portfolio weighted average | BA53: 0.28 | BB53: ESF | BC53: IL TRM v10 Vol2 | BD53: 603 | BE53: 0.15 | BF53: CF of occupancy sensor | BG53: IL TRM v10 vol2 | BH53: 604
A54: Business Standard | B54: Interior Daylighting Controls Replacing No Controls | C54: 114.6 | D54: C&I | E54: Lighting | G54: per sensor | H54: 50 | I54: IL TRM V11 Vol2 | J54: 708 | K54: =ROUND(AB54/1000*AS54*U54*BA54,4) -> 537.2008 | L54: Calculated Value | N54: =AB54/1000*AW54*BA54 -> 0.218652 | O54: 0.6786523073 | P54: Weighted average peak coincident factor from verified participant data from the MEEIA Cycle 3 PY1-3 portfolio with preference on most recent year of evaluated results if sufficient participation occurred | R54: =ROUND(AB54/1000*AW54*(O54-BE54),4) -> 0.4128 | S54: Calculated Value | U54: 3088 | V54: IL TRM V11 Vol2 | W54: 637 | X54: 15 | Y54: IL TRM V11 Vol2 | Z54: 707 | AA54: Photocell Occupancy Sensor (watts controlled) | AB54: 570 | AC54: Based on measure name: Wall-Mount Daylight Sensor Controlling >= 570W | AE54: No Control | AG54: IL TRM v10 Vol2 | AH54: 599 | AI54: =ROUND(AB54/1000*AS54*U54*BA54,4) | AJ54: =ROUND(AB54/1000*AW54*(O54-BE54),4) | AK54: IL TRM V11 Vol2 | AL54: 709, 712 | AM54: 2024-01-01 | AS54: 1.09 | AT54: Waste Heat Factor Energy | AU54: Weighted average Waste Heat Factor Energy from verified participant data from the MEEIA Cycle 3 PY1-3 portfolio with preference on most recent year of evaluated results if sufficient participation occurred | AW54: 1.37 | AX54: Waste Heat Factor Demand | AY54: Weighted average Waste Heat Factor Demand from verified participant data from the MEEIA Cycle 3 PY1-3 portfolio with preference on most recent year of evaluated results if sufficient participation occurred | BA54: 0.28 | BB54: ESF | BC54: IL TRM V11 Vol2 | BD54: 711 | BE54: 0.15 | BF54: CF of occupancy sensor | BG54: IL TRM V11 Vol2 | BH54: 712
A55: Business Standard | B55: Interior Occupancy or Vacancy Sensor Replacing No Controls | C55: 115.5 | D55: C&I | E55: Lighting | G55: per sensor | H55: 55 | I55: IL TRM v10 Vol2 | J55: 600 | K55: =ROUND(AB55/1000*AS55*U55*BA55,4) -> 389.5203 | L55: Calculated Value | N55: =AB55/1000*AW55*BA55 -> 0.13804 | O55: 0.66 | P55: PY2 portfolio weighted average | R55: =ROUND(AB55/1000*AW55*(O55-BE55),4) -> 0.2514 | S55: Calculated Value | U55: 3088 | V55: IL TRM v10 Vol2 | W55: 533 | X55: 15 | Y55: IL TRM v10 Vol2 | Z55: 599 | AA55: Wall-Mount Occupancy Sensor (watts controlled) | AB55: 425 | AC55: Based on measure name: Remote or Wall-Mounted Occupancy Sensor Controlling >= 425W | AE55: No Control | AG55: IL TRM v10 Vol2 | AH55: 599 | AI55: =ROUND(AB55/1000*AS55*U55*BA55,4) | AJ55: =ROUND(AB55/1000*AW55*(O55-BE55),4) | AK55: IL TRM v10 Vol2 | AL55: 601604 | AM55: 2023-01-01 | AN55: 2023-12-31 | AS55: 1.06 | AT55: Waste Heat Factor Energy | AU55: PY2 portfolio weighted average | AW55: 1.16 | AX55: Waste Heat Factor Demand | AY55: PY2 portfolio weighted average | BA55: 0.28 | BB55: ESF | BC55: IL TRM v10 Vol2 | BD55: 603 | BE55: 0.15 | BF55: CF of occupancy sensor | BG55: IL TRM v10 vol2 | BH55: 604
A56: Business Standard | B56: Interior Occupancy or Vacancy Sensor Replacing No Controls | C56: 115.6 | D56: C&I | E56: Lighting | G56: per sensor | H56: 55 | I56: IL TRM V11 Vol2 | J56: 708 | K56: =ROUND(AB56/1000*AS56*U56*BA56,4) -> 393.195 | L56: Calculated Value | N56: =AB56/1000*AW56*BA56 -> 0.14875 | O56: 0.6191715202 | P56: Weighted average peak coincident factor from verified participant data from the MEEIA Cycle 3 PY1-3 portfolio with preference on most recent year of evaluated results if sufficient participation occurred | R56: =ROUND(AB56/1000*AW56*(O56-BE56),4) -> 0.2492 | S56: Calculated Value | U56: 3088 | V56: IL TRM V11 Vol2 | W56: 636 | X56: 15 | Y56: IL TRM V11 Vol2 | Z56: 707 | AA56: Wall-Mount Occupancy Sensor (watts controlled) | AB56: 425 | AC56: Based on measure name: Remote or Wall-Mounted Occupancy Sensor Controlling >= 425W | AE56: No Control | AG56: IL TRM V11 Vol2 | AH56: 707 | AI56: =ROUND(AB56/1000*AS56*U56*BA56,4) | AJ56: =ROUND(AB56/1000*AW56*(O56-BE56),4) | AK56: IL TRM V11 Vol2 | AL56: 709, 712 | AM56: 2024-01-01 | AS56: 1.07 | AT56: Waste Heat Factor Energy | AU56: Weighted average Waste Heat Factor Energy from verified participant data from the MEEIA Cycle 3 PY1-3 portfolio with preference on most recent year of evaluated results if sufficient participation occurred | AW56: 1.25 | AX56: Waste Heat Factor Demand | AY56: Weighted average Waste Heat Factor Demand from verified participant data from the MEEIA Cycle 3 PY1-3 portfolio with preference on most recent year of evaluated results if sufficient participation occurred | BA56: 0.28 | BB56: ESF | BC56: IL TRM V11 Vol2 | BD56: 711 | BE56: 0.15 | BF56: CF of occupancy sensor | BG56: IL TRM V11 Vol2 | BH56: 712
A57: Business Standard | B57: High Volume Low Speed Fans (20ft Diameter) | C57: 116.1 | D57: C&I | E57: Pumps/Fans | G57: per fan | H57: 4150 | I57: IL TRM v6 vol2 | J57: 9 | K57: =ROUND(6577,4) -> 6577 | L57: IL TRM v6 vol2 | M57: 9 | R57: =ROUND(2.4,4) -> 2.4 | S57: IL TRM v6 vol2 | T57: 10 | X57: 10 | Y57: IL TRM v6 vol2 | Z57: 9 | AI57: =ROUND(6577,4) | AJ57: =ROUND(2.4,4) | AK57: IL TRM v6 vol2 | AL57: 9,10 | AM57: 2020-01-01
A58: Business Standard | B58: High Volume Low Speed Fans (22ft Diameter) | C58: 117.1 | D58: C&I | E58: Pumps/Fans | G58: per fan | H58: 4180 | I58: IL TRM v6 vol2 | J58: 9 | K58: =ROUND(8543,4) -> 8543 | L58: IL TRM v6 vol2 | M58: 10 | R58: =ROUND(3.1,4) -> 3.1 | S58: IL TRM v6 vol2 | T58: 10 | X58: 10 | Y58: IL TRM v6 vol2 | Z58: 9 | AI58: =ROUND(8543,4) | AJ58: =ROUND(3.1,4) | AK58: IL TRM v6 vol2 | AL58: 9,10 | AM58: 2020-01-01
A59: Business Standard | B59: High Volume Low Speed Fans (24ft Diameter) | C59: 118.1 | D59: C&I | E59: Pumps/Fans | G59: per fan | H59: 4225 | I59: IL TRM v6 vol2 | J59: 9 | K59: =ROUND(10018,4) -> 10018 | L59: IL TRM v6 vol2 | M59: 10 | R59: =ROUND(3.7,4) -> 3.7 | S59: IL TRM v6 vol2 | T59: 10 | X59: 10 | Y59: IL TRM v6 vol2 | Z59: 9 | AI59: =ROUND(10018,4) | AJ59: =ROUND(3.7,4) | AK59: IL TRM v6 vol2 | AL59: 9,10 | AM59: 2020-01-01
A60: Business Standard | B60: High Volume Low Speed Fans (16-24ft Diameter) | C60: 712 | D60: C&I | E60: Pumps/Fans | G60: per ft | H60: 51.48 | I60: Focus on Energy 2022 TRM | J60: 33 | K60: =ROUND(((AS60-AW60)/1000*U60)/BA60, 4) -> 815.787 | L60: Focus on Energy 2022 TRM | M60: 34 | O60: 1 | P60: Focus on Energy 2022 TRM | Q60: 34 | R60: =ROUND(((AS60-AW60)/1000*O60)/BA60, 4) -> 0.2111 | S60: Focus on Energy 2022 TRM | T60: 34 | U60: 3864 | V60: Focus on Energy 2022 TRM | W60: 34 | X60: 15 | Y60: Focus on Energy 2022 TRM | Z60: 33 | AA60: HVLS fan from 16-24 ft in diameter | AC60: Focus on Energy 2022 TRM | AD60: 34 | AE60: Multiple 4' diameter high speed fans of equivalent total diameter | AG60: Focus on Energy 2022 TRM | AH60: 34 | AI60: =ROUND(((AS60-AW60)/1000*U60)/BA60, 4) | AJ60: =ROUND(((AS60-AW60)/1000*O60)/BA60, 4) | AK60: Focus on Energy 2022 TRM | AL60: 34 | AM60: 2024-01-01 | AS60: 6186 | AT60: Watts_high speed | AU60: Focus on Energy 2022 TRM | AV60: 34 | AW60: 1119 | AX60: Watts_HVLS | AY60: Focus on Energy 2022 TRM | AZ60: 34 | BA60: 24 | BB60: HVLS_diameter (ft) | BC60: Focus on Energy 2022 TRM | BD60: 34
A61: Business Standard | B61: Compressed Air - Engineered Nozzle 1/4" | C61: 119.1 | D61: C&I | E61: Pumps/Fans | G61: per unit | H61: 57 | I61: IL TRM v6 vol2 | J61: 472 | K61: =ROUND(1086.638,4) -> 1086.638 | L61: Calculated Value | R61: =ROUND(0.511,4) -> 0.511 | S61: Calculated Value | X61: 15 | Y61: IL TRM v6 vol2 | Z61: 472 | AI61: =ROUND(1086.638,4) | AJ61: =ROUND(0.511,4) | AK61: IL TRM v6 vol2 | AL61: 473474 | AM61: 2020-01-01
A62: Business Standard | B62: Compressed Air - Engineered Nozzle 1/8" | C62: 120.2 | D62: C&I | E62: Pumps/Fans | G62: per unit | H62: 42 | I62: IL TRM v6 vol2 | J62: 472 | K62: =ROUND(AS62*AB62*AW62*BA62*BE62,4) -> 272.688 | L62: IL TRM v7 vol2 | M62: 550 | O62: 0.95 | P62: IL TRM v7 vol2 | Q62: 552 | R62: =ROUND(K62/BE62*O62,4) -> 0.0656 | S62: IL TRM v7 vol2 | T62: 552 | X62: 15 | Y62: IL TRM v6 vol2 | Z62: 472 | AA62: SCFM%Reduced | AB62: 0.5 | AC62: IL TRM v7 vol2 | AD62: 551 | AI62: =ROUND(AS62*AB62*AW62*BA62*BE62,4) | AJ62: =ROUND(K62/BE62*O62,4) | AK62: IL TRM v6 vol2 | AL62: 473474 | AM62: 2021-01-01 | AS62: 21 | AT62: SCFM | AU62: IL TRM v7 vol2 | AV62: 551 | AW62: =AVERAGE(0.18,0.14,0.15,0.06,0.06,0.15,0.18) -> 0.1314285714 | AX62: kW/CFM | AY62: IL TRM v7 vol2 | AZ62: 551 | BA62: 0.05 | BB62: %Use | BC62: IL TRM v7 vol2 | BD62: 551 | BE62: 3952 | BF62: Hours (two shifts) | BG62: IL TRM v7 vol2 | BH62: 551
A63: Business Standard | B63: Compressed Air - No Loss Condensate Drain/Valve | C63: 121.3 | D63: C&I | E63: Pumps/Fans | G63: per unit | H63: 700 | I63: IL TRM v6 vol2 | J63: 470 | K63: =ROUND(AS63*AW63*U63,4) -> 1969.656 | L63: Calculated Value | N63: =ROUND(K63/U63,4) -> 0.321 | O63: 0.95 | P63: IL TRM v6 Vol2 | Q63: 470 | R63: =ROUND(K63/U63*O63,4) -> 0.305 | S63: Calculated Value | U63: 6136 | V63: IL TRM v6 Vol2 | W63: 471 | X63: 10 | Y63: IL TRM v6 Vol2 | Z63: 470 | AI63: =ROUND(AS63*AW63*U63,4) | AJ63: =ROUND(K63/U63*O63,4) | AK63: IL TRM v6 Vol2 | AL63: 470, 471 | AM63: 2020-05-01 | AS63: 3 | AT63: CFM Reduced | AU63: IL TRM v6 Vol2 | AV63: 470 | AW63: 0.107 | AX63: kW/CFM | AY63: IL TRM v6 Vol2 | AZ63: 471
A64: Business Standard | B64: Variable Speed Drive Compressor - 1 shift weekdays | C64: 122.1 | D64: C&I | E64: Pumps/Fans | G64: per HP | H64: 140.37 | I64: IL TRM v6 vol2 | J64: 466 | K64: =ROUND(BA64*(AS64-AW64)*U64,4) -> 329.004 | L64: Calculated Value | N64: =ROUND(K64/U64,4) -> 0.1665 | O64: 0.95 | P64: IL TRM v6 Vol2 | Q64: 464 | R64: =ROUND(K64/U64*O64,4) -> 0.1582 | S64: Calculated Value | U64: 1976 | V64: IL TRM v6 Vol2 | W64: 465 | X64: 10 | Y64: IL TRM v6 vol2 | Z64: 466 | AI64: =ROUND(BA64*(AS64-AW64)*U64,4) | AJ64: =ROUND(K64/U64*O64,4) | AK64: IL TRM v6 vol2 | AL64: 465, 466 | AM64: 2020-01-01 | AN64: 2023-12-31 | AS64: 0.89 | AT64: Baseline Compressor Factor | AU64: IL TRM v6 Vol2 | AV64: 465 | AW64: 0.705 | AX64: Efficient Compressor Factor | AY64: IL TRM v6 Vol2 | AZ64: 465 | BA64: 0.9 | BB64: Nominal HP to full load kW conversion factor | BC64: IL TRM v6 Vol2 | BD64: 465
A65: Business Standard | B65: Variable Speed Drive Compressor - 1 shift weekdays | C65: 122.2 | D65: C&I | E65: Pumps/Fans | G65: per HP | H65: 100.93 | I65: WI TRM 2022 | J65: 135 | K65: =ROUND(BA65*(AS65-AW65)*U65,4) -> 310.6223 | L65: Calculated Value | N65: =ROUND(K65/U65,4) -> 0.1572 | O65: 0.95 | P65: IL TRM v11 Vol2 | Q65: 792 | R65: =ROUND(K65/U65*O65,4) -> 0.1493 | S65: Calculated Value | U65: 1976 | V65: IL TRM v11 Vol2 | W65: 791 | X65: 13 | Y65: IL TRM v11 vol2 | Z65: 790 | AI65: =ROUND(BA65*(AS65-AW65)*U65,4) | AJ65: =ROUND(K65/U65*O65,4) | AK65: IL TRM V11, Vol 2 | AL65: 791, 792 | AM65: 2024-01-01 | AS65: 0.8404233491 | AT65: Baseline Compressor Factor | AU65: IL TRM V11, Vol 2 | AV65: 792 | AW65: 0.665759434 | AX65: Efficient Compressor Factor | AY65: IL TRM V11, Vol 2 | AZ65: 792 | BA65: 0.9 | BB65: Nominal HP to full load kW conversion factor | BC65: IL TRM v11 Vol2 | BD65: 791
A66: Business Standard | B66: Variable Speed Drive Compressor - 2 shift weekdays | C66: 123.2 | D66: C&I | E66: Pumps/Fans | G66: per HP | H66: =((((127*50)+1446)*1.24)/50) -> 193.3408 | I66: IL TRM v10 Vol2(weighted by PY2 tracking data) | J66: 681 | K66: 611.7696 | L66: Calculated Value | N66: =ROUND(K66/U66,4) -> 0.1548 | O66: 0.75 | P66: Indiana TRM v1 | Q66: 171-172 (portfolio weighted average) | R66: =ROUND(K66/U66*O66,4) -> 0.1161 | S66: Calculated Value | U66: 3952 | V66: Indiana TRM v1 | W66: 682 | X66: 13 | Y66: IL TRM v10 Vol2 | Z66: 681 | AI66: =ROUND(BA66*(AS66-AW66)*U66,4) | AJ66: =ROUND(K66/U66*O66,4) | AK66: IL TRM v10 Vol2 | AL66: 682683 | AM66: 2023-01-01 | AN66: 2023-12-31 | AS66: =AVERAGE(0.836,0.887,0.811,0.786) -> 0.83 | AT66: Baseline Compressor Factor | AU66: IL TRM v10 Vol2 | AV66: 683 | AW66: 0.658 | AX66: Efficient Compressor Factor | AY66: IL TRM v10 Vol2 | AZ66: 683 | BA66: 0.9 | BB66: Nominal HP to full load kW conversion factor | BC66: IL TRM v10 Vol2 | BD66: 682
A67: Business Standard | B67: Variable Speed Drive Compressor - 2 shift weekdays | C67: 123.3 | D67: C&I | E67: Pumps/Fans | G67: per HP | H67: 100.93 | I67: WI TRM 2022 | J67: 135 | K67: 608.5685 | L67: Calculated Value | N67: 0.154 | O67: 0.95 | P67: IL TRM v11 Vol2 | Q67: 792 | R67: 0.1463 | S67: Calculated Value | U67: 3952 | V67: IL TRM v11 Vol2 | W67: 791 | X67: 13 | Y67: IL TRM v11 vol2 | Z67: 790 | AI67: =ROUND(BA67*(AS67-AW67)*U67,4) | AJ67: =ROUND(K67/U67*O67,4) | AK67: IL TRM V11, Vol 2 | AL67: 791, 792 | AM67: 2024-01-01 | AS67: =ROUND(0.843614361702128,4) -> 0.8436 | AT67: Baseline Compressor Factor | AU67: IL TRM V11, Vol 2 | AV67: 792 | AW67: =ROUND(0.6725,4) -> 0.6725 | AX67: Efficient Compressor Factor | AY67: IL TRM V11, Vol 2 | AZ67: 792 | BA67: 0.9 | BB67: Nominal HP to full load kW conversion factor | BC67: IL TRM v11 Vol2 | BD67: 791
A68: Business Standard | B68: Variable Speed Drive Compressor - 3 shift weekdays | C68: 124.1 | D68: C&I | E68: Pumps/Fans | G68: per HP | H68: 140.37 | I68: IL TRM v6 vol2 | J68: 466 | K68: 987.012 | L68: Calculated Value | N68: =ROUND(K68/U68,4) -> 0.1665 | O68: 0.95 | P68: IL TRM v6 Vol2 | Q68: 464 | R68: =ROUND(K68/U68*O68,4) -> 0.1582 | S68: Calculated Value | U68: 5928 | V68: IL TRM v6 Vol2 | W68: 465 | X68: 10 | Y68: IL TRM v6 vol2 | Z68: 466 | AI68: =ROUND(BA68*(AS68-AW68)*U68,4) | AJ68: =ROUND(K68/U68*O68,4) | AK68: IL TRM v6 vol2 | AL68: 465, 466 | AM68: 2020-01-01 | AN68: 2023-12-31 | AS68: 0.89 | AT68: Baseline Compressor Factor | AU68: IL TRM v6 Vol2 | AV68: 465 | AW68: 0.705 | AX68: Efficient Compressor Factor | AY68: IL TRM v6 Vol2 | AZ68: 465 | BA68: 0.9 | BB68: Nominal HP to full load kW conversion factor | BC68: IL TRM v6 Vol2 | BD68: 465
A69: Business Standard | B69: Variable Speed Drive Compressor - 3 shift weekdays | C69: 124.2 | D69: C&I | E69: Pumps/Fans | G69: per HP | H69: 100.93 | I69: WI TRM 2022 | J69: 135 | K69: =ROUND(BA69*(AS69-AW69)*U69,4) -> 931.8669 | L69: Calculated Value | N69: =ROUND(K69/U69,4) -> 0.1572 | O69: 0.95 | P69: IL TRM v11 Vol2 | Q69: 792 | R69: =ROUND(K69/U69*O69,4) -> 0.1493 | S69: Calculated Value | U69: 5928 | V69: IL TRM v11 Vol2 | W69: 791 | X69: 13 | Y69: IL TRM v11 vol2 | Z69: 790 | AI69: =ROUND(BA69*(AS69-AW69)*U69,4) | AJ69: =ROUND(K69/U69*O69,4) | AK69: IL TRM V11, Vol 2 | AL69: 791, 792 | AM69: 2024-01-01 | AS69: 0.8404233491 | AT69: Baseline Compressor Factor | AU69: IL TRM V11, Vol 2 | AV69: 792 | AW69: 0.665759434 | AX69: Efficient Compressor Factor | AY69: IL TRM V11, Vol 2 | AZ69: 792 | BA69: 0.9 | BB69: Nominal HP to full load kW conversion factor | BC69: IL TRM v11 Vol2 | BD69: 791
A70: Business Standard | B70: Variable Speed Drive Compressor - 3 shift weekdays plus weekends | C70: 125.1 | D70: C&I | E70: Pumps/Fans | G70: per HP | H70: 140.37 | I70: IL TRM v6 vol2 | J70: 466 | K70: 1385.28 | L70: Calculated Value | N70: =ROUND(K70/U70,4) -> 0.1665 | O70: 0.95 | P70: IL TRM v6 Vol2 | Q70: 464 | R70: =ROUND(K70/U70*O70,4) -> 0.1582 | S70: Calculated Value | U70: 8320 | V70: IL TRM v6 Vol2 | W70: 465 | X70: 10 | Y70: IL TRM v6 vol2 | Z70: 466 | AI70: =ROUND(BA70*(AS70-AW70)*U70,4) | AJ70: =ROUND(K70/U70*O70,4) | AK70: IL TRM v6 vol2 | AL70: 465, 466 | AM70: 2020-01-01 | AN70: 2023-12-31 | AS70: 0.89 | AT70: Baseline Compressor Factor | AU70: IL TRM v6 Vol2 | AV70: 465 | AW70: 0.705 | AX70: Efficient Compressor Factor | AY70: IL TRM v6 Vol2 | AZ70: 465 | BA70: 0.9 | BB70: Nominal HP to full load kW conversion factor | BC70: IL TRM v6 Vol2 | BD70: 465
A71: Business Standard | B71: Variable Speed Drive Compressor - 3 shift weekdays plus weekends | C71: 125.2 | D71: C&I | E71: Pumps/Fans | G71: per HP | H71: 100.93 | I71: WI TRM 2022 | J71: 135 | K71: 1329.12 | L71: Calculated Value | N71: =ROUND(K71/U71,4) -> 0.1598 | O71: 0.95 | P71: IL TRM v11 Vol2 | Q71: 792 | R71: =ROUND(K71/U71*O71,4) -> 0.1518 | S71: Calculated Value | U71: 8320 | V71: IL TRM v11 Vol2 | W71: 791 | X71: 13 | Y71: IL TRM v11 vol2 | Z71: 790 | AI71: =ROUND(BA71*(AS71-AW71)*U71,4) | AJ71: =ROUND(K71/U71*O71,4) | AK71: IL TRM V11, Vol 2 | AL71: 791, 792 | AM71: 2024-01-01 | AS71: =ROUND(0.837881355932203,4) -> 0.8379 | AT71: Baseline Compressor Factor | AU71: IL TRM V11, Vol 2 | AV71: 792 | AW71: =ROUND(0.660389830508475,4) -> 0.6604 | AX71: Efficient Compressor Factor | AY71: IL TRM V11, Vol 2 | AZ71: 792 | BA71: 0.9 | BB71: Nominal HP to full load kW conversion factor | BC71: IL TRM v11 Vol2 | BD71: 791
A72: Business Standard | B72: Advanced Rooftop Unit Controls, 2000-4000 annual hours occupancy | C72: 137.2 | D72: C&I | E72: HVAC | G72: Per Unit | H72: 3412.06 | I72: IL TRM v7 vol2 | J72: 351 | K72: =ROUND(AS72*BA72,4) -> 1062.2 | L72: Calculated Value | O72: 0.913 | P72: IL TRM v7 vol2 | Q72: 351 | R72: =ROUND(AW72*BA72,4) -> 0.366 | S72: Calculated Value | X72: 10 | Y72: IL TRM v7 vol2 | Z72: 350 | AA72: RTU DCV controls with VFD and 2-speed fan control | AC72: IL TRM v7 vol2 | AD72: 354 | AE72: No RTU DCV controls | AG72: IL TRM v7 vol2 | AH72: 354 | AI72: =ROUND(AS72*BA72,4) | AJ72: =ROUND(AW72*BA72,4) | AK72: IL TRM v7 vol3 | AL72: 353, 355 | AM72: 2020-05-01 | AS72: 1062.2 | AT72: Normalized Electric Energy Savings (kWh/ton) - Springfield - Office Low Rise (update this value as needed per building type in Table 4) | AU72: IL TRM v7 vol2 | AV72: 354 | AW72: 0.366 | AX72: Normalized peak electric demand savings (kW/ton) - Springfield Office Low-Rise (update this value as needed per building type in Table 4) | AY72: IL TRM v7 vol2 | AZ72: 355 | BA72: 1 | BB72: Cooling equipment tonnage (update this value as needed per equipment specifications)
A73: Business Standard | B73: Advanced Rooftop Unit Controls, > 4000 annual hours occupancy | C73: 138.2 | D73: C&I | E73: HVAC | G73: per unit | H73: 3412.06 | I73: IL TRM v7 vol2 | J73: 351 | K73: =ROUND(AS73*BA73,4) -> 649.7475 | L73: Calculated Value | O73: 0.913 | P73: IL TRM v7 vol2 | Q73: 351 | R73: =ROUND(AW73*BA73,4) -> 0.1862 | S73: Calculated Value | X73: 10 | Y73: IL TRM v7 vol2 | Z73: 350 | AA73: RTU DCV controls with VFD and 2-speed fan control | AC73: IL TRM v7 vol2 | AD73: 354 | AE73: No RTU DCV controls | AG73: IL TRM v7 vol2 | AH73: 354 | AI73: =ROUND(AS73*BA73,4) | AJ73: =ROUND(AW73*BA73,4) | AK73: IL TRM v7 vol3 | AL73: 353, 355 | AM73: 2020-05-01 | AS73: 649.7474993 | AT73: Normalized Electric Energy Savings (kWh/ton) - multi-variable regression based on the CDD and HDD to extrapolate savings values for the KC climate | AU73: IL TRM v7 vol2 | AV73: 354 | AW73: 0.1862173914 | AX73: Normalized peak electric demand savings (kW/ton) - multi-variable regression based on the CDD and HDD to extrapolate savings values for the KC climate | AY73: IL TRM v7 vol2 | AZ73: 355 | BA73: 1 | BB73: Cooling equipment tonnage (update this value as needed per equipment specifications)
A74: Business Standard | B74: Variable Speed ECM Pump, <100 Watts Max Input, Domestic Hot Water Recirculation | C74: 139.1 | D74: C&I | E74: Pumps/Fans | G74: per pump | H74: 690.79 | I74: WI TRM 2018 | J74: 937 | K74: =ROUND((AS74/1000*(BA74*BI74+BE74*BM74) - (AW74/1000*BE74)),4) -> 1312.0947 | L74: Calculated Value | O74: 1 | P74: WI TRM 2018 | Q74: 221 | R74: =ROUND((AS74-AW74)/1000*O74,4) -> 0.228 | S74: Calculated Value | X74: 15 | Y74: WI TRM 2018 | Z74: 218 | AI74: =ROUND((AS74/1000*(BA74*BI74+BE74*BM74) - (AW74/1000*BE74)),4) | AJ74: =ROUND((AS74-AW74)/1000*O74,4) | AK74: WI TRM 2018 | AL74: 220, 221 | AM74: 2020-01-01 | AS74: 278 | AT74: Watts Base | AU74: WI TRM 2018 | AV74: 220 | AW74: 50 | AX74: Watts EE | AY74: WI TRM 2018 | AZ74: 220 | BA74: 8760 | BB74: HOU uncontrolled | BC74: WI TRM 2018 | BD74: 221 | BE74: 2190 | BF74: HOU controlled | BG74: WI TRM 2018 | BH74: 221 | BI74: 0.445 | BJ74: Constant | BK74: WI TRM 2018 | BL74: 221 | BM74: 0.555 | BN74: Constant | BO74: WI TRM 2018 | BP74: 221
A75: Business Standard | B75: Variable Speed ECM Pump, 100 - 500 Watts Max Input, Domestic Hot Water Recirculation | C75: 140.1 | D75: C&I | E75: Pumps/Fans | G75: per pump | H75: 1324.75 | I75: WI TRM 2018 | J75: 937 | K75: =ROUND((AS75/1000*(BA75*BI75+BE75*BM75) - (AW75/1000*BE75)),4) -> 6555.3599 | L75: Calculated Value | O75: 1 | P75: WI TRM 2018 | Q75: 221 | R75: =ROUND((AS75-AW75)/1000*O75,4) -> 1.139 | S75: Calculated Value | X75: 15 | Y75: WI TRM 2018 | Z75: 218 | AI75: =ROUND((AS75/1000*(BA75*BI75+BE75*BM75) - (AW75/1000*BE75)),4) | AJ75: =ROUND((AS75-AW75)/1000*O75,4) | AK75: WI TRM 2018 | AL75: 220, 221 | AM75: 2020-01-01 | AS75: 1389 | AT75: Watts Base | AU75: WI TRM 2018 | AV75: 220 | AW75: 250 | AX75: Watts EE | AY75: WI TRM 2018 | AZ75: 220 | BA75: 8760 | BB75: HOU uncontrolled | BC75: WI TRM 2018 | BD75: 221 | BE75: 2190 | BF75: HOU controlled | BG75: WI TRM 2018 | BH75: 221 | BI75: 0.445 | BJ75: Constant | BK75: WI TRM 2018 | BL75: 221 | BM75: 0.555 | BN75: Constant | BO75: WI TRM 2018 | BP75: 221
A76: Business Standard | B76: Variable Speed ECM Pump, <100 Watts Max Input, Heating Water Circulation | C76: 142.1 | D76: C&I | E76: Pumps/Fans | G76: per pump | H76: 690.79 | I76: WI TRM 2018 | J76: 222 | K76: =ROUND(359.03,4) -> 359.03 | L76: Calculated Value | R76: =ROUND(0,4) -> 0 | S76: Calculated Value | X76: 15 | Y76: WI TRM 2018 | Z76: 218 | AI76: =ROUND(359.03,4) | AJ76: =ROUND(0,4) | AK76: WI TRM 2018 | AL76: 222 | AM76: 2020-01-01
A77: Business Standard | B77: Variable Speed ECM Pump, 100 - 500 Watts Max Input, Heating Water Circulation | C77: 143.1 | D77: C&I | E77: Pumps/Fans | G77: per pump | H77: 1324.75 | I77: WI TRM 2018 | J77: 222 | K77: =ROUND(1793.58,4) -> 1793.58 | L77: Calculated Value | R77: =ROUND(0,4) -> 0 | S77: Calculated Value | X77: 15 | Y77: WI TRM 2018 | Z77: 218 | AI77: =ROUND(1793.58,4) | AJ77: =ROUND(0,4) | AK77: WI TRM 2018 | AL77: 222 | AM77: 2020-01-01
A78: Business Standard | B78: Variable Speed ECM Pump, >500 Watts Max Input, Heating Water Circulation | C78: 144.1 | D78: C&I | E78: Pumps/Fans | G78: per pump | H78: 1844.58 | I78: WI TRM 2018 | J78: 222 | K78: =ROUND(7174.33,4) -> 7174.33 | L78: Calculated Value | R78: =ROUND(0,4) -> 0 | S78: Calculated Value | X78: 15 | Y78: WI TRM 2018 | Z78: 218 | AI78: =ROUND(7174.33,4) | AJ78: =ROUND(0,4) | AK78: WI TRM 2018 | AL78: 222 | AM78: 2020-01-01
A79: Business Standard | B79: Parking Garage 4ft 3 Lamp T5/T5HO or T8 replacing > 175W Fixture | C79: 146.2 | D79: C&I | E79: Lighting | F79: Annual Operating Hours, Measure Life and CF source: IL TRM | G79: per fixture | H79: 136 | I79: IL TRM v6 vol2 | J79: T8: 356,357 T5:413,414 | K79: =ROUND((AF79-AB79)/1000*U79*AS79,4) -> 902.898 | L79: Calculated Value | N79: =(AF79-AB79)/1000*AW79 -> 0.103 | O79: 1 | P79: IL TRM v6 vol2 | Q79: 337 | R79: =ROUND(N79*O79,4) -> 0.103 | S79: Calculated Value | U79: 8766 | V79: IL TRM v6 vol2 | W79: 337 | X79: 6 | Y79: IL TRM v6 vol2 (calculated value based on lifetime hours) | Z79: 415-416 | AA79: 4-ft 3L to 4L 4' T5, T5HO or T8 | AB79: 155 | AC79: Weighted average efficient wattage ratings from verified participant data from the MEEIA Cycle 1 -2 portfolio with preference on most recent year of evaluated results if sufficient participation occurred | AE79: 200W - 250W HID Fixture | AF79: 258 | AG79: IL TRM v6 vol2 | AH79: 413-414 (portfolio weighted average) | AI79: =ROUND((AF79-AB79)/1000*U79*AS79,4) | AJ79: =ROUND(N79*O79,4) | AK79: IL TRM v6 vol2 | AL79: T8:353,354 T5:411,412 | AM79: 2020-01-01 | AS79: 1 | AT79: Waste Heat Factor Energy | AU79: IL TRM v6 vol2 | AV79: 338 | AW79: 1 | AX79: Waste Heat Factor_Demand | AY79: IL TRM v6 vol2 | AZ79: 338
A80: Business Standard | B80: Parking Garage 4ft 2 Lamp T5/T5HO or T8 replacing 101W-175W Fixture | C80: 147.3 | D80: C&I | E80: Lighting | F80: Annual Operating Hours, Measure Life and CF source: IL TRM | G80: per fixture | H80: 105 | I80: IL TRM v6 vol2 | J80: T8: 356,357 T5:413,414 | K80: =ROUND((AF80-AB80)/1000*U80*AS80,4) -> 578.556 | L80: Calculated Value | N80: =(AF80-AB80)/1000*AW80 -> 0.066 | O80: 1 | P80: IL TRM v6 vol2 | Q80: 337 | R80: =ROUND(N80*O80,4) -> 0.066 | S80: Calculated Value | U80: 8766 | V80: IL TRM v6 vol2 | W80: 337 | X80: 6 | Y80: IL TRM v6 vol2 (calculated value based on lifetime hours) | Z80: 415-416 | AA80: 4-ft 2L to 3L 4' T5, T5HO or T8 | AB80: 84 | AC80: Weighted average efficient wattage ratings from verified participant data from the MEEIA Cycle 1 -2 portfolio with preference on most recent year of evaluated results if sufficient participation occurred | AE80: 125W - 175W HID Fixture | AF80: 150 | AH80: Midpoint Value | AI80: =ROUND((AF80-AB80)/1000*U80*AS80,4) | AJ80: =ROUND(N80*O80,4) | AK80: IL TRM v6 vol2 | AL80: T8:353,354 T5:411,412 | AM80: 2020-01-01 | AS80: 1 | AT80: Waste Heat Factor Energy | AU80: IL TRM v6 vol2 | AV80: 338 | AW80: 1 | AX80: Waste Heat Factor_Demand | AY80: IL TRM v6 vol2 | AZ80: 338
A81: Business Standard | B81: Parking Garage 4ft 1 Lamp T5/T5HO or T8 replacing <= 100W Fixture | C81: 148.2 | D81: C&I | E81: Lighting | F81: Annual Operating Hours, Measure Life and CF source: IL TRM | G81: per fixture | H81: 74 | I81: IL TRM v6 vol2 | J81: T8: 356,357 T5:413,414 | K81: =ROUND((AF81-AB81)/1000*U81*AS81,4) -> 613.62 | L81: Calculated Value | N81: =(AF81-AB81)/1000*AW81 -> 0.07 | O81: 1 | P81: IL TRM v6 vol2 | Q81: 337 | R81: =ROUND(N81*O81,4) -> 0.07 | S81: Calculated Value | U81: 8766 | V81: IL TRM v6 vol2 | W81: 337 | X81: 6 | Y81: IL TRM v6 vol2 (calculated value based on lifetime hours) | Z81: 415-416 | AA81: 4-ft 1L to 2L 4' T5, T5HO or T8 | AB81: 54 | AC81: Program Tracking Data | AE81: ≤ 100 W HID Fixture | AF81: 124 | AG81: Program tracking data | AI81: =ROUND((AF81-AB81)/1000*U81*AS81,4) | AJ81: =ROUND(N81*O81,4) | AK81: IL TRM v6 vol2 | AL81: T8:353,354 T5:411,412 | AM81: 2020-01-01 | AN81: 2023-12-31 | AS81: 1 | AT81: Waste Heat Factor Energy | AU81: IL TRM v6 vol2 | AV81: 338 | AW81: 1 | AX81: Waste Heat Factor_Demand | AY81: IL TRM v6 vol2 | AZ81: 338
A82: Business Standard | B82: Parking Garage 4ft 1 Lamp T5/T5HO or T8 replacing <= 100W Fixture | C82: 148.3 | D82: C&I | E82: Lighting | F82: Annual Operating Hours, Measure Life and CF source: IL TRM | G82: per fixture | H82: 74 | I82: IL TRM v6 vol2 | J82: T8: 356,357 T5:413,414 | K82: =ROUND((AF82-AB82)/1000*U82*AS82,4) -> 631.152 | L82: Calculated Value | N82: =(AF82-AB82)/1000*AW82 -> 0.072 | O82: 1 | P82: IL TRM v6 vol2 | Q82: 337 | R82: =ROUND(N82*O82,4) -> 0.072 | S82: Calculated Value | U82: 8766 | V82: IL TRM v6 vol2 | W82: 337 | X82: 6 | Y82: IL TRM v6 vol2 (calculated value based on lifetime hours) | Z82: 415-416 | AA82: 4-ft 1L to 2L 4' T5, T5HO or T8 | AB82: 54 | AC82: Weighted average efficient wattage ratings from verified participant data from the MEEIA Cycle 1 -2 portfolio with preference on most recent year of evaluated results if sufficient participation occurred | AE82: ≤ 100 W HID Fixture | AF82: 126 | AG82: Based on Historical Averages, provided by TRC in 2021 TRM update cycle | AI82: =ROUND((AF82-AB82)/1000*U82*AS82,4) | AJ82: =ROUND(N82*O82,4) | AK82: IL TRM v6 vol2 | AL82: T8:353,354 T5:411,412 | AM82: 2024-01-01 | AS82: 1 | AT82: Waste Heat Factor Energy | AU82: IL TRM v6 vol2 | AV82: 338 | AW82: 1 | AX82: Waste Heat Factor_Demand | AY82: IL TRM v6 vol2 | AZ82: 338
A83: Business Standard | B83: Interior LED Linear Lamp Replacing 4ft T8, T12, or T5/T5HO Lamp | C83: 166.5 | D83: C&I | E83: Lighting | F83: Annual Operating Hours: Weighted Average IN TRM, Measure Life: IL TRM, CF source: Weighted Average IN TRM | G83: per lamp | H83: =AVERAGE(15,13) -> 14 | I83: IL TRM v10 Vol2 | J83: 564 | K83: =ROUND((AF83-AB83)/1000*U83*AS83,4) -> 66.468 | L83: Calculated Value | N83: =(AF83-AB83)/1000*AW83 -> 0.02545407105 | O83: 0.68 | P83: PY2 portfolio weighted average | R83: =ROUND(N83*O83,4) -> 0.0173 | S83: Calculated Value | U83: 3088 | V83: IL TRM v10 Vol2 | W83: 533 | X83: =50000/U83 -> 16.19170984 | Y83: IL TRM v10 Vol2 (calculated value based on lifetime hours) | Z83: 566 | AA83: 4-ft LED Linear Replacement Lamps | AB83: 14 | AC83: PY2 portfolio weighted average | AE83: 32W 4-ft T8 with Electronic NBF Ballast | AF83: 33.72657787 | AG83: IL TRM v10 Vol2 (Blend of T8, T12, T5 lamp baseline according to measure name) | AH83: 564 | AI83: =ROUND((AF83-AB83)/1000*U83*AS83,4) | AJ83: =ROUND(N83*O83,4) | AK83: IL TRM v10 Vol2 | AL83: 556, 561 | AM83: 2023-01-01 | AN83: 2023-12-31 | AS83: 1.091147872 | AT83: Waste Heat Factor Energy | AU83: PY2 portfolio weighted average | AW83: 1.290343982 | AX83: Waste Heat Factor_Demand | AY83: PY2 portfolio weighted average
A84: Business Standard | B84: Interior LED Linear Lamp Replacing 4ft T8, T12, or T5/T5HO Lamp | C84: 166.6 | D84: C&I | E84: Lighting | F84: Annual Operating Hours: Weighted Average IN TRM, Measure Life: IL TRM, CF source: Weighted Average IN TRM | G84: per lamp | H84: =AVERAGE(15,13) -> 14 | I84: IL TRM V11 Vol2 | J84: 667 | K84: 47.6497 | L84: Calculated Value | N84: 0.01823617053 | O84: 0.6667681751 | P84: Weighted average peak coincident factor from verified participant data from the MEEIA Cycle 3 PY1-3 portfolio with preference on most recent year of evaluated results if sufficient participation occurred | R84: 0.0122 | S84: Calculated Value | U84: 3088 | V84: IL TRM V11 Vol2 | W84: 637 | X84: =40000/U84 -> 12.95336788 | Y84: IL TRM V11 Vol2 (calculated value based on lifetime hours) | Z84: 566 | AA84: 4-ft LED Linear Replacement Lamps | AB84: 14.17217651 | AC84: Weighted average efficient wattage from verified participant data from the MEEIA Cycle 3 PY1-3 portfolio with preference on most recent year of evaluated results if sufficient participation occurred | AE84: 32W 4-ft T8 with Electronic NBF Ballast | AF84: 28.2 | AG84: IL TRM v11 Vol2 | AH84: 667 | AI84: =cellformula(K84) -> =ROUND((AF84-AB84)/1000*U84*AS84,4) | AJ84: =cellformula(R84) -> =ROUND(N84*O84,4) | AK84: IL TRM V11 Vol2 | AL84: 660, 665 | AM84: 2024-01-01 | AS84: 1.1 | AT84: Waste Heat Factor Energy | AU84: Weighted average Waste Heat Factor Energy from verified participant data from the MEEIA Cycle 3 PY1-3 portfolio with preference on most recent year of evaluated results if sufficient participation occurred | AW84: 1.3 | AX84: Waste Heat Factor Demand | AY84: Weighted average Waste Heat Factor Demand from verified participant data from the MEEIA Cycle 3 PY1-3 portfolio with preference on most recent year of evaluated results if sufficient participation occurred
A85: Business Standard | B85: Interior LED Linear Lamp Replacing 2ft T8, T12, or T5/T5HO Lamp | C85: 167.4 | D85: C&I | E85: Lighting | F85: Annual Operating Hours: Weighted Average IN TRM, Measure Life: IL TRM, CF source: Weighted Average IN TRM | G85: per lamp | H85: 13 | I85: IL TRM v10 Vol2 | J85: 564 | K85: =ROUND((AF85-AB85)/1000*U85*AS85,4) -> 28.2326 | L85: Calculated Value | N85: =(AF85-AB85)/1000*AW85 -> 0.01077828924 | O85: 0.69 | P85: PY2 portfolio weighted average | R85: =ROUND(N85*O85,4) -> 0.0074 | S85: Calculated Value | U85: 3088 | V85: IL TRM v10 Vol2 | W85: 533 | X85: =50000/U85 -> 16.19170984 | Y85: IL TRM v10 Vol2 (calculated value based on lifetime hours) | Z85: 566 | AA85: 2-ft LED Linear Replacement Lamps | AB85: 10.2 | AC85: PY2 portfolio weighted average | AE85: 17W 2-ft T8 with Electronic NBF Ballast | AF85: 18.4688388 | AG85: IL TRM v10 Vol2 (portfolio weighted average) | AH85: 564 | AI85: =ROUND((AF85-AB85)/1000*U85*AS85,4) | AJ85: =ROUND(N85*O85,4) | AK85: IL TRM v10 Vol2 | AL85: 556, 561 | AM85: 2023-01-01 | AN85: 2023-12-31 | AS85: 1.105680468 | AT85: Waste Heat Factor Energy | AU85: PY2 portfolio weighted average | AW85: 1.303482811 | AX85: Waste Heat Factor_Demand | AY85: PY2 portfolio weighted average
A86: Business Standard | B86: Interior LED Linear Lamp Replacing 2ft T8, T12, or T5/T5HO Lamp | C86: 167.5 | D86: C&I | E86: Lighting | F86: Annual Operating Hours: Weighted Average IN TRM, Measure Life: IL TRM, CF source: Weighted Average IN TRM | G86: per lamp | H86: =AVERAGE(15,13) -> 14 | I86: IL TRM V11 Vol2 | J86: 667 | K86: 20.486 | L86: Calculated Value | N86: 0.00786 | O86: 0.6925424893 | P86: Weighted average peak coincident factor from verified participant data from the MEEIA Cycle 3 PY1-3 portfolio with preference on most recent year of evaluated results if sufficient participation occurred | R86: 0.0054 | S86: Calculated Value | U86: 3088 | V86: IL TRM V11 Vol2 | W86: 637 | X86: =50000/U86 -> 16.19170984 | Y86: IL TRM V11 Vol2 (calculated value based on lifetime hours) | Z86: 670 | AA86: 2-ft LED Linear Replacement Lamps | AB86: 9 | AC86: Weighted average efficient wattage from verified participant data from the MEEIA Cycle 3 PY1-3 portfolio with preference on most recent year of evaluated results if sufficient participation occurred | AE86: 17W 2-ft T8 with Electronic NBF Ballast | AF86: 15 | AG86: IL TRM v11 Vol2 | AH86: 667 | AI86: =ROUND((AF86-AB86)/1000*U86*AS86,4) | AJ86: =ROUND(N86*O86,4) | AK86: IL TRM V11 Vol2 | AL86: 660, 665 | AM86: 2024-01-01 | AS86: 1.105680468 | AT86: Waste Heat Factor Energy | AU86: Weighted average Waste Heat Factor Energy from verified participant data from the MEEIA Cycle 3 PY1-3 portfolio with preference on most recent year of evaluated results if sufficient participation occurred | AW86: 1.31 | AX86: Waste Heat Factor Demand | AY86: Weighted average Waste Heat Factor Demand from verified participant data from the MEEIA Cycle 3 PY1-3 portfolio with preference on most recent year of evaluated results if sufficient participation occurred
A87: Business Standard | B87: LED Refrig Case Lights w/Doors 4ft 5ft or 6ft repl Fluor Refrig Case Lights w/Doors 4ft 5ft or 6ft | C87: 174.6 | D87: C&I | E87: Lighting | F87: Annual Operating Hours source, Measure Life and CF source: IL TRM | G87: per door | H87: 230 | I87: PY1 Tracking data | K87: =ROUND((AF87-AB87)/1000*U87*AS87,4) -> 479.8138 | L87: Calculated Value | N87: =(AF87-AB87)/1000*O87*AW87 -> 0.0808185 | O87: 1 | P87: IL TRM v10 Vol2 | Q87: 533 | R87: =ROUND(N87*O87,4) -> 0.0808 | S87: Calculated Value | U87: 5802 | V87: IL TRM v10 Vol2 | W87: 533 | X87: =50000/U87 -> 8.617718028 | Y87: IL TRM v10 Vol2 (calculated value based on lifetime hours) | Z87: 566 | AA87: LED Refrigerated (Medium Temp) Case Light Fixtures (4, 5, and 6-foot) | AB87: 22.1 | AC87: PY1 Tracking Data | AE87: Linear Fluorescent T8 Fixtures | AF87: =5*AVERAGE(15.2,18.7) -> 84.75 | AG87: Mid Atlantic TRM v10 | AH87: 269-270 (average between T8 and T12HO) | AI87: =ROUND((AF87-AB87)/1000*U87*AS87,4) | AJ87: =ROUND(N87*O87,4) | AK87: IL TRM v10 Vol2 | AL87: 556561 | AM87: 2023-01-01 | AN87: 2023-12-31 | AS87: 1.32 | AT87: Waste Heat Factor Energy | AU87: PY2 portfolio weighted average | AW87: 1.29 | AX87: Waste Heat Factor_Demand | AY87: PY2 portfolio weighted average
A88: Business Standard | B88: LED Refrig Case Lights w/Doors 4ft 5ft or 6ft repl Fluor Refrig Case Lights w/Doors 4ft 5ft or 6ft | C88: 174.7 | D88: C&I | E88: Lighting | F88: Annual Operating Hours source, Measure Life and CF source: IL TRM | G88: per door | H88: =5*11 -> 55 | I88: IL TRM V11 Vol2 | J88: 667 | K88: 420.761 | L88: Calculated Value | N88: =(AF88-AB88)/1000*O88*AW88 -> 0.0835275 | O88: 1 | P88: IL TRM V11 Vol2 | Q88: 637 | R88: 0.0835 | S88: Calculated Value | U88: 5802 | V88: IL TRM V11 Vol2 | W88: 637 | X88: =50000/U88 -> 8.617718028 | Y88: IL TRM V11 Vol2 (calculated value based on lifetime hours) | Z88: 670 | AA88: LED Refrigerated (Medium Temp) Case Light Fixtures (4, 5, and 6-foot) | AB88: =5*4 -> 20 | AC88: IL TRM V11 Vol2 (calculated value based on lifetime hours) | AD88: 670 | AE88: Linear Fluorescent T8 Fixtures | AF88: =5*AVERAGE(15.2,18.7) -> 84.75 | AG88: Mid Atlantic TRM v10 | AH88: 269-270 (average between T8 and T12HO) | AI88: =ROUND((AF88-AB88)/1000*U88*AS88,4) | AJ88: =ROUND(N88*O88,4) | AK88: IL TRM V11 Vol2 | AL88: 660, 665 | AM88: 2024-01-01 | AS88: 1.12 | AT88: Waste Heat Factor Energy | AU88: Weighted average Waste Heat Factor Energy from verified participant data from the MEEIA Cycle 3 PY1-3 portfolio with preference on most recent year of evaluated results if sufficient participation occurred | AW88: 1.29 | AX88: Waste Heat Factor Demand | AY88: Weighted average Waste Heat Factor Demand from verified participant data from the MEEIA Cycle 3 PY1-3 portfolio with preference on most recent year of evaluated results if sufficient participation occurred
A89: Business Standard | B89: LED Freezer Case Lights w/Doors 4ft 5ft or 6ft repl Fluor Frezer Case Lights w/Doors 4ft 5ft or 6ft | C89: 175.6 | D89: C&I | E89: Lighting | F89: Annual Operating Hours source, Measure Life and CF source: IL TRM | G89: per door | H89: 230 | I89: PY1 Tracking data | K89: =ROUND((AF89-AB89)/1000*U89*AS89,4) -> 598.435 | L89: Calculated Value | N89: =(AF89-AB89)/1000*O89*AW89 -> 0.096444 | O89: 1 | P89: IL TRM v10 Vol2 | Q89: 533 | R89: =ROUND(N89*O89,4) -> 0.0964 | S89: Calculated Value | U89: 6205 | V89: Evergy Logger Verified HOU weighted by verified program savings | X89: =50000/U89 -> 8.058017728 | Y89: IL TRM v10 Vol2 (calculated value based on lifetime hours) | Z89: 566 | AA89: LED Freezer (Low Temp) Case Light Fixtures (4, 5, and 6-foot) | AB89: 21.3 | AC89: PY1 Tracking Data | AE89: Linear Fluorescent T8 Fixtures | AF89: 84.75 | AG89: Mid Atlantic TRM v9 | AH89: 388 (average between T8 and T12HO) | AI89: =ROUND((AF89-AB89)/1000*U89*AS89,4) | AJ89: =ROUND(N89*O89,4) | AK89: IL TRM v10 Vol2 | AL89: 556561 | AM89: 2023-01-01 | AN89: 2023-12-31 | AS89: 1.52 | AT89: Waste Heat Factor Energy | AU89: PY2 portfolio weighted average | AW89: 1.52 | AX89: Waste Heat Factor_Demand | AY89: PY2 portfolio weighted average
A90: Business Standard | B90: LED Freezer Case Lights w/Doors 4ft 5ft or 6ft repl Fluor Frezer Case Lights w/Doors 4ft 5ft or 6ft | C90: 175.7 | D90: C&I | E90: Lighting | F90: Annual Operating Hours source, Measure Life and CF source: IL TRM | G90: per door | H90: =5*11 -> 55 | I90: IL TRM V11 Vol2 | J90: 667 | K90: =ROUND((AF90-AB90)/1000*U90*AS90,4) -> 420.761 | L90: Calculated Value | N90: =(AF90-AB90)/1000*O90*AW90 -> 0.0835275 | O90: 1 | P90: IL TRM v11 Vol2 | Q90: 637 | R90: =ROUND(N90*O90,4) -> 0.0835 | S90: Calculated Value | U90: 5802 | V90: IL TRM V11 Vol2 | W90: 637 | X90: =50000/U90 -> 8.617718028 | Y90: IL TRM V11 Vol2 (calculated value based on lifetime hours) | Z90: 670 | AA90: LED Freezer (Low Temp) Case Light Fixtures (4, 5, and 6-foot) | AB90: =5*4 -> 20 | AC90: IL TRM V11 Vol2 (calculated value based on lifetime hours) | AD90: 670 | AE90: Linear Fluorescent T8 Fixtures | AF90: 84.75 | AG90: Mid Atlantic TRM v9 | AH90: 388 (average between T8 and T12HO) | AI90: =ROUND((AF90-AB90)/1000*U90*AS90,4) | AJ90: =ROUND(N90*O90,4) | AK90: IL TRM V11 Vol2 | AL90: 660, 665 | AM90: 2024-01-01 | AS90: 1.12 | AT90: Waste Heat Factor Energy | AU90: Weighted average Waste Heat Factor Energy from verified participant data from the MEEIA Cycle 3 PY1-3 portfolio with preference on most recent year of evaluated results if sufficient participation occurred | AW90: 1.29 | AX90: Waste Heat Factor Demand | AY90: Weighted average Waste Heat Factor Demand from verified participant data from the MEEIA Cycle 3 PY1-3 portfolio with preference on most recent year of evaluated results if sufficient participation occurred
A91: Business Standard | B91: Interior LED Downlight or Retrofit Kit replacing 45-60W Fixture | C91: 176.3 | D91: C&I | E91: Lighting | F91: Annual Operating Hours: Weighted Average IN TRM, Measure Life: IL TRM, CF source: Weighted Average IN TRM | G91: per fixture | H91: 27 | I91: IL TRM v6 vol2 | J91: 370 | K91: =ROUND((AF91-AB91)/1000*U91*AS91,4) -> 199.9537 | L91: Calculated Value | N91: =(AF91-AB91)/1000*AW91 -> 0.06191 | O91: 0.7 | P91: Indiana TRM v1 | Q91: 171-172 (portfolio weighted average) | R91: =ROUND(N91*O91,4) -> 0.0433 | S91: Calculated Value | U91: 3933 | V91: Indiana TRM v1 | W91: 171-172 (portfolio weighted average) | X91: 13 | Y91: IL TRM v6 vol2 (calculated value based on lifetime hours) | Z91: 372-374 | AA91: LED Downlight or Retrofit Kit ≤ 13W | AB91: 11 | AC91: Weighted average efficient wattage ratings from verified participant data from the MEEIA Cycle 1 -2 portfolio with preference on most recent year of evaluated results if sufficient participation occurred | AE91: Incandescent and Halogen Downlights < 1000 lumens | AF91: 52 | AH91: Midpoint Value | AI91: =ROUND((AF91-AB91)/1000*U91*AS91,4) | AJ91: =ROUND(N91*O91,4) | AK91: IL TRM v6 vol2 | AL91: 364368 | AM91: 2020-01-01 | AS91: 1.24 | AT91: Waste Heat Factor Energy | AU91: IL TRM v6 vol2 | AV91: 337-338 (portfolio weighted average) | AW91: 1.51 | AX91: Waste Heat Factor_Demand | AY91: IL TRM v6 vol2 | AZ91: 337-338 (portfolio weighted average)
A92: Business Standard | B92: Interior LED Downlight or Retrofit Kit replacing 61-100W Fixture | C92: 177.3 | D92: C&I | E92: Lighting | F92: Annual Operating Hours: Weighted Average IN TRM, Measure Life: IL TRM, CF source: Weighted Average IN TRM | G92: per fixture | H92: 27 | I92: IL TRM v6 vol2 | J92: 370 | K92: 302.369 | L92: Calculated Value | N92: 0.09362 | O92: 0.7 | P92: Indiana TRM v1 | Q92: 171-172 (portfolio weighted average) | R92: 0.0655 | S92: Calculated Value | U92: 3933 | V92: Indiana TRM v1 | W92: 171-172 (portfolio weighted average) | X92: 13 | Y92: IL TRM v6 vol2 (calculated value based on lifetime hours) | Z92: 372-374 | AA92: LED Downlight or Retrofit Kit 14 to 21W | AB92: 18 | AC92: Weighted average efficient wattage ratings from verified participant data from the MEEIA Cycle 1 -2 portfolio with preference on most recent year of evaluated results if sufficient participation occurred | AE92: Incandescent and Halogen Downlights 1000 to 2000 lumens | AF92: 80 | AH92: Midpoint Value | AI92: =ROUND((AF92-AB92)/1000*U92*AS92,4) | AJ92: =ROUND(N92*O92,4) | AK92: IL TRM v6 vol2 | AL92: 364368 | AM92: 2020-01-01 | AS92: 1.24 | AT92: Waste Heat Factor Energy | AU92: IL TRM v6 vol2 | AV92: 337-338 (portfolio weighted average) | AW92: 1.51 | AX92: Waste Heat Factor_Demand | AY92: IL TRM v6 vol2 | AZ92: 337-338 (portfolio weighted average)
A93: Business Standard | B93: Interior LED Downlight or Retrofit Kit replacing 101-155W Fixture | C93: 178.3 | D93: C&I | E93: Lighting | F93: Annual Operating Hours: Weighted Average IN TRM, Measure Life: IL TRM, CF source: Weighted Average IN TRM | G93: per fixture | H93: 27 | I93: IL TRM v6 vol2 | J93: 370 | K93: 511.5889 | L93: Calculated Value | N93: 0.158399 | O93: 0.7 | P93: Indiana TRM v1 | Q93: 171-172 (portfolio weighted average) | R93: 0.1109 | S93: Calculated Value | U93: 3933 | V93: Indiana TRM v1 | W93: 171-172 (portfolio weighted average) | X93: 13 | Y93: IL TRM v6 vol2 (calculated value based on lifetime hours) | Z93: 372-374 | AA93: LED Downlight or Retrofit Kit ≥ 22W | AB93: 23.1 | AC93: Weighted average efficient wattage ratings from verified participant data from the MEEIA Cycle 1 -2 portfolio with preference on most recent year of evaluated results if sufficient participation occurred | AE93: Incandescent, HID and Halogen Downlights > 2000 lumens | AF93: 128 | AH93: Midpoint Value | AI93: =ROUND((AF93-AB93)/1000*U93*AS93,4) | AJ93: =ROUND(N93*O93,4) | AK93: IL TRM v6 vol2 | AL93: 364368 | AM93: 2020-01-01 | AS93: 1.24 | AT93: Waste Heat Factor Energy | AU93: IL TRM v6 vol2 | AV93: 337-338 (portfolio weighted average) | AW93: 1.51 | AX93: Waste Heat Factor_Demand | AY93: IL TRM v6 vol2 | AZ93: 337-338 (portfolio weighted average)
A94: Business Standard | B94: Interior Directional LED Lamp replacing 50-70W Lamp | C94: 179.3 | D94: Small C&I | E94: Lighting | G94: per lamp | H94: 15 | I94: IL TRM v6 vol2 | J94: 370 | K94: 273.3946 | L94: Calculated Value | N94: 0.066062 | O94: 0.7 | P94: IL TRM v6 vol2 | Q94: 337-338 (portfolio weighted average) | R94: 0.0462 | S94: Calculated Value | U94: 3933 | V94: IL TRM v6 vol2 | W94: 337-338 (portfolio weighted average) | X94: 6 | Y94: IL TRM v6 vol2 (calculated value based on lifetime hours) | Z94: 372-374 | AA94: LED (watts) | AB94: 10.7 | AC94: Weighted average efficient wattage ratings from verified participant data from the MEEIA Cycle 1 -2 portfolio with preference on most recent year of evaluated results if sufficient participation occurred | AE94: Incandescent (watts) | AF94: 60 | AH94: Midpoint Value | AI94: =ROUND((AF94-AB94)/1000*U94*AS94,4) | AJ94: =ROUND(N94*O94,4) | AK94: IL TRM v6 vol2 | AL94: 364368 | AM94: 2020-01-01 | AS94: 1.41 | AT94: Waste Heat Factor Energy | AU94: IL TRM v6 vol2 | AV94: 337-338 (portfolio weighted average) | AW94: 1.34 | AX94: Waste Heat Factor Demand | AY94: IL TRM v6 vol2 | AZ94: 337-338 (portfolio weighted average)
A95: Business Standard | B95: High Performance High-Bay Fluorescent Fixture T8 > 4 Lamps Replacing HID Fixture | C95: 181.3 | D95: Small C&I | E95: Lighting | G95: per fixture | H95: 200 | I95: IL TRM v6 vol2 | J95: 357 | K95: 1478.4696 | L95: Calculated Value | N95: 0.3216 | O95: 0.78 | P95: IL TRM v6 vol2 | Q95: 337-338 (portfolio weighted average) | R95: 0.2508 | S95: Calculated Value | U95: 4369 | V95: IL TRM v6 vol2 | W95: 337-338 (portfolio weighted average) | X95: 15 | Y95: IL TRM v6 vol2 | Z95: 352 | AA95: High Bay T8 (>4 lamps, wattage) | AB95: 240 | AC95: Weighted average efficient wattage ratings from verified participant data from the MEEIA Cycle 1 -2 portfolio with preference on most recent year of evaluated results if sufficient participation occurred | AE95: Metal Halide (watts) | AF95: 480 | AG95: IL TRM v6 vol2 | AH95: 357 (portfolio weighted average) | AI95: =ROUND((AF95-AB95)/1000*U95*AS95,4) | AJ95: =ROUND(N95*O95,4) | AK95: IL TRM v6 vol2 | AL95: 353354 | AM95: 2020-05-01 | AS95: 1.41 | AT95: Waste Heat Factor Energy | AU95: IL TRM v6 vol2 | AV95: 337-338 (portfolio weighted average) | AW95: 1.34 | AX95: Waste Heat Factor Demand | AY95: IL TRM v6 vol2 | AZ95: 337-338 (portfolio weighted average)
A96: Business Standard | B96: High‐Bay Fluorescent Fixture T5 <= 4 Lamps w/ HE Electronic Ballast Replacing HID Fixture | C96: 183.3 | D96: Small C&I | E96: Lighting | G96: per fixture | H96: 100 | I96: IL TRM v6 vol2 | J96: 413 | K96: 677.6319 | L96: Calculated Value | N96: 0.1474 | O96: 0.78 | P96: IL TRM v6 vol2 | Q96: 337-338 (portfolio weighted average) | R96: 0.115 | S96: Calculated Value | U96: 4369 | V96: IL TRM v6 vol2 | W96: 337-338 (portfolio weighted average) | X96: 15 | Y96: IL TRM v6 vol2 | Z96: 410 | AA96: High Bay T5 (≤4 lamps, wattage) | AB96: 110 | AC96: Weighted average efficient wattage ratings from verified participant data from the MEEIA Cycle 1 -2 portfolio with preference on most recent year of evaluated results if sufficient participation occurred | AE96: Metal Halide (watts) | AF96: 220 | AG96: IL TRM v6 vol2 | AH96: 413-414 (portfolio weighted average) | AI96: =ROUND((AF96-AB96)/1000*U96*AS96,4) | AJ96: =ROUND(N96*O96,4) | AK96: IL TRM v6 vol2 | AL96: 411412 | AM96: 2020-05-01 | AS96: 1.41 | AT96: Waste Heat Factor Energy | AU96: IL TRM v6 vol2 | AV96: 337-338 (portfolio weighted average) | AW96: 1.34 | AX96: Waste Heat Factor Demand | AY96: IL TRM v6 vol2 | AZ96: 337-338 (portfolio weighted average)
A97: Business Standard | B97: Remove 8ft Lamp from T8 or T12 System | C97: 186.3 | D97: Small C&I | E97: Lighting | G97: per lamp | H97: 30 | I97: IL TRM v5 vol2 | J97: 349 | K97: 252.5366 | L97: Calculated Value | N97: 0.07772 | O97: 0.66 | P97: IL TRM v6 vol2 | Q97: 337-338 (portfolio weighted average) | R97: 0.0513 | S97: Calculated Value | U97: 3088 | V97: IL TRM v6 vol2 | W97: 338 | X97: 11 | Y97: IL TRM v6 vol2 | Z97: 346 | AA97: Remove T8 | AB97: 0 | AC97: IL TRM v5 vol3 | AD97: 349 | AE97: T8 8 ft (watts) | AF97: 58 | AG97: IL TRM v5 vol3 | AH97: 347 (portfolio weighted average) | AI97: =ROUND((AF97-AB97)/1000*U97*AS97,4) | AJ97: =ROUND(N97*O97,4) | AK97: IL TRM v6 vol2 | AL97: 353354 | AM97: 2020-05-01 | AN97: 2023-12-31 | AS97: 1.41 | AT97: Waste Heat Factor Energy | AU97: IL TRM v6 vol2 | AV97: 338 | AW97: 1.34 | AX97: Waste Heat Factor Demand | AY97: IL TRM v6 vol2 | AZ97: 337-338 (portfolio weighted average)
A98: Business Standard | B98: Interior Omnidirectional LED Lamp replacing 40-60W Lamp | C98: 187.3 | D98: Small C&I | E98: Lighting | G98: per lamp | H98: 1.96 | I98: IL TRM v6 vol2 | J98: 370 | K98: 222.075 | L98: Calculated Value | N98: 0.05628 | O98: 0.65 | P98: IL TRM v6 vol2 | Q98: 337-338 (portfolio weighted average) | R98: 0.0366 | S98: Calculated Value | U98: 3750 | V98: IL TRM v6 vol2 | W98: 337-338 (portfolio weighted average) | X98: 7 | Y98: IL TRM v6 vol2 (calculated value based on lifetime hours) | Z98: 372-374 | AA98: LED (watts) | AB98: 8 | AC98: Weighted average efficient wattage ratings from verified participant data from the MEEIA Cycle 1 -2 portfolio with preference on most recent year of evaluated results if sufficient participation occurred | AE98: EISA tier 1 compliant Halogen (watts) | AF98: 50 | AH98: Midpoint Value | AI98: =ROUND((AF98-AB98)/1000*U98*AS98,4) | AJ98: =ROUND(N98*O98,4) | AK98: IL TRM v6 vol2 | AL98: 364368 | AM98: 2020-01-01 | AS98: 1.41 | AT98: Waste Heat Factor Energy | AU98: IL TRM v6 vol2 | AV98: 337-338 (portfolio weighted average) | AW98: 1.34 | AX98: Waste Heat Factor Demand | AY98: IL TRM v6 vol2 | AZ98: 337-338 (portfolio weighted average)
A99: Business Standard | B99: Interior Omnidirectional LED Lamp replacing 61-100W Lamp | C99: 188.3 | D99: Small C&I | E99: Lighting | G99: per lamp | H99: 1.96 | I99: IL TRM v6 vol2 | J99: 370 | K99: 382.6416 | L99: Calculated Value | N99: 0.09246 | O99: 0.7 | P99: IL TRM v6 vol2 | Q99: 337-338 (portfolio weighted average) | R99: 0.0647 | S99: Calculated Value | U99: 3933 | V99: IL TRM v6 vol2 | W99: 337-338 (portfolio weighted average) | X99: 6 | Y99: IL TRM v6 vol2 (calculated value based on lifetime hours) | Z99: 372-374 | AA99: LED (watts) | AB99: 11 | AC99: Weighted average efficient wattage ratings from verified participant data from the MEEIA Cycle 1 -2 portfolio with preference on most recent year of evaluated results if sufficient participation occurred | AE99: EISA tier 1 compliant Halogen (watts) | AF99: 80 | AH99: Midpoint Value | AI99: =ROUND((AF99-AB99)/1000*U99*AS99,4) | AJ99: =ROUND(N99*O99,4) | AK99: IL TRM v6 vol2 | AL99: 364368 | AM99: 2020-01-01 | AS99: 1.41 | AT99: Waste Heat Factor Energy | AU99: IL TRM v6 vol2 | AV99: 337-338 (portfolio weighted average) | AW99: 1.34 | AX99: Waste Heat Factor Demand | AY99: IL TRM v6 vol2 | AZ99: 337-338 (portfolio weighted average)
A100: Business Standard | B100: Interior Occupancy or Vacancy Sensor Replacing No Controls | C100: 190.3 | D100: Small C&I | E100: Lighting | G100: per sensor | H100: 84 | I100: IL TRM v6 vol2 | J100: 402 | K100: =ROUND(AB100/1000*AS100*U100*BA100,4) -> 323.0366 | L100: Calculated Value | N100: =AB100/1000*AW100*BA100 -> 0.07437 | O100: 0.95 | P100: IL TRM v6 vol2 | Q100: 337-338 (portfolio weighted average) | R100: 0.0707 | S100: Calculated Value | U100: 4128 | V100: IL TRM v6 vol2 | W100: 337-338 (portfolio weighted average) | X100: 8 | Y100: IL TRM v6 vol2 | Z100: 402 | AA100: Wall-Mount Occupancy Sensor | AB100: 185 | AC100: Weighted average efficient wattage ratings from verified participant data from the MEEIA Cycle 1 -2 portfolio with preference on most recent year of evaluated results if sufficient participation occurred | AE100: No Control | AG100: IL TRM v6 vol2 | AH100: 402 | AI100: =ROUND(AB100/1000*AS100*U100*BA100,4) | AJ100: =ROUND(N100*O100,4) | AK100: IL TRM v6 vol2 | AL100: 403404 | AM100: 2020-01-01 | AS100: 1.41 | AT100: Waste Heat Factor Energy | AU100: IL TRM v6 vol2 | AV100: 337-338 (portfolio weighted average) | AW100: 1.34 | AX100: Waste Heat Factor Demand | AY100: IL TRM v6 vol2 | AZ100: 337-338 (portfolio weighted average) | BA100: 0.3 | BB100: ESF | BC100: IL TRM v6 vol2 | BD100: 404 (portfolio weighted average)
A101: Business Standard | B101: Parking Garage 4'3L T5, T5HP, or T8 replacing >175W fixture | C101: 191.2 | D101: Small C&I | E101: Lighting | G101: per fixture | H101: 136 | I101: IL TRM v6 vol2 | J101: T8: 356,357 T5:413,414 | K101: =ROUND((AF101-AB101)/1000*U101*AS101,4) -> 902.898 | L101: Calculated Value | N101: =(AF101-AB101)/1000*AW101 -> 0.103 | O101: 1 | P101: IL TRM v6 vol2 | Q101: 337 | R101: 0.103 | S101: Calculated Value | U101: 8766 | V101: IL TRM v6 vol2 | W101: 337 | X101: 6 | Y101: IL TRM v6 vol2 (calculated value based on lifetime hours) | Z101: 415-416 | AA101: 4-ft 3L to 4L 4' T5, T5HO or T8 | AB101: 155 | AC101: Program Tracking Data | AE101: 200W - 250W HID Fixture | AF101: 258 | AG101: IL TRM v6 vol2 | AH101: 413-414 (portfolio weighted average) | AI101: =ROUND((AF101-AB101)/1000*U101*AS101,4) | AJ101: =ROUND(N101*O101,4) | AK101: IL TRM v6 vol2 | AL101: T8:353,354 T5:411,412 | AM101: 2020-01-01 | AN101: 2023-12-31 | AS101: 1 | AT101: Waste Heat Factor Energy | AU101: IL TRM v6 vol2 | AV101: 338 | AW101: 1 | AX101: Waste Heat Factor Demand | AY101: IL TRM v6 vol2 | AZ101: 338
A102: Business Standard | B102: Parking Garage 4'2L T5, T5HP, or T8 replacing 101W-175W fixture | C102: 192.3 | D102: Small C&I | E102: Lighting | G102: per fixture | H102: 105 | I102: IL TRM v6 vol2 | J102: T8: 356,357 T5:413,414 | K102: =ROUND((AF102-AB102)/1000*U102*AS102,4) -> 578.556 | L102: Calculated Value | N102: =(AF102-AB102)/1000*AW102 -> 0.066 | O102: 1 | P102: IL TRM v6 vol2 | Q102: 337 | R102: 0.066 | S102: Calculated Value | U102: 8766 | V102: IL TRM v6 vol2 | W102: 337 | X102: 6 | Y102: IL TRM v6 vol2 (calculated value based on lifetime hours) | Z102: 415-416 | AA102: 4-ft 2L to 3L 4' T5, T5HO or T8 | AB102: 84 | AC102: Program Tracking Data | AE102: 125W - 175W HID Fixture | AF102: 150 | AH102: Midpoint Value | AI102: =ROUND((AF102-AB102)/1000*U102*AS102,4) | AJ102: =ROUND(N102*O102,4) | AK102: IL TRM v6 vol2 | AL102: T8:353,354 T5:411,412 | AM102: 2020-01-01 | AN102: 2023-12-31 | AS102: 1 | AT102: Waste Heat Factor Energy | AU102: IL TRM v6 vol2 | AV102: 338 | AW102: 1 | AX102: Waste Heat Factor Demand | AY102: IL TRM v6 vol2 | AZ102: 338
A103: Business Standard | B103: Parking Garage 4'1L T5, T5HP, or T8 replacing <=100W fixture | C103: 193.2 | D103: Small C&I | E103: Lighting | G103: per fixture | H103: 74 | I103: IL TRM v6 vol2 | J103: T8: 356,357 T5:413,414 | K103: =ROUND((AF103-AB103)/1000*U103*AS103,4) -> 613.62 | L103: Calculated Value | N103: =(AF103-AB103)/1000*AW103 -> 0.07 | O103: 1 | P103: IL TRM v6 vol2 | Q103: 337 | R103: 0.07 | S103: Calculated Value | U103: 8766 | V103: IL TRM v6 vol2 | W103: 337 | X103: 6 | Y103: IL TRM v6 vol2 (calculated value based on lifetime hours) | Z103: 415-416 | AA103: 4-ft 1L to 2L 4' T5, T5HO or T8 | AB103: 54 | AC103: Program Tracking Data | AE103: ≤ 100 W HID Fixture | AF103: 124 | AG103: Program tracking data | AI103: =ROUND((AF103-AB103)/1000*U103*AS103,4) | AJ103: =ROUND(N103*O103,4) | AK103: IL TRM v6 vol2 | AL103: T8:353,354 T5:411,412 | AM103: 2020-01-01 | AN103: 2023-12-31 | AS103: 1 | AT103: Waste Heat Factor Energy | AU103: IL TRM v6 vol2 | AV103: 338 | AW103: 1 | AX103: Waste Heat Factor Demand | AY103: IL TRM v6 vol2 | AZ103: 338
A104: Business Standard | B104: Exterior LED replacing > 400W Fixture or Mogul Screw-Base Lamp | C104: 194.4 | D104: Small C&I | E104: Lighting | G104: per fixture | H104: =AVERAGE(946,700,850,1100) -> 899 | I104: IL TRM v10 Vol2 | J104: 565 | K104: =ROUND((AF104-AB104)/1000*U104*AS104,4) -> 3653.247 | L104: Calculated Value | N104: =(AF104-AB104)/1000*AW104 -> 0.849 | O104: 0 | P104: IL TRM v10 Vol2 | Q104: 533 | R104: =ROUND(N104*O104,4) -> 0 | S104: Calculated Value | U104: 4303 | V104: IL TRM v10 Vol2 | W104: 533 | X104: =50000/U104 -> 11.61980014 | Y104: IL TRM v10 Vol2 (calculated value based on lifetime hours) | Z104: 569 | AA104: LED Exterior Lighting Fixtures (Includes Street and Area, Decorative, Soffit and Canopy, Wall-mounted, and Landscape and Flood lighting) | AB104: 226 | AC104: PY2 portfolio weighted average | AE104: > 400 W HID Fixture | AF104: 1075 | AG104: Mid Atlantic TRM v10 | AH104: 242 | AI104: =ROUND((AF104-AB104)/1000*U104*AS104,4) | AJ104: =ROUND(N104*O104,4) | AK104: IL TRM v10 Vol2 | AL104: 556, 561 | AM104: 2023-01-01 | AN104: 2023-12-31 | AS104: 1 | AT104: Waste Heat Factor Energy | AU104: PY2 portfolio weighted average | AW104: 1 | AX104: Waste Heat Factor Demand | AY104: PY2 portfolio weighted average
A105: Business Standard | B105: Exterior LED replacing 251W-400W Fixture or Mogul Screw‐Base Lamp | C105: 195.4 | D105: Small C&I | E105: Lighting | G105: per fixture | H105: 566 | I105: IL TRM v10 Vol2 | J105: 565 | K105: =ROUND((AF105-AB105)/1000*U105*AS105,4) -> 1339.3884 | L105: Calculated Value | N105: =(AF105-AB105)/1000*AW105 -> 0.3112685 | O105: 0 | P105: IL TRM v10 Vol2 | Q105: 533 | R105: =ROUND(N105*O105,4) -> 0 | S105: Calculated Value | U105: 4303 | V105: IL TRM v10 Vol2 | W105: 533 | X105: 11.61980014 | Y105: IL TRM v10 Vol2 (calculated value based on lifetime hours) | Z105: 569 | AA105: LED Exterior Lighting Fixtures (Includes Street and Area, Decorative, Soffit and Canopy, Wall-mounted, and Landscape and Flood lighting) | AB105: 123 | AC105: PY2 portfolio weighted average | AE105: 320 W Pulse Start and 400W MH/HPS Fixture | AF105: 434.2685 | AG105: PY2 portfolio weighted average | AI105: =ROUND((AF105-AB105)/1000*U105*AS105,4) | AJ105: =ROUND(N105*O105,4) | AK105: IL TRM v10 Vol2 | AL105: 556, 561 | AM105: 2023-01-01 | AN105: 2023-12-31 | AS105: 1 | AT105: Waste Heat Factor Energy | AU105: PY2 portfolio weighted average | AW105: 1 | AX105: Waste Heat Factor Demand | AY105: PY2 portfolio weighted average
A106: Business Standard | B106: Exterior LED replacing 175W-250W Fixture or Mogul Screw-Base Lamp | C106: 196.4 | D106: Small C&I | E106: Lighting | G106: per fixture | H106: 248 | I106: IL TRM v10 Vol2 | J106: 565 | K106: =ROUND((AF106-AB106)/1000*U106*AS106,4) -> 861.4606 | L106: Calculated Value | N106: =(AF106-AB106)/1000*AW106 -> 0.2002 | O106: 0 | P106: IL TRM v10 Vol2 | Q106: 533 | R106: =ROUND(N106*O106,4) -> 0 | S106: Calculated Value | U106: 4303 | V106: IL TRM v10 Vol2 | W106: 533 | X106: 11.61980014 | Y106: IL TRM v10 Vol2 (calculated value based on lifetime hours) | Z106: 569 | AA106: LED Exterior Lighting Fixtures (Includes Street and Area, Decorative, Soffit and Canopy, Wall-mounted, and Landscape and Flood lighting) | AB106: 80.8 | AC106: PY2 portfolio weighted average | AE106: 175 W HID - 250 W HID Fixture | AF106: 281 | AG106: PY2 portfolio weighted average | AI106: =ROUND((AF106-AB106)/1000*U106*AS106,4) | AJ106: =ROUND(N106*O106,4) | AK106: IL TRM v10 Vol2 | AL106: 556, 561 | AM106: 2023-01-01 | AN106: 2023-12-31 | AS106: 1 | AT106: Waste Heat Factor Energy | AU106: PY2 portfolio weighted average | AW106: 1 | AX106: Waste Heat Factor Demand | AY106: PY2 portfolio weighted average
A107: Business Standard | B107: Exterior LED replacing < 175W Fixture or Mogul Screw-Base Lamp | C107: 197.4 | D107: Small C&I | E107: Lighting | G107: per fixture | H107: 80 | I107: IL TRM v10 Vol2 | J107: 565 | K107: =ROUND((AF107-AB107)/1000*U107*AS107,4) -> 396.6505 | L107: Calculated Value | N107: =(AF107-AB107)/1000*AW107 -> 0.09218 | O107: 0 | P107: IL TRM v10 Vol2 | Q107: 533 | R107: =ROUND(N107*O107,4) -> 0 | S107: Calculated Value | U107: 4303 | V107: IL TRM v10 Vol2 | W107: 533 | X107: 11.61980014 | Y107: IL TRM v10 Vol2 (calculated value based on lifetime hours) | Z107: 569 | AA107: LED Exterior Lighting Fixtures (Includes Street and Area, Decorative, Soffit and Canopy, Wall-mounted, and Landscape and Flood lighting) | AB107: 35.5 | AC107: PY2 portfolio weighted average | AE107: < 175 W HID Fixture | AF107: 127.68 | AG107: PY2 portfolio weighted average | AI107: =ROUND((AF107-AB107)/1000*U107*AS107,4) | AJ107: =ROUND(N107*O107,4) | AK107: IL TRM v10 Vol2 | AL107: 556, 561 | AM107: 2023-01-01 | AN107: 2023-12-31 | AS107: 1 | AT107: Waste Heat Factor Energy | AU107: PY2 portfolio weighted average | AW107: 1 | AX107: Waste Heat Factor Demand | AY107: PY2 portfolio weighted average
A108: Business Standard | B108: Parking Garage LED replacing > 175W Fixture or Mogul Screw-Base Lamp | C108: 198.3 | D108: Small C&I | E108: Lighting | G108: per fixture | H108: 520 | I108: IL TRM v6 vol2 | J108: 371-372 | K108: =ROUND((AF108-AB108)/1000*U108*AS108,4) -> 1377.1386 | L108: Calculated Value | N108: 0.1571 | O108: 1 | P108: IL TRM v6 vol2 | Q108: 337 | R108: =ROUND(N108*O108,4) -> 0.1571 | S108: Calculated Value | U108: 8766 | V108: IL TRM v6 vol2 | W108: 337 | X108: 6 | Y108: IL TRM v6 vol2 (calculated value based on lifetime hours) | Z108: 372-374 | AA108: LED Parking Garage Lighting Fixtures | AB108: 100.9 | AC108: Program Tracking Data | AE108: 200W - 250W HID Fixture | AF108: 258 | AG108: IL TRM v6 vol2 | AH108: 413-414 (portfolio weighted average) | AI108: =ROUND((AF108-AB108)/1000*U108*AS108,4) | AJ108: =ROUND(N108*O108,4) | AK108: IL TRM v6 vol2 | AL108: 364368 | AM108: 2020-01-01 | AN108: 2023-12-31 | AS108: 1 | AT108: Waste Heat Factor Energy | AU108: IL TRM v6 vol2 | AV108: 338 | AW108: 1 | AX108: Waste Heat Factor Demand | AY108: IL TRM v6 vol2 | AZ108: 338
A109: Business Standard | B109: Parking Garage LED replacing 101W-175W Fixture or Mogul Screw-Base Lamp | C109: 199.4 | D109: Small C&I | E109: Lighting | G109: per fixture | H109: 248 | I109: IL TRM v10 Vol2 | J109: 566 | K109: =ROUND((AF109-AB109)/1000*U109*AS109,4) -> 1074.0255 | L109: Calculated Value | N109: 0.0806 | O109: 1 | P109: IL TRM v10 Vol2 | Q109: 532 | R109: =ROUND(N109*O109,4) -> 0.0806 | S109: Calculated Value | U109: 8766 | V109: IL TRM v10 Vol2 | W109: 532 | X109: =50000/U109 -> 5.703855807 | Y109: IL TRM v10 Vol2 (calculated value based on lifetime hours) | Z109: 569 | AA109: LED Parking Garage Lighting Fixtures | AB109: 35.1087 | AC109: PY2 portfolio weighted average | AE109: 125W - 175W HID Fixture | AF109: 157.6304348 | AG109: PY2 portfolio weighted average | AI109: =ROUND((AF109-AB109)/1000*U109*AS109,4) | AJ109: =ROUND(N109*O109,4) | AK109: IL TRM v10 Vol2 | AL109: 556, 561 | AM109: 2023-01-01 | AN109: 2023-12-31 | AS109: 1 | AT109: Waste Heat Factor Energy | AU109: PY2 portfolio weighted average | AW109: 1 | AX109: Waste Heat Factor Demand | AY109: PY2 portfolio weighted average
A110: Business Standard | B110: Parking Garage LED replacing <= 100W Fixture or Mogul Screw-Base Lamp | C110: 200.3 | D110: Small C&I | E110: Lighting | G110: per fixture | H110: 80 | I110: IL TRM v10 Vol2 | J110: 565 | K110: =ROUND((AF110-AB110)/1000*U110*AS110,4) -> 849.5591 | L110: Calculated Value | N110: =(AF110-AB110)/1000*AW110 -> 0.09691525424 | O110: 1 | P110: IL TRM v10 Vol2 | Q110: 532 | R110: =ROUND(N110*O110,4) -> 0.0969 | S110: Calculated Value | U110: 8766 | V110: IL TRM v10 Vol2 | W110: 532 | X110: =50000/U110 -> 5.703855807 | Y110: IL TRM v10 vol2 (calculated value based on lifetime hours) | Z110: 569 | AA110: LED Parking Garage Lighting Fixtures | AB110: 29 | AC110: PY2 portfolio weighted average | AE110: ≤ 100 W HID Fixture | AF110: 125.9152542 | AG110: PY2 portfolio weighted average | AI110: =ROUND((AF110-AB110)/1000*U110*AS110,4) | AJ110: =ROUND(N110*O110,4) | AK110: IL TRM v10 Vol2 | AL110: 556, 561 | AM110: 2023-01-01 | AN110: 2023-12-31 | AS110: 1 | AT110: Waste Heat Factor Energy | AU110: PY2 portfolio weighted average | AW110: 1 | AX110: Waste Heat Factor Demand | AY110: PY2 portfolio weighted average
A111: Business Standard | B111: Interior LED Linear Lamp Replacing 4ft T8, T12, or T5/T5HO Lamp | C111: 201.3 | D111: Small C&I | E111: Lighting | G111: per lamp | H111: 24 | I111: IL TRM v5 vol2 | J111: 378 | K111: =ROUND((AF111-AB111)/1000*U111*AS111,4) -> 69.3504 | L111: Calculated Value | N111: =(AF111-AB111)/1000*AW111 -> 0.021 | O111: 0.75 | P111: Indiana TRM v1 | Q111: 171-172 (portfolio weighted average) | R111: =ROUND(N111*O111,4) -> 0.0158 | S111: Calculated Value | U111: 4128 | V111: Indiana TRM v1 | W111: 171-172 (portfolio weighted average) | X111: 12 | Y111: IL TRM v6 vol2 (calculated value based on lifetime hours) | Z111: 372-374 | AA111: 4-ft LED Linear Replacement Lamps | AB111: 15 | AC111: Program Tracking Data | AE111: 32W 4-ft T8 with Electronic NBF Ballast | AF111: 29 | AG111: IL TRM v6 vol2 (Blend of T8, T12, T5 lamp baseline according to measure name) | AH111: 356-358 | AI111: =ROUND((AF111-AB111)/1000*U111*AS111,4) | AJ111: =ROUND(N111*O111,4) | AK111: IL TRM v5 vol2 | AL111: 370375 | AM111: 2020-01-01 | AN111: 2023-12-31 | AS111: 1.2 | AT111: Waste Heat Factor Energy | AU111: IL TRM v6 vol2 | AV111: 337-338 (portfolio weighted average) | AW111: 1.5 | AX111: Waste Heat Factor Demand | AY111: IL TRM v6 vol2 | AZ111: 337-338 (portfolio weighted average)
A112: Business Standard | B112: Interior LED Linear Lamp Replacing 2ft T8, T12, or T5/T5HO Lamp | C112: 202.2 | D112: Small C&I | E112: Lighting | G112: per lamp | H112: 13 | I112: IL TRM v5 vol2 | J112: 378 | K112: =ROUND((AF112-AB112)/1000*U112*AS112,4) -> 34.6752 | L112: Calculated Value | N112: =(AF112-AB112)/1000*AW112 -> 0.0105 | O112: 0.75 | P112: Indiana TRM v1 | Q112: 171-172 (portfolio weighted average) | R112: =ROUND(N112*O112,4) -> 0.0079 | S112: Calculated Value | U112: 4128 | V112: Indiana TRM v1 | W112: 171-172 (portfolio weighted average) | X112: 12 | Y112: IL TRM v6 vol2 (calculated value based on lifetime hours) | Z112: 372-374 | AA112: 2-ft LED Linear Replacement Lamps | AB112: 10 | AC112: Program Tracking Data | AE112: 17W 2-ft T8 with Electronic NBF Ballast | AF112: 17 | AG112: IL TRM v6 vol2 | AH112: 370-372 (portfolio weighted average) | AI112: =ROUND((AF112-AB112)/1000*U112*AS112,4) | AJ112: =ROUND(N112*O112,4) | AK112: IL TRM v5 vol2 | AL112: 370375 | AM112: 2020-01-01 | AN112: 2023-12-31 | AS112: 1.2 | AT112: Waste Heat Factor Energy | AU112: IL TRM v6 vol2 | AV112: 337-338 (portfolio weighted average) | AW112: 1.5 | AX112: Waste Heat Factor Demand | AY112: IL TRM v6 vol2 | AZ112: 337-338 (portfolio weighted average)
A113: Business Standard | B113: Interior LED 1X4 Retrofit Kit replacing T8, T12 or T5/T5HO fixture | C113: 203.4 | D113: Small C&I | E113: Lighting | G113: per fixture | H113: =AVERAGE(22,72,83) -> 59 | I113: IL TRM v10 Vol2 | J113: 564 | K113: =ROUND((AF113-AB113)/1000*U113*AS113,4) -> 161.7589 | L113: Calculated Value | N113: =(AF113-AB113)/1000*AW113 -> 0.05112671159 | O113: 0.5581614834 | P113: PY2 portfolio weighted average | R113: =ROUND(N113*O113,4) -> 0.0285 | S113: Calculated Value | U113: 3656.131998 | V113: PY2 portfolio weighted average | X113: =50000/U113 -> 13.67565505 | Y113: IL TRM v10 Vol2 (calculated value based on lifetime hours) | Z113: 566 | AA113: LED 1X4 Retrofit Kits | AB113: 18.6 | AC113: Weighted average efficient wattage from verified participant data from the MEEIA Cycle 3 PY1-3 portfolio with preference on most recent year of evaluated results if sufficient participation occurred | AE113: 1x4 T8, T5, or T5HO Fluorescents | AF113: 61.66707608 | AG113: IL TRM v10 Vol2 | AH113: 564, 612(Average of T8, T5, and T5HO fixtures) | AI113: =ROUND((AF113-AB113)/1000*U113*AS113,4) | AJ113: =ROUND(N113*O113,4) | AK113: IL TRM v10 Vol2 | AL113: 556, 561 | AM113: 2023-01-01 | AS113: 1.027308693 | AT113: Waste Heat Factor Energy | AU113: PY2 portfolio weighted average | AW113: 1.18714146 | AX113: Waste Heat Factor Demand | AY113: PY2 portfolio weighted average
A114: Business Standard | B114: Interior LED 2X4 Retrofit Kit replacing T8, T12 or T5/T5HO fixture | C114: 204.4 | D114: Small C&I | E114: Lighting | G114: per fixture | H114: =AVERAGE(55,76,104) -> 78.33333333 | I114: IL TRM v10 Vol2 | J114: 564 | K114: =ROUND((AF114-AB114)/1000*U114*AS114,4) -> 258.9361 | L114: Calculated Value | N114: =(AF114-AB114)/1000*AW114 -> 0.1027878446 | O114: 0.6700567272 | P114: PY2 portfolio weighted average | R114: =ROUND(N114*O114,4) -> 0.0689 | S114: Calculated Value | U114: 3088 | V114: IL TRM v10 Vol2 | W114: 533 | X114: 16.19170984 | Y114: IL TRM v10 Vol2 (calculated value based on lifetime hours) | Z114: 566 | AA114: LED 2X4 Retrofit Kits | AB114: 41 | AC114: Weighted average efficient wattage from verified participant data from the MEEIA Cycle 3 PY1-3 portfolio with preference on most recent year of evaluated results if sufficient participation occurred | AE114: 2x4 T8, T5, or T5HO Fluorescents | AF114: 117.277632 | AG114: IL TRM v10 Vol2 | AH114: 564, 612(Average of T8, T5, and T5HO fixtures) | AI114: =ROUND((AF114-AB114)/1000*U114*AS114,4) | AJ114: =ROUND(N114*O114,4) | AK114: IL TRM v10 Vol2 | AL114: 556, 561 | AM114: 2023-01-01 | AS114: 1.099304619 | AT114: Waste Heat Factor Energy | AU114: PY2 portfolio weighted average | AW114: 1.347548972 | AX114: Waste Heat Factor Demand | AY114: PY2 portfolio weighted average
A115: Business Standard | B115: Interior LED 2X2 Retrofit Kit replacing T8, T12 or T5/T5HO fixture | C115: 205.4 | D115: Small C&I | E115: Lighting | G115: per fixture | H115: =AVERAGE(53,69) -> 61 | I115: IL TRM v10 Vol2 | J115: 564 | K115: =ROUND((AF115-AB115)/1000*U115*AS115,4) -> 113.4014 | L115: Calculated Value | N115: =(AF115-AB115)/1000*AW115 -> 0.04556813495 | O115: 0.6620206013 | P115: PY2 portfolio weighted average | R115: =ROUND(N115*O115,4) -> 0.0302 | S115: Calculated Value | U115: 3088 | V115: IL TRM v10 Vol2 | W115: 533 | X115: 16.19170984 | Y115: IL TRM v10 Vol2 (calculated value based on lifetime hours) | Z115: 566 | AA115: LED 2X2 Retrofit Kits | AB115: 25.5 | AC115: Weighted average efficient wattage from verified participant data from the MEEIA Cycle 3 PY1-3 portfolio with preference on most recent year of evaluated results if sufficient participation occurred | AE115: 2x2 T8, T5 or T5HO Fluorescents | AF115: 58.89708561 | AG115: IL TRM v10 Vol2 | AH115: 564, 612(Average of T8, T5, and T5HO fixtures) | AI115: =ROUND((AF115-AB115)/1000*U115*AS115,4) | AJ115: =ROUND(N115*O115,4) | AK115: IL TRM v10 Vol2 | AL115: 556, 561 | AM115: 2023-01-01 | AS115: 1.09959429 | AT115: Waste Heat Factor Energy | AU115: PY2 portfolio weighted average | AW115: 1.364434474 | AX115: Waste Heat Factor Demand | AY115: PY2 portfolio weighted average
A116: Business Standard | B116: Interior LED 1X4 Troffer or Linear Ambient replacing T8, T12 or T5/T5HO fixture | C116: 206.4 | D116: Small C&I | E116: Lighting | G116: per fixture | H116: =AVERAGE(22,72,83) -> 59 | I116: IL TRM v10 Vol2 | J116: 564 | K116: =ROUND((AF116-AB116)/1000*U116*AS116,4) -> 94.2462 | L116: Calculated Value | N116: =(AF116-AB116)/1000*AW116 -> 0.03729488608 | O116: 0.66 | P116: PY2 portfolio weighted average | R116: =ROUND(N116*O116,4) -> 0.0246 | S116: Calculated Value | U116: 3088 | V116: IL TRM v10 Vol2 | W116: 533 | X116: 16.19170984 | Y116: IL TRM v10 Vol2 (calculated value based on lifetime hours) | Z116: 566 | AA116: LED 1X4 Troffer or Linear Ambient Fixtures | AB116: 32 | AC116: Weighted average efficient wattage from verified participant data from the MEEIA Cycle 3 PY1-3 portfolio with preference on most recent year of evaluated results if sufficient participation occurred | AE116: 1X4 Troffer or Linear Ambient T8, or T5/T5HO | AF116: 59.82007475 | AG116: IL TRM v10 Vol2 | AH116: 564, 612(Average of T8, T5, and T5HO fixtures) | AI116: =ROUND((AF116-AB116)/1000*U116*AS116,4) | AJ116: =ROUND(N116*O116,4) | AK116: IL TRM v10 Vol2 | AL116: 556561 | AM116: 2023-01-01 | AS116: 1.097054147 | AT116: Waste Heat Factor Energy | AU116: PY2 portfolio weighted average | AW116: 1.340574618 | AX116: Waste Heat Factor Demand | AY116: PY2 portfolio weighted average
A117: Business Standard | B117: Interior LED 2X4 Troffer or Linear Ambient replacing T8, T12 or T5/T5HO fixture | C117: 207.3 | D117: Small C&I | E117: Lighting | G117: per fixture | H117: =AVERAGE(55,76,104) -> 78.33333333 | I117: IL TRM v10 Vol2 | J117: 564 | K117: =ROUND((AF117-AB117)/1000*U117*AS117,4) -> 267.3072 | L117: Calculated Value | N117: =(AF117-AB117)/1000*AW117 -> 0.1008141764 | O117: 0.67 | P117: PY2 portfolio weighted average | R117: =ROUND(N117*O117,4) -> 0.0675 | S117: Calculated Value | U117: 3088 | V117: IL TRM v10 Vol2 | W117: 533 | X117: 16.19170984 | Y117: IL TRM v10 Vol2 (calculated value based on lifetime hours) | Z117: 566 | AA117: LED 2X4 Troffer or Linear Ambient replacing T8, T12 or T5/T5HO fixture | AB117: 70 | AC117: Weighted average efficient wattage from verified participant data from the MEEIA Cycle 3 PY1-3 portfolio with preference on most recent year of evaluated results if sufficient participation occurred | AE117: 2X4 Troffer or Linear Ambient T8, or T5/T5HO | AF117: 149.7992451 | AG117: IL TRM v10 Vol2 | AH117: 564, 612(Average of T8, T5, and T5HO fixtures) | AI117: =ROUND((AF117-AB117)/1000*U117*AS117,4) | AJ117: =ROUND(N117*O117,4) | AK117: IL TRM v10 Vol2 | AL117: 556561 | AM117: 2023-01-01 | AS117: 1.084762333 | AT117: Waste Heat Factor Energy | AU117: PY2 portfolio weighted average | AW117: 1.263347495 | AX117: Waste Heat Factor Demand | AY117: PY2 portfolio weighted average
A118: Business Standard | B118: Interior LED 2X2 Troffer or Linear Ambient replacing T8, T12 or T5/T5HO fixture | C118: 208.4 | D118: Small C&I | E118: Lighting | G118: per fixture | H118: =AVERAGE(53,69) -> 61 | I118: IL TRM v10 Vol2 | J118: 564 | K118: =ROUND((AF118-AB118)/1000*U118*AS118,4) -> 69.7121 | L118: Calculated Value | N118: =(AF118-AB118)/1000*AW118 -> 0.02662284899 | O118: 0.7 | P118: PY2 portfolio weighted average | R118: =ROUND(N118*O118,4) -> 0.0186 | S118: Calculated Value | U118: 3088 | V118: IL TRM v10 Vol2 | W118: 533 | X118: 16.19170984 | Y118: IL TRM v10 Vol2 (calculated value based on lifetime hours) | Z118: 566 | AA118: LED 2X2 Troffer or Linear Ambient replacing T8, T12 or T5/T5HO fixture | AB118: 30 | AC118: Weighted average efficient wattage from verified participant data from the MEEIA Cycle 3 PY1-3 portfolio with preference on most recent year of evaluated results if sufficient participation occurred | AE118: 2X2 Troffer or Linear Ambient T8 or T5/T5HO | AF118: 50.35558751 | AG118: IL TRM v10 Vol2 | AH118: 564, 612(Average of T8, T5, and T5HO fixtures) | AI118: =ROUND((AF118-AB118)/1000*U118*AS118,4) | AJ118: =ROUND(N118*O118,4) | AK118: IL TRM v10 Vol2 | AL118: 556561 | AM118: 2023-01-01 | AS118: 1.109039469 | AT118: Waste Heat Factor Energy | AU118: PY2 portfolio weighted average | AW118: 1.307889 | AX118: Waste Heat Factor Demand | AY118: PY2 portfolio weighted average
A119: Business Standard | B119: LED Refrig Case Lights w/Doors 4ft 5ft or 6ft repl Fluor Refrig Case Lights w/Doors 4ft 5ft or 6ft | C119: 209.4 | D119: Small C&I | E119: Lighting | G119: per Fixture | H119: 230 | I119: PY1 Tracking data | K119: =ROUND((AF119-AB119)/1000*U119*AS119,4) -> 621.8816 | L119: Calculated Value | N119: =(AF119-AB119)/1000*AW119 -> 0.104748 | O119: 0.69 | P119: PY2 portfolio weighted average | R119: =ROUND(N119*O119,4) -> 0.0723 | S119: Calculated Value | U119: 5802 | V119: IL TRM v10 Vol2 | W119: 533 | X119: 8.617718028 | Y119: IL TRM v10 Vol2 (calculated value based on lifetime hours) | Z119: 566 | AA119: LED Refrigerated (Medium Temp) Case Light Fixtures (4, 5, and 6-foot) | AB119: 20.8 | AC119: PY1 Tracking Data | AE119: Linear Fluorescent T8 Fixtures | AF119: 102 | AG119: IL TRM v6 vol2 | AH119: 370-372 (portfolio weighted average) | AI119: =ROUND((AF119-AB119)/1000*U119*AS119,4) | AJ119: =ROUND(N119*O119,4) | AK119: IL TRM v10 Vol2 | AL119: 556561 | AM119: 2023-01-01 | AN119: 2023-12-31 | AS119: 1.32 | AT119: Waste Heat Factor Energy | AU119: PY2 portfolio weighted average | AW119: 1.29 | AX119: Waste Heat Factor Demand | AY119: PY2 portfolio weighted average
A120: Business Standard | B120: LED Refrig Case Lights w/Doors 4ft 5ft or 6ft repl Fluor Refrig Case Lights w/Doors 4ft 5ft or 6ft | C120: 209.5 | D120: Small C&I | E120: Lighting | G120: per Fixture | H120: =11*AVERAGE(4,5,6) -> 55 | I120: IL TRM v11 Vol2 | J120: 667 | K120: 621.8816 | L120: Calculated Value | N120: 0.104748 | O120: 0.69 | P120: PY2 portfolio weighted average | R120: 0.0723 | S120: Calculated Value | U120: 5802 | V120: IL TRM v10 Vol2 | W120: 533 | X120: 8.617718028 | Y120: IL TRM v10 Vol2 (calculated value based on lifetime hours) | Z120: 566 | AA120: LED Refrigerated (Medium Temp) Case Light Fixtures (4, 5, and 6-foot) | AB120: 20.8 | AC120: Weighted average efficient wattage from verified participant data from the MEEIA Cycle 3 PY1-3 portfolio with preference on most recent year of evaluated results if sufficient participation occurred | AE120: Linear Fluorescent T8 Fixtures | AF120: 102 | AG120: IL TRM v6 vol2 | AH120: 370-372 (portfolio weighted average) | AI120: =ROUND((AF120-AB120)/1000*U120*AS120,4) | AJ120: =ROUND(N120*O120,4) | AK120: IL TRM v10 Vol2 | AL120: 556561 | AM120: 2024-01-01 | AS120: 1.32 | AT120: Waste Heat Factor Energy | AU120: PY2 portfolio weighted average | AW120: 1.29 | AX120: Waste Heat Factor Demand | AY120: PY2 portfolio weighted average
A121: Business Standard | B121: LED Freezer Case Lights w/Doors 4ft 5ft or 6ft repl Fluor Frezer Case Lights w/Doors 4ft 5ft or 6ft | C121: 210.4 | D121: Small C&I | E121: Lighting | G121: per fixture | H121: 230 | I121: PY1 Tracking data | K121: =ROUND((AF121-AB121)/1000*U121*AS121,4) -> 761.1301 | L121: Calculated Value | N121: 0.122664 | O121: 0.92 | P121: PY2 portfolio weighted average | R121: =ROUND(N121*O121,4) -> 0.1129 | S121: Calculated Value | U121: 6205 | V121: Evergy Logger Verified HOU weighted by verified program savings | X121: 8.058017728 | Y121: IL TRM v10 Vol2 (calculated value based on lifetime hours) | Z121: 566 | AA121: LED Freezer (Low Temp) Case Light Fixtures (4, 5, and 6-foot) | AB121: 21.3 | AC121: PY1 Tracking Data | AE121: Linear Fluorescent T8 Fixtures | AF121: 102 | AG121: IL TRM v6 vol2 | AH121: 370-372 (portfolio weighted average) | AI121: =ROUND((AF121-AB121)/1000*U121*AS121,4) | AJ121: =ROUND(N121*O121,4) | AK121: IL TRM v10 Vol2 | AL121: 556561 | AM121: 2023-01-01 | AN121: 2023-12-31 | AS121: 1.52 | AT121: Waste Heat Factor Energy | AU121: PY2 portfolio weighted average | AW121: 1.52 | AX121: Waste Heat Factor Demand | AY121: PY2 portfolio weighted average
A122: Business Standard | B122: LED Freezer Case Lights w/Doors 4ft 5ft or 6ft repl Fluor Frezer Case Lights w/Doors 4ft 5ft or 6ft | C122: 210.5 | D122: Small C&I | E122: Lighting | G122: per fixture | H122: =11*AVERAGE(4,5,6) -> 55 | I122: IL TRM v11 Vol2 | J122: 667 | K122: 761.1301 | L122: Calculated Value | N122: 0.122664 | O122: 0.92 | P122: PY2 portfolio weighted average | R122: 0.1129 | S122: Calculated Value | U122: 6205 | V122: Evergy Logger Verified HOU weighted by verified program savings | X122: 8.058017728 | Y122: IL TRM v10 Vol2 (calculated value based on lifetime hours) | Z122: 566 | AA122: LED Freezer (Low Temp) Case Light Fixtures (4, 5, and 6-foot) | AB122: 21.3 | AC122: Weighted average efficient wattage from verified participant data from the MEEIA Cycle 3 PY1-3 portfolio with preference on most recent year of evaluated results if sufficient participation occurred | AE122: Linear Fluorescent T8 Fixtures | AF122: 102 | AG122: IL TRM v6 vol2 | AH122: 370-372 (portfolio weighted average) | AI122: =ROUND((AF122-AB122)/1000*U122*AS122,4) | AJ122: =ROUND(N122*O122,4) | AK122: IL TRM v10 Vol2 | AL122: 556561 | AM122: 2024-01-01 | AS122: 1.52 | AT122: Waste Heat Factor Energy | AU122: PY2 portfolio weighted average | AW122: 1.52 | AX122: Waste Heat Factor Demand | AY122: PY2 portfolio weighted average
A123: Business Standard | B123: Interior LED Downlight or Retrofit Kit replacing 45-60W Fixture | C123: 211.3 | D123: Small C&I | E123: Lighting | G123: per fixture | H123: 27 | I123: IL TRM v6 vol2 | J123: 370 | K123: =ROUND((AF123-AB123)/1000*U123*AS123,4) -> 199.9537 | L123: Calculated Value | N123: 0.06191 | O123: 0.7 | P123: Indiana TRM v1 | Q123: 171-172 (portfolio weighted average) | R123: =ROUND(N123*O123,4) -> 0.0433 | S123: Calculated Value | U123: 3933 | V123: Indiana TRM v1 | W123: 171-172 (portfolio weighted average) | X123: 13 | Y123: IL TRM v6 vol2 (calculated value based on lifetime hours) | Z123: 372-374 | AA123: LED Downlight or Retrofit Kit ≤ 13W | AB123: 11 | AC123: Weighted average efficient wattage ratings from verified participant data from the MEEIA Cycle 1 -2 portfolio with preference on most recent year of evaluated results if sufficient participation occurred | AE123: Incandescent and Halogen Downlights < 1000 lumens | AF123: 52 | AH123: Midpoint Value | AI123: =ROUND((AF123-AB123)/1000*U123*AS123,4) | AJ123: =ROUND(N123*O123,4) | AK123: IL TRM v6 vol2 | AL123: 364368 | AM123: 2020-01-01 | AS123: 1.24 | AT123: Waste Heat Factor Energy | AU123: IL TRM v6 vol2 | AV123: 337-338 (portfolio weighted average) | AW123: 1.51 | AX123: Waste Heat Factor Demand | AY123: IL TRM v6 vol2 | AZ123: 337-338 (portfolio weighted average)
A124: Business Standard | B124: Interior LED Downlight or Retrofit Kit replacing 61-100W Fixture | C124: 212.3 | D124: Small C&I | E124: Lighting | G124: per fixture | H124: 27 | I124: IL TRM v6 vol2 | J124: 370 | K124: =ROUND((AF124-AB124)/1000*U124*AS124,4) -> 302.369 | L124: Calculated Value | N124: 0.09362 | O124: 0.7 | P124: Indiana TRM v1 | Q124: 171-172 (portfolio weighted average) | R124: =ROUND(N124*O124,4) -> 0.0655 | S124: Calculated Value | U124: 3933 | V124: Indiana TRM v1 | W124: 171-172 (portfolio weighted average) | X124: 13 | Y124: IL TRM v6 vol2 (calculated value based on lifetime hours) | Z124: 372-374 | AA124: LED Downlight or Retrofit Kit 14 to 21W | AB124: 18 | AC124: Weighted average efficient wattage ratings from verified participant data from the MEEIA Cycle 1 -2 portfolio with preference on most recent year of evaluated results if sufficient participation occurred | AE124: Incandescent and Halogen Downlights 1000 to 2000 lumens | AF124: 80 | AH124: Midpoint Value | AI124: =ROUND((AF124-AB124)/1000*U124*AS124,4) | AJ124: =ROUND(N124*O124,4) | AK124: IL TRM v6 vol2 | AL124: 364368 | AM124: 2020-01-01 | AS124: 1.24 | AT124: Waste Heat Factor Energy | AU124: IL TRM v6 vol2 | AV124: 337-338 (portfolio weighted average) | AW124: 1.51 | AX124: Waste Heat Factor Demand | AY124: IL TRM v6 vol2 | AZ124: 337-338 (portfolio weighted average)
A125: Business Standard | B125: Interior LED Downlight or Retrofit Kit replacing 101-155W Fixture | C125: 213.3 | D125: Small C&I | E125: Lighting | G125: per fixture | H125: 27 | I125: IL TRM v6 vol2 | J125: 370 | K125: =ROUND((AF125-AB125)/1000*U125*AS125,4) -> 512.0766 | L125: Calculated Value | N125: 0.15855 | O125: 0.7 | P125: Indiana TRM v1 | Q125: 171-172 (portfolio weighted average) | R125: =ROUND(N125*O125,4) -> 0.111 | S125: Calculated Value | U125: 3933 | V125: Indiana TRM v1 | W125: 171-172 (portfolio weighted average) | X125: 13 | Y125: IL TRM v6 vol2 (calculated value based on lifetime hours) | Z125: 372-374 | AA125: LED Downlight or Retrofit Kit ≥ 22W | AB125: 23 | AC125: Weighted average efficient wattage ratings from verified participant data from the MEEIA Cycle 1 -2 portfolio with preference on most recent year of evaluated results if sufficient participation occurred | AE125: Incandescent, HID and Halogen Downlights > 2000 lumens | AF125: 128 | AH125: Midpoint Value | AI125: =ROUND((AF125-AB125)/1000*U125*AS125,4) | AJ125: =ROUND(N125*O125,4) | AK125: IL TRM v6 vol2 | AL125: 364368 | AM125: 2020-01-01 | AS125: 1.24 | AT125: Waste Heat Factor Energy | AU125: IL TRM v6 vol2 | AV125: 337-338 (portfolio weighted average) | AW125: 1.51 | AX125: Waste Heat Factor Demand | AY125: IL TRM v6 vol2 | AZ125: 337-338 (portfolio weighted average)
A126: Business Standard | B126: LED Low Bay Fixture replacing 150W-300W fixture | C126: 214.4 | D126: Small C&I | E126: Lighting | G126: per fixture | H126: =AVERAGE(44,137,202) -> 127.6666667 | I126: IL TRM v10 Vol2 | J126: 565 | K126: =ROUND((AF126-AB126)/1000*U126*AS126,4) -> 627.983 | L126: Calculated Value | N126: 0.14539 | O126: 0.66 | P126: PY2 portfolio weighted average | R126: =ROUND(N126*O126,4) -> 0.096 | S126: Calculated Value | U126: 3869.238309 | V126: PY2 portfolio weighted average | X126: =50000/U126 -> 12.92244003 | Y126: IL TRM v10 Vol2 (calculated value based on lifetime hours) | Z126: 566 | AA126: LED Low Bay (watts) | AB126: 108 | AC126: PY2 portfolio weighted average | AE126: Pulse Start Metal Halide (watts) | AF126: 257 | AG126: PY2 portfolio weihgted average | AI126: =ROUND((AF126-AB126)/1000*U126*AS126,4) | AJ126: =ROUND(N126*O126,4) | AK126: IL TRM v10 Vol2 | AL126: 556561 | AM126: 2023-01-01 | AN126: 2023-12-31 | AS126: 1.089271576 | AT126: Waste Heat Factor Energy | AU126: PY2 portfolio weighted average | AW126: 1.334865196 | AX126: Waste Heat Factor Demand | AY126: PY2 portfolio weighted average
A127: Business Standard | B127: LED Low Bay Fixture replacing 150W-300W fixture | C127: 214.5 | D127: Small C&I | E127: Lighting | G127: per fixture | H127: =AVERAGE(44,137,202) -> 127.6666667 | I127: IL TRM v10 Vol2 | J127: 565 | K127: 493.1142 | L127: Calculated Value | N127: 0.14539 | O127: 0.66 | P127: PY2 portfolio weighted average | R127: 0.096 | S127: Calculated Value | U127: 3869.238309 | V127: PY2 portfolio weighted average | X127: 12.92244003 | Y127: IL TRM v10 Vol2 (calculated value based on lifetime hours) | Z127: 566 | AA127: LED Low Bay (watts) | AB127: 108 | AC127: Weighted average efficient wattage from verified participant data from the MEEIA Cycle 3 PY1-3 portfolio with preference on most recent year of evaluated results if sufficient participation occurred | AE127: Pulse Start Metal Halide (watts) | AF127: 225 | AH127: Midpoint Value | AI127: =ROUND((AF127-AB127)/1000*U127*AS127,4) | AJ127: =ROUND(N127*O127,4) | AK127: IL TRM v10 Vol2 | AL127: 556561 | AM127: 2024-01-01 | AS127: 1.089271576 | AT127: Waste Heat Factor Energy | AU127: PY2 portfolio weighted average | AW127: 1.334865196 | AX127: Waste Heat Factor Demand | AY127: PY2 portfolio weighted average
A128: Business Standard | B128: LED Low/High Bay Fixture replacing 301W-450W fixture | C128: 215.4 | D128: Small C&I | E128: Lighting | G128: per fixture | H128: =AVERAGE(202,264) -> 233 | I128: IL TRM v10 Vol2 | J128: 565 | K128: =ROUND((AF128-AB128)/1000*U128*AS128,4) -> 1228.7477 | L128: Calculated Value | N128: 0.26867 | O128: 0.6 | P128: PY2 portfolio weighted average | R128: =ROUND(N128*O128,4) -> 0.1612 | S128: Calculated Value | U128: 3951.722672 | V128: PY2 portfolio weighted average | X128: 12.65270975 | Y128: IL TRM v10 Vol2 (calculated value based on lifetime hours) | Z128: 566 | AA128: LED High/Low Bay (watts) | AB128: 157.3 | AC128: PY2 portfolio weighted average | AE128: Pulse Start Metal Halide (watts) | AF128: 455 | AG128: PY2 portfolio weihgted average | AI128: =ROUND((AF128-AB128)/1000*U128*AS128,4) | AJ128: =ROUND(N128*O128,4) | AK128: IL TRM v10 Vol2 | AL128: 556561 | AM128: 2023-01-01 | AN128: 2023-12-31 | AS128: 1.044473483 | AT128: Waste Heat Factor Energy | AU128: PY2 portfolio weighted average | AW128: 1.210544513 | AX128: Waste Heat Factor Demand | AY128: PY2 portfolio weighted average
A129: Business Standard | B129: LED Low/High Bay Fixture replacing 301W-450W fixture | C129: 215.5 | D129: Small C&I | E129: Lighting | G129: per fixture | H129: =AVERAGE(202,264) -> 233 | I129: IL TRM v10 Vol2 | J129: 565 | K129: 900.6139 | L129: Calculated Value | N129: 0.26867 | O129: 0.6 | P129: PY2 portfolio weighted average | R129: 0.1612 | S129: Calculated Value | U129: 3951.722672 | V129: PY2 portfolio weighted average | X129: 12.65270975 | Y129: IL TRM v10 Vol2 (calculated value based on lifetime hours) | Z129: 566 | AA129: LED High/Low Bay (watts) | AB129: 157.3 | AC129: Weighted average efficient wattage from verified participant data from the MEEIA Cycle 3 PY1-3 portfolio with preference on most recent year of evaluated results if sufficient participation occurred | AE129: Pulse Start Metal Halide (watts) | AF129: 375.5 | AH129: Midpoint Value | AI129: =ROUND((AF129-AB129)/1000*U129*AS129,4) | AJ129: =ROUND(N129*O129,4) | AK129: IL TRM v10 Vol2 | AL129: 556561 | AM129: 2024-01-01 | AS129: 1.044473483 | AT129: Waste Heat Factor Energy | AU129: PY2 portfolio weighted average | AW129: 1.210544513 | AX129: Waste Heat Factor Demand | AY129: PY2 portfolio weighted average
A130: Business Standard | B130: LED High Bay Fixture replacing 451W - 750W fixture | C130: 216.4 | D130: Small C&I | E130: Lighting | G130: per fixture | H130: 264 | I130: PY2 portfolio weighted average | J130: 565 | K130: =ROUND((AF130-AB130)/1000*U130*AS130,4) -> 2235.0731 | L130: Calculated Value | N130: 0.558646 | O130: 1 | P130: PY2 portfolio weighted average | R130: =ROUND(N130*O130,4) -> 0.5586 | S130: Calculated Value | U130: 3614.370606 | V130: Assumed similar to Primary Key 217.4 due to lack of data | X130: 13.83366717 | Y130: IL TRM v10 Vol2 (calculated value based on lifetime hours) | Z130: 566 | AA130: LED High Bay (watts) | AB130: 150 | AC130: PY2 portfolio weighted average | AE130: Pulse Start Metal Halide (watts) | AF130: 750 | AG130: PY2 portfolio weihgted average | AI130: =ROUND((AF130-AB130)/1000*U130*AS130,4) | AJ130: =ROUND(N130*O130,4) | AK130: IL TRM v10 Vol2 | AL130: 556561 | AM130: 2023-01-01 | AN130: 2023-12-31 | AS130: 1.030641892 | AT130: Waste Heat Factor Energy | AU130: Assumed similar to Primary Key 217.4 due to lack of data | AW130: 1.18652027 | AX130: Waste Heat Factor Demand | AY130: Assumed similar to Primary Key 217.4 due to lack of data
A131: Business Standard | B131: LED High Bay Fixture replacing 451W - 750W fixture | C131: 216.5 | D131: Small C&I | E131: Lighting | G131: per fixture | H131: =AVERAGE(264,400) -> 332 | I131: IL TRM v11 Vol2 | J131: 668 | K131: =ROUND((AF131-AB131)/1000*U131*AS131,4) -> 1678.1674 | L131: Calculated Value | N131: 0.558646 | O131: 1 | P131: PY2 portfolio weighted average | R131: 0.5586 | S131: Calculated Value | U131: 3614.370606 | V131: Assumed similar to Primary Key 217.4 due to lack of data | X131: =50000/U131 -> 13.83366717 | Y131: IL TRM v10 Vol2 (calculated value based on lifetime hours) | Z131: 566 | AA131: LED High Bay (watts) | AB131: 150 | AC131: Weighted average efficient wattage from verified participant data from the MEEIA Cycle 3 PY1-3 portfolio with preference on most recent year of evaluated results if sufficient participation occurred | AE131: Pulse Start Metal Halide (watts) | AF131: 600.5 | AH131: Midpoint Value | AI131: =ROUND((AF131-AB131)/1000*U131*AS131,4) | AJ131: =ROUND(N131*O131,4) | AK131: IL TRM v10 Vol2 | AL131: 556561 | AM131: 2024-01-01 | AS131: 1.030641892 | AT131: Waste Heat Factor Energy | AU131: Assumed similar to Primary Key 217.4 due to lack of data | AW131: 1.18652027 | AX131: Waste Heat Factor Demand | AY131: Assumed similar to Primary Key 217.4 due to lack of data
A132: Business Standard | B132: LED High Bay fixture replacing > 750W fixture | C132: 217.4 | D132: Small C&I | E132: Lighting | G132: per fixture | H132: =AVERAGE(400,425,550) -> 458.3333333 | I132: PY2 portfolio weighted average | J132: 565 | K132: =ROUND((AF132-AB132)/1000*U132*AS132,4) -> 3166.3535 | L132: Calculated Value | N132: 1.116756 | O132: 0.56 | P132: PY2 portfolio weighted average | R132: =ROUND(N132*O132,4) -> 0.6254 | S132: Calculated Value | U132: 3614.370606 | V132: PY2 portfolio weighted average | X132: 13.83366717 | Y132: IL TRM v10 Vol2 (calculated value based on lifetime hours) | Z132: 566 | AA132: LED High Bay (watts) | AB132: 283 | AC132: PY2 portfolio weighted average | AE132: Pulse Start Metal Halide (watts) | AF132: 1133 | AG132: PY2 portfolio weihgted average | AI132: =ROUND((AF132-AB132)/1000*U132*AS132,4) | AJ132: =ROUND(N132*O132,4) | AK132: IL TRM v10 Vol2 | AL132: 556561 | AM132: 2023-01-01 | AN132: 2023-12-31 | AS132: 1.030641892 | AT132: Waste Heat Factor Energy | AU132: PY2 portfolio weighted average | AW132: 1.18652027 | AX132: Waste Heat Factor Demand | AY132: PY2 portfolio weighted average
A133: Business Standard | B133: LED High Bay fixture replacing > 750W fixture | C133: 217.5 | D133: Small C&I | E133: Lighting | G133: per fixture | H133: =AVERAGE(400,425,550) -> 458.3333333 | I133: IL TRM v11 Vol2 | J133: 668 | K133: 2968.922 | L133: Calculated Value | N133: 1.116756 | O133: 0.56 | P133: PY2 portfolio weighted average | R133: 0.6254 | S133: Calculated Value | U133: 3614.370606 | V133: PY2 portfolio weighted average | X133: 13.83366717 | Y133: IL TRM v10 Vol2 (calculated value based on lifetime hours) | Z133: 566 | AA133: LED High Bay (watts) | AB133: 283 | AC133: Weighted average efficient wattage from verified participant data from the MEEIA Cycle 3 PY1-3 portfolio with preference on most recent year of evaluated results if sufficient participation occurred | AE133: Pulse Start Metal Halide (watts) | AF133: 1080 | AG133: IL TRM v9 1000 W MH Base Watts | AI133: =ROUND((AF133-AB133)/1000*U133*AS133,4) | AJ133: =ROUND(N133*O133,4) | AK133: IL TRM v10 Vol2 | AL133: 556561 | AM133: 2024-01-01 | AS133: 1.030641892 | AT133: Waste Heat Factor Energy | AU133: PY2 portfolio weighted average | AW133: 1.18652027 | AX133: Waste Heat Factor Demand | AY133: PY2 portfolio weighted average
A134: Business Standard | B134: 28W - 4 ft fluorescent T8 lamp | C134: 218.2 | D134: Small C&I | E134: Lighting | G134: per lamp | H134: 1 | I134: IL TRM v5 vol2 | J134: 364 | K134: =ROUND((AF134-AB134)/1000*U134*AS134,4) -> 22.058 | L134: Calculated Value | N134: 0.00536 | O134: 0.72 | P134: IL TRM v6 vol2 | Q134: 337-338 (portfolio weighted average) | R134: =ROUND(N134*O134,4) -> 0.0039 | S134: Calculated Value | U134: 3911 | V134: IL TRM v6 vol2 | W134: 337-338 (portfolio weighted average) | X134: 15 | Y134: IL TRM v5 vol2 | Z134: 356 | AA134: 28W - 4 ft fluorescent T8 lamp | AB134: 28 | AC134: Weighted average efficient wattage ratings from verified participant data from the MEEIA Cycle 1 -2 portfolio with preference on most recent year of evaluated results if sufficient participation occurred | AE134: 32W 4 ft fluorescent T8 lamp | AF134: 32 | AG134: IL TRM v6 vol2 | AH134: 414 | AI134: =ROUND((AF134-AB134)/1000*U134*AS134,4) | AJ134: =ROUND(N134*O134,4) | AK134: IL TRM v5 vol2 | AL134: 357359 | AM134: 2020-01-01 | AS134: 1.41 | AT134: Waste Heat Factor Energy | AU134: IL TRM v6 vol2 | AV134: 337-338 (portfolio weighted average) | AW134: 1.34 | AX134: Waste Heat Factor Demand | AY134: IL TRM v6 vol2 | AZ134: 337-338 (portfolio weighted average)
A135: Business Standard | B135: 25W - 4 ft fluorescent T8 lamp | C135: 219.2 | D135: Small C&I | E135: Lighting | G135: per lamp | H135: 2.5 | I135: IL TRM v5 vol2 | J135: 364 | K135: =ROUND((AF135-AB135)/1000*U135*AS135,4) -> 38.6016 | L135: Calculated Value | N135: 0.00938 | O135: 0.72 | P135: IL TRM v6 vol2 | Q135: 337-338 (portfolio weighted average) | R135: =ROUND(N135*O135,4) -> 0.0068 | S135: Calculated Value | U135: 3911 | V135: IL TRM v6 vol2 | W135: 337-338 (portfolio weighted average) | X135: 15 | Y135: IL TRM v5 vol2 | Z135: 356 | AA135: 25W - 4 ft fluorescent T8 lamp | AB135: 25 | AC135: Weighted average efficient wattage ratings from verified participant data from the MEEIA Cycle 1 -2 portfolio with preference on most recent year of evaluated results if sufficient participation occurred | AE135: 32W 4 ft fluorescent T8 lamp | AF135: 32 | AG135: IL TRM v6 vol2 | AH135: 414 | AI135: =ROUND((AF135-AB135)/1000*U135*AS135,4) | AJ135: =ROUND(N135*O135,4) | AK135: IL TRM v5 vol2 | AL135: 357359 | AM135: 2020-01-01 | AS135: 1.41 | AT135: Waste Heat Factor Energy | AU135: IL TRM v6 vol2 | AV135: 337-338 (portfolio weighted average) | AW135: 1.34 | AX135: Waste Heat Factor Demand | AY135: IL TRM v6 vol2 | AZ135: 337-338 (portfolio weighted average)
A136: Business Standard | B136: 28W 4ft T8 Lamp Replacing 32W 4ft T8 Lamp | C136: 224.3 | D136: C&I | E136: Lighting | G136: per lamp | H136: 1 | I136: IL TRM v5 vol2 | J136: 364 | K136: =ROUND((AF136-AB136)/1000*U136*AS136,4) -> 22.058 | L136: Calculated Value | N136: 0.00536 | O136: 0.72 | P136: IL TRM v6 vol2 | Q136: 337-338 (portfolio weighted average) | R136: =ROUND(N136*O136,4) -> 0.0039 | S136: Calculated Value | U136: 3911 | V136: IL TRM v6 vol2 | W136: 337-338 (portfolio weighted average) | X136: 15 | Y136: IL TRM v5 vol2 | Z136: 356 | AA136: 28W - 4 ft fluorescent T8 lamp | AB136: 28 | AC136: Weighted average efficient wattage ratings from verified participant data from the MEEIA Cycle 1 -2 portfolio with preference on most recent year of evaluated results if sufficient participation occurred | AE136: 32W 4 ft fluorescent T8 lamp | AF136: 32 | AG136: IL TRM v6 vol2 | AH136: 414 | AI136: =ROUND((AF136-AB136)/1000*U136*AS136,4) | AJ136: =ROUND(N136*O136,4) | AK136: IL TRM v5 vol2 | AL136: 357359 | AM136: 2020-01-01 | AS136: 1.41 | AT136: Waste Heat Factor Energy | AU136: IL TRM v6 vol2 | AV136: 337-338 (portfolio weighted average) | AW136: 1.34 | AX136: Waste Heat Factor Demand | AY136: IL TRM v6 vol2 | AZ136: 337-338 (portfolio weighted average)
A137: Business Standard | B137: 25W 4ft T8 Lamp Replacing 32W 4ft T8 Lamp | C137: 225.3 | D137: C&I | E137: Lighting | G137: per lamp | H137: 2.5 | I137: IL TRM v5 vol2 | J137: 364 | K137: =ROUND((AF137-AB137)/1000*U137*AS137,4) -> 38.6016 | L137: Calculated Value | N137: 0.00938 | O137: 0.72 | P137: IL TRM v6 vol2 | Q137: 337-338 (portfolio weighted average) | R137: =ROUND(N137*O137,4) -> 0.0068 | S137: Calculated Value | U137: 3911 | V137: IL TRM v6 vol2 | W137: 337-338 (portfolio weighted average) | X137: 15 | Y137: IL TRM v5 vol2 | Z137: 356 | AA137: 25W - 4 ft fluorescent T8 lamp | AB137: 25 | AC137: Weighted average efficient wattage ratings from verified participant data from the MEEIA Cycle 1 -2 portfolio with preference on most recent year of evaluated results if sufficient participation occurred | AE137: 32W 4 ft fluorescent T8 lamp | AF137: 32 | AG137: IL TRM v6 vol2 | AH137: 414 | AI137: =ROUND((AF137-AB137)/1000*U137*AS137,4) | AJ137: =ROUND(N137*O137,4) | AK137: IL TRM v5 vol2 | AL137: 357359 | AM137: 2020-01-01 | AS137: 1.41 | AT137: Waste Heat Factor Energy | AU137: IL TRM v6 vol2 | AV137: 337-338 (portfolio weighted average) | AW137: 1.34 | AX137: Waste Heat Factor Demand | AY137: IL TRM v6 vol2 | AZ137: 337-338 (portfolio weighted average)
A138: Business Standard | B138: LED low bay mogul screw-base lamp/retrofit kit replacing 150W - 300W fixture | C138: 226.4 | D138: C&I | E138: Lighting | G138: per fixture | H138: 100 | I138: IL TRM v6 vol2 | J138: 371 | K138: =ROUND((AF138-AB138)/1000*U138*AS138,4) -> 754.692 | L138: Calculated Value | N138: =(AF138-AB138)/1000*AW138 -> 0.2045380323 | O138: 0.72 | P138: PY2 portfolio weighted average | R138: =ROUND(N138*O138,4) -> 0.1473 | S138: Calculated Value | U138: 4349.963404 | V138: PY2 portfolio weighted average | X138: =50000/U138 -> 11.49434957 | Y138: IL TRM v10 Vol2 (calculated value based on lifetime hours) | Z138: 568 | AA138: LED Low Bay (watts) | AB138: 48 | AC138: PY2 portfolio weighted average | AE138: Pulse Start Metal Halide (watts) | AF138: 205 | AG138: PY2 portfolio weighted average | AH138: Midpoint Value | AI138: =ROUND((AF138-AB138)/1000*U138*AS138,4) | AJ138: =ROUND(N138*O138,4) | AK138: IL TRM v10 Vol2 | AL138: 556561 | AM138: 2023-01-01 | AN138: 2023-12-31 | AS138: 1.105056518 | AT138: Waste Heat Factor Energy | AU138: PY2 portfolio weighted average | AW138: 1.302790014 | AX138: Waste Heat Factor_Demand | AY138: PY2 portfolio weighted average
A139: Business Standard | B139: LED low bay mogul screw-base lamp/retrofit kit replacing 150W - 300W fixture | C139: 226.5 | D139: C&I | E139: Lighting | G139: per fixture | H139: 100 | I139: IL TRM v6 vol2 | J139: 371 | K139: 850.8311 | L139: Calculated Value | N139: 0.2305938326 | O139: 0.72 | P139: PY2 portfolio weighted average | R139: 0.166 | S139: Calculated Value | U139: 4349.963404 | V139: PY2 portfolio weighted average | X139: 11.49434957 | Y139: IL TRM v10 Vol2 (calculated value based on lifetime hours) | Z139: 568 | AA139: LED Low Bay (watts) | AB139: 48 | AC139: PY2 portfolio weighted average | AE139: Pulse Start Metal Halide (watts) | AF139: =(150+300)/2 -> 225 | AH139: Midpoint Value | AI139: =ROUND((AF139-AB139)/1000*U139*AS139,4) | AJ139: =ROUND(N139*O139,4) | AK139: IL TRM v10 Vol2 | AL139: 556561 | AM139: 2024-01-01 | AS139: 1.105056518 | AT139: Waste Heat Factor Energy | AU139: PY2 portfolio weighted average | AW139: 1.302790014 | AX139: Waste Heat Factor_Demand | AY139: PY2 portfolio weighted average
A140: Business Standard | B140: LED low/high bay mogul screw-base lamp/retrofit kit replacing 301W - 450W fixture | C140: 227.4 | D140: C&I | E140: Lighting | G140: per fixture | H140: 150 | I140: IL TRM v6 vol2 | J140: 371 | K140: =ROUND((AF140-AB140)/1000*U140*AS140,4) -> 1365.1292 | L140: Calculated Value | N140: =(AF140-AB140)/1000*AW140 -> 0.400738283 | O140: 0.61 | P140: PY2 portfolio weighted average | R140: =ROUND(N140*O140,4) -> 0.2445 | S140: Calculated Value | U140: 3962.307881 | V140: PY2 portfolio weighted average | X140: 12.61890835 | Y140: IL TRM v10 Vol2 (calculated value based on lifetime hours) | Z140: 568 | AA140: LED High/Low Bay (watts) | AB140: 124 | AC140: PY2 portfolio weighted average | AE140: Pulse Start Metal Halide (watts) | AF140: 450 | AG140: PY2 portfolio weighted average | AH140: Midpoint Value | AI140: =ROUND((AF140-AB140)/1000*U140*AS140,4) | AJ140: =ROUND(N140*O140,4) | AK140: IL TRM v10 Vol2 | AL140: 556561 | AM140: 2023-01-01 | AN140: 2023-12-31 | AS140: 1.056836818 | AT140: Waste Heat Factor Energy | AU140: PY2 portfolio weighted average | AW140: 1.229258537 | AX140: Waste Heat Factor_Demand | AY140: PY2 portfolio weighted average
A141: Business Standard | B141: LED low/high bay mogul screw-base lamp/retrofit kit replacing 301W - 450W fixture | C141: 227.5 | D141: C&I | E141: Lighting | G141: per fixture | H141: 150 | I141: IL TRM v6 vol2 | J141: 371 | K141: =ROUND((AF141-AB141)/1000*U141*AS141,4) -> 1053.1595 | L141: Calculated Value | N141: =(AF141-AB141)/1000*AW141 -> 0.309158522 | O141: 0.61 | P141: PY2 portfolio weighted average | R141: =ROUND(N141*O141,4) -> 0.1886 | S141: Calculated Value | U141: 3962.307881 | V141: PY2 portfolio weighted average | X141: 12.61890835 | Y141: IL TRM v10 Vol2 (calculated value based on lifetime hours) | Z141: 568 | AA141: LED High/Low Bay (watts) | AB141: 124 | AC141: PY2 portfolio weighted average | AE141: Pulse Start Metal Halide (watts) | AF141: =(450+301)/2 -> 375.5 | AH141: Midpoint Value | AI141: =ROUND((AF141-AB141)/1000*U141*AS141,4) | AJ141: =ROUND(N141*O141,4) | AK141: IL TRM v10 Vol2 | AL141: 556561 | AM141: 2024-01-01 | AS141: 1.056836818 | AT141: Waste Heat Factor Energy | AU141: PY2 portfolio weighted average | AW141: 1.229258537 | AX141: Waste Heat Factor_Demand | AY141: PY2 portfolio weighted average
A142: Business Standard | B142: LED high bay mogul screw-base lamp/retrofit kit replacing 451W - 750W fixture | C142: 228.4 | D142: C&I | E142: Lighting | G142: per fixture | H142: 200 | I142: IL TRM v6 vol2 | J142: 371 | K142: =ROUND((AF142-AB142)/1000*U142*AS142,4) -> 2460.1322 | L142: Calculated Value | N142: =(AF142-AB142)/1000*AW142 -> 0.7978641667 | O142: 0.69 | P142: PY2 portfolio weighted average | R142: =ROUND(N142*O142,4) -> 0.5505 | S142: Calculated Value | U142: 3635.578299 | V142: PY2 portfolio weighted average | X142: 13.7529702 | Y142: IL TRM v10 Vol2 (calculated value based on lifetime hours) | Z142: 568 | AA142: LED High Bay (watts) | AB142: 192 | AC142: PY2 portfolio weighted average | AE142: Pulse Start Metal Halide (watts) | AF142: 803 | AG142: PY2 portfolio weighted average | AH142: Midpoint Value | AI142: =ROUND((AF142-AB142)/1000*U142*AS142,4) | AJ142: =ROUND(N142*O142,4) | AK142: IL TRM v10 Vol2 | AL142: 556561 | AM142: 2023-01-01 | AN142: 2023-12-31 | AS142: 1.1075 | AT142: Waste Heat Factor Energy | AU142: PY2 portfolio weighted average | AW142: 1.305833333 | AX142: Waste Heat Factor_Demand | AY142: PY2 portfolio weighted average
A143: Business Standard | B143: LED high bay mogul screw-base lamp/retrofit kit replacing 451W - 750W fixture | C143: 228.5 | D143: C&I | E143: Lighting | G143: per fixture | H143: 200 | I143: IL TRM v6 vol2 | J143: 371 | K143: =ROUND((AF143-AB143)/1000*U143*AS143,4) -> 1644.7856 | L143: Calculated Value | N143: =(AF143-AB143)/1000*AW143 -> 0.5334329167 | O143: 0.69 | P143: PY2 portfolio weighted average | R143: =ROUND(N143*O143,4) -> 0.3681 | S143: Calculated Value | U143: 3635.578299 | V143: PY2 portfolio weighted average | X143: 13.7529702 | Y143: IL TRM v10 Vol2 (calculated value based on lifetime hours) | Z143: 568 | AA143: LED High Bay (watts) | AB143: 192 | AC143: PY2 portfolio weighted average | AE143: Pulse Start Metal Halide (watts) | AF143: =(750+451)/2 -> 600.5 | AH143: Midpoint Value | AI143: =ROUND((AF143-AB143)/1000*U143*AS143,4) | AJ143: =ROUND(N143*O143,4) | AK143: IL TRM v10 Vol2 | AL143: 556561 | AM143: 2024-01-01 | AS143: 1.1075 | AT143: Waste Heat Factor Energy | AU143: PY2 portfolio weighted average | AW143: 1.305833333 | AX143: Waste Heat Factor_Demand | AY143: PY2 portfolio weighted average
A144: Business Standard | B144: LED high bay mogul screw-base lamp/retrofit kit replacing > 750W fixture | C144: 229.2 | D144: C&I | E144: Lighting | G144: per fixture | H144: 350 | I144: IL TRM v6 vol2 | J144: 371 | K144: =ROUND((AF144-AB144)/1000*U144*AS144,4) -> 3276.4441 | L144: Calculated Value | N144: =(AF144-AB144)/1000*AW144 -> 0.96096 | O144: 0.67 | P144: IL TRM v9 Unknown Value (aligns with portfolio weighted average of Evergy Logger Verified CF) | Q144: 471 | R144: =ROUND(N144*O144,4) -> 0.6438 | S144: Calculated Value | U144: 4129 | V144: Evergy Logger Verified HOU weighted by verified program savings | X144: 11 | Y144: IL TRM v6 vol2 (calculated value based on lifetime hours) | Z144: 373374 | AA144: LED High Bay (watts) | AB144: 350 | AC144: Program Tracking Data | AE144: Pulse Start Metal Halide (watts) | AF144: 1078 | AG144: IL TRM v6 vol2 | AH144: 370-372 (portfolio weighted average) | AI144: =ROUND((AF144-AB144)/1000*U144*AS144,4) | AJ144: =ROUND(N144*O144,4) | AK144: IL TRM v6 vol2 | AL144: 364368 | AM144: 2022-01-01 | AN144: 2023-12-31 | AS144: 1.09 | AT144: Waste Heat Factor Energy | AU144: IL TRM v8 building specific values weighted by Evergy verified program savings | AV144: 430-432 (portfolio weighted average) | AW144: 1.32 | AX144: Waste Heat Factor_Demand | AY144: IL TRM v8 building specific values weighted by Evergy verified program savings | AZ144: 430-432 (portfolio weighted average)
A145: Business Standard | B145: LED low bay mogul screw-base lamp/retrofit kit replacing 150W - 300W fixture | C145: 230.3 | D145: Small C&I | E145: Lighting | G145: per fixture | H145: 100 | I145: IL TRM v6 vol2 | J145: 371 | K145: =ROUND((AF145-AB145)/1000*U145*AS145,4) -> 754.692 | L145: Calculated Value | N145: =(AF145-AB145)/1000*AW145 -> 0.2045380323 | O145: 0.7172555112 | P145: PY2 portfolio weighted average | R145: =ROUND(N145*O145,4) -> 0.1467 | S145: Calculated Value | U145: 4349.963404 | V145: PY2 portfolio weighted average | X145: =50000/U145 -> 11.49434957 | Y145: IL TRM v10 Vol2 (calculated value based on lifetime hours) | Z145: 568 | AA145: LED Low Bay (watts) | AB145: 48 | AC145: PY2 portfolio weighted average | AE145: Pulse Start Metal Halide (watts) | AF145: 205 | AG145: PY2 portfolio weighted average | AH145: Midpoint Value | AI145: =ROUND((AF145-AB145)/1000*U145*AS145,4) | AJ145: =ROUND(N145*O145,4) | AK145: IL TRM v10 Vol2 | AL145: 556561 | AM145: 2023-01-01 | AN145: 2023-12-31 | AS145: 1.105056518 | AT145: Waste Heat Factor Energy | AU145: PY2 portfolio weighted average | AW145: 1.302790014 | AX145: Waste Heat Factor Demand | AY145: PY2 portfolio weighted average
A146: Business Standard | B146: LED low bay mogul screw-base lamp/retrofit kit replacing 150W - 300W fixture | C146: 230.4 | D146: Small C&I | E146: Lighting | G146: per fixture | H146: 100 | I146: IL TRM v6 vol2 | J146: 371 | K146: 850.8311 | L146: Calculated Value | N146: 0.2305938326 | O146: 0.7172555112 | P146: PY2 portfolio weighted average | R146: 0.1654 | S146: Calculated Value | U146: 4349.963404 | V146: PY2 portfolio weighted average | X146: 11.49434957 | Y146: IL TRM v10 Vol2 (calculated value based on lifetime hours) | Z146: 568 | AA146: LED Low Bay (watts) | AB146: 48 | AC146: PY2 portfolio weighted average | AE146: Pulse Start Metal Halide (watts) | AF146: =(150+300)/2 -> 225 | AH146: Midpoint Value | AI146: =ROUND((AF146-AB146)/1000*U146*AS146,4) | AJ146: =ROUND(N146*O146,4) | AK146: IL TRM v10 Vol2 | AL146: 556561 | AM146: 2024-01-01 | AS146: 1.105056518 | AT146: Waste Heat Factor Energy | AU146: PY2 portfolio weighted average | AW146: 1.302790014 | AX146: Waste Heat Factor Demand | AY146: PY2 portfolio weighted average
A147: Business Standard | B147: LED low/high bay mogul screw-base lamp/retrofit kit replacing 301W - 450W fixture | C147: 231.3 | D147: Small C&I | E147: Lighting | G147: per fixture | H147: 150 | I147: IL TRM v6 vol2 | J147: 371 | K147: =ROUND((AF147-AB147)/1000*U147*AS147,4) -> 1365.1292 | L147: Calculated Value | N147: =(AF147-AB147)/1000*AW147 -> 0.400738283 | O147: 0.6115308262 | P147: PY2 portfolio weighted average | R147: =ROUND(N147*O147,4) -> 0.2451 | S147: Calculated Value | U147: 3962.307881 | V147: PY2 portfolio weighted average | X147: 12.61890835 | Y147: IL TRM v10 Vol2 (calculated value based on lifetime hours) | Z147: 568 | AA147: LED High/Low Bay (watts) | AB147: 124 | AC147: PY2 portfolio weighted average | AE147: Pulse Start Metal Halide (watts) | AF147: 450 | AG147: PY2 portfolio weighted average | AH147: Midpoint Value | AI147: =ROUND((AF147-AB147)/1000*U147*AS147,4) | AJ147: =ROUND(N147*O147,4) | AK147: IL TRM v10 Vol2 | AL147: 556561 | AM147: 2023-01-01 | AN147: 2023-12-31 | AS147: 1.056836818 | AT147: Waste Heat Factor Energy | AU147: PY2 portfolio weighted average | AW147: 1.229258537 | AX147: Waste Heat Factor Demand | AY147: PY2 portfolio weighted average
A148: Business Standard | B148: LED low/high bay mogul screw-base lamp/retrofit kit replacing 301W - 450W fixture | C148: 231.4 | D148: Small C&I | E148: Lighting | G148: per fixture | H148: 150 | I148: IL TRM v6 vol2 | J148: 371 | K148: =ROUND((AF148-AB148)/1000*U148*AS148,4) -> 1053.1595 | L148: Calculated Value | N148: =(AF148-AB148)/1000*AW148 -> 0.309158522 | O148: 0.6115308262 | P148: PY2 portfolio weighted average | R148: =ROUND(N148*O148,4) -> 0.1891 | S148: Calculated Value | U148: 3962.307881 | V148: PY2 portfolio weighted average | X148: 12.61890835 | Y148: IL TRM v10 Vol2 (calculated value based on lifetime hours) | Z148: 568 | AA148: LED High/Low Bay (watts) | AB148: 124 | AC148: PY2 portfolio weighted average | AE148: Pulse Start Metal Halide (watts) | AF148: =(450+301)/2 -> 375.5 | AH148: Midpoint Value | AI148: =cellformula(K148) -> =ROUND((AF148-AB148)/1000*U148*AS148,4) | AJ148: =cellformula(R148) -> =ROUND(N148*O148,4) | AK148: IL TRM v10 Vol2 | AL148: 556561 | AM148: 2024-01-01 | AS148: 1.056836818 | AT148: Waste Heat Factor Energy | AU148: PY2 portfolio weighted average | AW148: 1.229258537 | AX148: Waste Heat Factor Demand | AY148: PY2 portfolio weighted average
A149: Business Standard | B149: LED high bay mogul screw-base lamp/retrofit kit replacing 451W - 750W fixture | C149: 232.3 | D149: Small C&I | E149: Lighting | G149: per fixture | H149: 200 | I149: IL TRM v6 vol2 | J149: 371 | K149: =ROUND((AF149-AB149)/1000*U149*AS149,4) -> 2460.1322 | L149: Calculated Value | N149: =(AF149-AB149)/1000*AW149 -> 0.7978641667 | O149: 0.6925424893 | P149: PY2 portfolio weighted average | R149: =ROUND(N149*O149,4) -> 0.5526 | S149: Calculated Value | U149: 3635.578299 | V149: PY2 portfolio weighted average | X149: 13.7529702 | Y149: IL TRM v10 Vol2 (calculated value based on lifetime hours) | Z149: 568 | AA149: LED High Bay (watts) | AB149: 192 | AC149: PY2 portfolio weighted average | AE149: Pulse Start Metal Halide (watts) | AF149: 803 | AG149: PY2 portfolio weighted average | AH149: Midpoint Value | AI149: =ROUND((AF149-AB149)/1000*U149*AS149,4) | AJ149: =ROUND(N149*O149,4) | AK149: IL TRM v10 Vol2 | AL149: 556561 | AM149: 2023-01-01 | AN149: 2023-12-31 | AS149: 1.1075 | AT149: Waste Heat Factor Energy | AU149: PY2 portfolio weighted average | AW149: 1.305833333 | AX149: Waste Heat Factor Demand | AY149: PY2 portfolio weighted average
A150: Business Standard | B150: LED high bay mogul screw-base lamp/retrofit kit replacing 451W - 750W fixture | C150: 232.4 | D150: Small C&I | E150: Lighting | G150: per fixture | H150: 200 | I150: IL TRM v6 vol2 | J150: 371 | K150: =ROUND((AF150-AB150)/1000*U150*AS150,4) -> 1644.7856 | L150: Calculated Value | N150: =(AF150-AB150)/1000*AW150 -> 0.5334329167 | O150: 0.6925424893 | P150: PY2 portfolio weighted average | R150: =ROUND(N150*O150,4) -> 0.3694 | S150: Calculated Value | U150: 3635.578299 | V150: PY2 portfolio weighted average | X150: 13.7529702 | Y150: IL TRM v10 Vol2 (calculated value based on lifetime hours) | Z150: 568 | AA150: LED High Bay (watts) | AB150: 192 | AC150: PY2 portfolio weighted average | AE150: Pulse Start Metal Halide (watts) | AF150: =(750+451)/2 -> 600.5 | AH150: Midpoint Value | AI150: =ROUND((AF150-AB150)/1000*U150*AS150,4) | AJ150: =ROUND(N150*O150,4) | AK150: IL TRM v10 Vol2 | AL150: 556561 | AM150: 2024-01-01 | AS150: 1.1075 | AT150: Waste Heat Factor Energy | AU150: PY2 portfolio weighted average | AW150: 1.305833333 | AX150: Waste Heat Factor Demand | AY150: PY2 portfolio weighted average
A151: Business Standard | B151: LED high bay mogul screw-base lamp/retrofit kit replacing > 750W fixture | C151: 233.1 | D151: Small C&I | E151: Lighting | G151: per fixture | H151: 350 | I151: IL TRM v6 vol2 | J151: 371 | K151: =ROUND((AF151-AB151)/1000*U151*AS151,4) -> 4482.6382 | L151: Calculated Value | N151: =(AF151-AB151)/1000*AW151 -> 0.97552 | O151: 0.83 | P151: IL TRM v6 vol2 | Q151: 337-338 (portfolio weighted average) | R151: =ROUND(N151*O151,4) -> 0.8097 | S151: Calculated Value | U151: 4367 | V151: IL TRM v6 vol2 | W151: 337-338 (portfolio weighted average) | X151: 12 | Y151: IL TRM v6 vol2 | Z151: 373374 | AA151: LED High Bay (watts) | AB151: 350 | AC151: Program Tracking Data | AE151: Pulse Start Metal Halide (watts) | AF151: 1078 | AG151: IL TRM v6 vol2 | AH151: 370-372 (portfolio weighted average) | AI151: =ROUND((AF151-AB151)/1000*U151*AS151,4) | AJ151: =ROUND(N151*O151,4) | AK151: IL TRM v6 vol2 | AL151: 364368 | AM151: 2020-01-01 | AN151: 2023-12-31 | AS151: 1.41 | AT151: Waste Heat Factor Energy | AU151: IL TRM v6 vol2 | AV151: 337-338 (portfolio weighted average) | AW151: 1.34 | AX151: Waste Heat Factor Demand | AY151: IL TRM v6 vol2 | AZ151: 337-338 (portfolio weighted average)
A152: Business Standard | B152: Low Flow Faucet Aerator Kitchen | C152: 251.1 | D152: C&I | E152: Hot Water | F152: Kitchen | G152: per unit | H152: 8 | I152: IL TRM v5 vol2 | J152: 93 | K152: =ROUND(1*(AF152-AB152)/AF152*AS152*AW152*BA152,4) -> 74.5049 | L152: Calculated Value | N152: =ROUND(K152/BE152,4) -> 3.0622 | O152: 0.0064 | P152: IL TRM v5 vol2 | Q152: 97 | R152: =ROUND(K152/BE152*O152,4) -> 0.0196 | S152: Calculated Value | V152: IL TRM v5 vol2 | W152: 96 | X152: 9 | Y152: IL TRM v5 vol2 | Z152: 93 | AA152: Low Flow (GPM) | AB152: 0.94 | AC152: IL TRM v5 vol2 | AD152: 94 | AE152: Standard (GPM) | AF152: 1.39 | AG152: IL TRM v5 vol2 | AH152: 94 | AI152: =ROUND(1*(AF152-AB152)/AF152*AS152*AW152*BA152,4) | AJ152: =ROUND(K152/BE152*O152,4) | AK152: IL TRM v5 vol2 | AL152: 94,96 | AM152: 2020-01-01 | AS152: 2500 | AT152: Usage - Estimated usage of mixed water (mixture of hot water from water heater line and cold water line) per faucet (gallons per year) | AU152: IL TRM v5 vol2 | AV152: 95 | AW152: 0.0969 | AX152: EPG_electric - Energy per gallon of mixed water used by faucet (electric water heater) | AY152: IL TRM v5 vol2 | AZ152: 95 | BA152: 0.95 | BB152: ISR - in service rate | BC152: IL TRM v5 vol2 | BD152: 96 | BE152: 24.33035714 | BF152: Annual Recovery Hours - Annual electric DHW recovery hours for faucet use | BG152: IL TRM v5 vol2 | BH152: 96
A153: Business Standard | B153: Low Flow Faucet Aerator Bathroom | C153: 252.2 | D153: C&I | E153: Hot Water | F153: Bathroom | G153: per unit | H153: 8 | I153: IL TRM v5 vol2 | J153: 93 | K153: =ROUND(1*(AF153-AB153)/AF153*AS153*AW153*BA153,4) -> 122.2527 | L153: Calculated Value | N153: =ROUND(K153/BE153,4) -> 2.5123 | O153: 0.0128 | P153: IL TRM v7 vol2 | Q153: 97 | R153: =ROUND(K153/BE153*O153,4) -> 0.0322 | S153: Calculated Value | X153: 9 | Y153: IL TRM v5 vol2 | Z153: 93 | AA153: Low Flow (GPM) | AB153: 0.94 | AC153: IL TRM v5 vol2 | AD153: 94 | AE153: Standard (GPM) | AF153: 1.39 | AG153: IL TRM v7 vol2 | AH153: 94 | AI153: =ROUND(1*(AF153-AB153)/AF153*AS153*AW153*BA153,4) | AJ153: =ROUND(K153/BE153*O153,4) | AK153: IL TRM v5 vol2 | AL153: 94,96 | AM153: 2020-05-01 | AS153: 5000 | AT153: Usage - Estimated usage of mixed water (mixture of hot water from water heater line and cold water line) per faucet (gallons per year). Used 'Other' space type | AU153: IL TRM v7 vol2 | AV153: 95 | AW153: 0.0795 | AX153: EPG_electric - Energy per gallon of mixed water used by faucet (electric water heater) | AY153: IL TRM v5 vol2 | AZ153: 95 | BA153: 0.95 | BB153: ISR - in service rate | BC153: IL TRM v5 vol2 | BD153: 96 | BE153: =AS153*0.545/56 -> 48.66071429 | BF153: Annual Recovery Hours - Annual electric DHW recovery hours for faucet use. 'Other' space type. | BG153: IL TRM v7 vol2 | BH153: 97
A154: Business Standard | B154: Pre-Rinse Spray Valves Small | C154: 253.1 | D154: C&I | E154: Hot Water | F154: Small, quick- service restaurants | G154: per unit | H154: 100 | I154: IL TRM v5 vol2 | J154: 62 | K154: =ROUND((AF154-AB154)*60*BA154*BE154*8.33*1*AS154/AW154/3413,4) -> 2769.6198 | L154: Calculated Value | R154: =ROUND(0,4) -> 0 | S154: IL TRM v5 vol2 | T154: 63 | X154: 5 | Y154: IL TRM v5 vol2 | Z154: 62 | AA154: Low Flow (GPM) | AB154: 1.06 | AC154: IL TRM v5 vol2 | AD154: 64 | AE154: Standard (GPM) | AF154: 1.9 | AG154: IL TRM v5 vol2 | AH154: 64 | AI154: =ROUND((AF154-AB154)*60*BA154*BE154*8.33*1*AS154/AW154/3413,4) | AJ154: =ROUND(0,4) | AK154: IL TRM v5 vol2 | AL154: 63 | AM154: 2020-01-01 | AS154: 70 | AT154: Temp difference between water heater outlet water temperature | AU154: IL TRM v5 vol2 | AV154: 63 | AW154: 0.97 | AX154: EFF_Elec - Efficiency of electric water heater supplying hot water to pre-rinse spray valve | AY154: IL TRM v5 vol2 | AZ154: 63 | BA154: 1 | BB154: Hours per day that the pre-rinse spray valve is used at the site - Hours/day | BC154: IL TRM v5 vol2 | BD154: 65 | BE154: 312 | BF154: Days per year | BG154: IL TRM v5 vol2 | BH154: 65
A155: Business Standard | B155: Pre-Rinse Spray Valves Medium | C155: 254.1 | D155: C&I | E155: Hot Water | F155: Medium-sized casual dining restaurants | G155: per unit | H155: 100 | I155: IL TRM v5 vol2 | J155: 62 | K155: =ROUND((AF155-AB155)*60*BA155*BE155*8.33*1*AS155/AW155/3413,4) -> 4154.4296 | L155: Calculated Value | R155: =ROUND(0,4) -> 0 | S155: IL TRM v5 vol2 | T155: 63 | X155: 5 | Y155: IL TRM v5 vol2 | Z155: 62 | AA155: Low Flow (GPM) | AB155: 1.06 | AC155: IL TRM v5 vol2 | AD155: 64 | AE155: Standard (GPM) | AF155: 1.9 | AG155: IL TRM v5 vol2 | AH155: 64 | AI155: =ROUND((AF155-AB155)*60*BA155*BE155*8.33*1*AS155/AW155/3413,4) | AJ155: =ROUND(0,4) | AK155: IL TRM v5 vol2 | AL155: 63 | AM155: 2020-01-01 | AS155: 70 | AT155: Temp difference between water heater outlet water temperature | AU155: IL TRM v5 vol2 | AV155: 63 | AW155: 0.97 | AX155: EFF_Elec - Efficiency of electric water heater supplying hot water to pre-rinse spray valve | AY155: IL TRM v5 vol2 | AZ155: 63 | BA155: 1.5 | BB155: Hours per day that the pre-rinse spray valve is used at the site - Hours/day | BC155: IL TRM v5 vol2 | BD155: 65 | BE155: 312 | BF155: Days per year | BG155: IL TRM v5 vol2 | BH155: 65
A156: Business Standard | B156: Pre-Rinse Spray Valves Large | C156: 255.1 | D156: C&I | E156: Hot Water | F156: Large institutional establishments with cafeteria | G156: per unit | H156: 100 | I156: IL TRM v5 vol2 | J156: 62 | K156: =ROUND((AF156-AB156)*60*BA156*BE156*8.33*1*AS156/AW156/3413,4) -> 8308.8593 | L156: Calculated Value | R156: =ROUND(0,4) -> 0 | S156: IL TRM v5 vol2 | T156: 63 | X156: 5 | Y156: IL TRM v5 vol2 | Z156: 62 | AA156: Low Flow (GPM) | AB156: 1.06 | AC156: IL TRM v5 vol2 | AD156: 64 | AE156: Standard (GPM) | AF156: 1.9 | AG156: IL TRM v5 vol2 | AH156: 64 | AI156: =ROUND((AF156-AB156)*60*BA156*BE156*8.33*1*AS156/AW156/3413,4) | AJ156: =ROUND(0,4) | AK156: IL TRM v5 vol2 | AL156: 63 | AM156: 2020-01-01 | AS156: 70 | AT156: Temp difference between water heater outlet water temperature | AU156: IL TRM v5 vol2 | AV156: 63 | AW156: 0.97 | AX156: EFF_Elec - Efficiency of electric water heater supplying hot water to pre-rinse spray valve | AY156: IL TRM v5 vol2 | AZ156: 63 | BA156: 3 | BB156: Hours per day that the pre-rinse spray valve is used at the site - Hours/day | BC156: IL TRM v5 vol2 | BD156: 65 | BE156: 312 | BF156: Days per year | BG156: IL TRM v5 vol2 | BH156: 65
A157: Business Standard | B157: ENERGY STAR Beverage Machine w/o software | C157: 256.1 | D157: C&I | E157: Refrigeration | F157: kWh savings per machine w/o software | G157: per unit | H157: 500 | I157: IL TRM v6 vol2 | J157: 445 | K157: =ROUND(1310,4) -> 1310 | L157: IL TRM v6 vol2 | M157: 446 | O157: 0 | P157: IL TRM v6 vol2 | Q157: 446 | R157: =ROUND(0,4) -> 0 | S157: IL TRM v6 vol2 | T157: 446 | X157: 14 | Y157: IL TRM v6 vol2 | Z157: 445 | AA157: Energy Star Vending Machine w/o software | AC157: IL TRM v6 vol2 | AD157: 445 | AE157: Standard Vending Machine | AG157: IL TRM v6 vol2 | AH157: 445 | AI157: =ROUND(1310,4) | AJ157: =ROUND(0,4) | AK157: IL TRM v6 vol2 | AL157: 446 | AM157: 2020-01-01
A158: Business Standard | B158: ENERGY STAR Beverage Machine w/ software | C158: 257.1 | D158: C&I | E158: Refrigeration | F158: kWh savings per machine w/ software | G158: per unit | H158: 500 | I158: IL TRM v6 vol2 | J158: 445 | K158: =ROUND(1842,4) -> 1842 | L158: IL TRM v6 vol2 | M158: 446 | O158: 0 | P158: IL TRM v6 vol2 | Q158: 446 | R158: =ROUND(0,4) -> 0 | S158: IL TRM v6 vol2 | T158: 446 | X158: 14 | Y158: IL TRM v6 vol2 | Z158: 445 | AA158: Energy Star Vending Machine w software | AC158: IL TRM v6 vol2 | AD158: 445 | AE158: Standard Vending Machine | AG158: IL TRM v6 vol2 | AH158: 445 | AI158: =ROUND(1842,4) | AJ158: =ROUND(0,4) | AK158: IL TRM v6 vol2 | AL158: 446 | AM158: 2020-01-01
A159: Business Standard | B159: High Efficiency Reach-In Refrigerator | C159: 258.2 | D159: C&I | E159: Refrigeration | F159: No unique savings for this measure. The savings is based on actual chilled or frozen compartment volume of the efficient unit. This measure life is for refrigerator | G159: per unit | H159: 164 | I159: IL TRM v6 vol2 | J159: 22 | K159: =ROUND((AF159-AB159)*365.25,4) -> 295.8525 | L159: Calculated Value | O159: 0.937 | P159: IL TRM v5 vol2 | Q159: 24 | R159: =ROUND(K159/U159*O159,4) -> 0.0316 | S159: Calculated Value | U159: 8766 | V159: IL TRM v5 vol2 | W159: 24 | X159: 12 | Y159: IL TRM v5 vol2 | Z159: 22 | AA159: High Efficiency kWh/day | AB159: 1.3 | AC159: IL TRM v9 vol2 | AD159: 53 (calculated for 15 cuft solid door refrigerators) | AE159: Standard kWh/day | AF159: 2.11 | AG159: IL TRM v9.0 Vol 2 | AH159: 53 (calculated for 15 cuft solid door refrigerators) | AI159: =ROUND((AF159-AB159)*365.25,4) | AJ159: =ROUND(K159/U159*O159,4) | AK159: IL TRM v9 vol2 | AL159: 52,53 | AM159: 2022-01-01
A160: Business Standard | B160: High Efficiency Reach-In Freezer | C160: 259.2 | D160: C&I | E160: Refrigeration | F160: No unique savings for this measure. The savings is based on actual chilled or frozen compartment volume of the efficient unit. This measure life is for freezer | G160: per unit | H160: 166 | I160: IL TRM v6 vol2 | J160: 22 | K160: =ROUND((AF160-AB160)*365.25,4) -> 382.0515 | L160: Calculated Value | O160: 0.937 | P160: IL TRM v5 vol2 | Q160: 24 | R160: =ROUND(K160/U160*O160,4) -> 0.0408 | S160: Calculated Value | U160: 8766 | V160: IL TRM v5 vol2 | W160: 24 | X160: 12 | Y160: IL TRM v5 vol2 | Z160: 22 | AA160: High Efficiency kWh/day | AB160: 4.944 | AC160: IL TRM v7 vol2 | AD160: 22 (average of solid and glass door, assuming 15 cubic ft) | AE160: Standard kWh/day | AF160: 5.99 | AG160: IL TRM v7 vol2 | AH160: 22 (average of solid and glass door, assuming 15 cubic ft) | AI160: =ROUND((AF160-AB160)*365.25,4) | AJ160: =ROUND(K160/U160*O160,4) | AK160: IL TRM v5 vol2 | AL160: 23, 24 | AM160: 2020-05-01
A161: Business Standard | B161: Strip Curtains Freezer | C161: 260.3 | D161: C&I | E161: Refrigeration | F161: per freezer with curtains installed | G161: per unit | H161: 250 | I161: PY2 Tracking Data | K161: =ROUND(AB161*AS161,4) -> 20055.75 | L161: IL TRM v10 Vol2 | M161: 650 | O161: 1 | P161: IL TRM v10 Vol2 | Q161: 651 | R161: =ROUND(K161/U161*O161,4) -> 2.2879 | S161: IL TRM v10 Vol2 | T161: 650 | U161: 8766 | V161: Indiana TRM v1 | W161: 651 | X161: 4 | Y161: IL TRM v10 Vol2 | Z161: 649 | AA161: Strip Curtain - Energy Savings (kWh/sq ft) | AB161: =AVERAGE(168.5,494.5) -> 331.5 | AC161: IL TRM v10 Vol2 (average of supermarket freezer values) | AD161: 650 | AE161: No strip curtain | AI161: =ROUND(AB161*AS161,4) | AJ161: =ROUND(K161/U161*O161,4) | AK161: IL TRM v10 Vol2 | AL161: 650 | AM161: 2023-01-01 | AN161: 2023-12-31 | AS161: 60.5 | AT161: Square Footage | AU161: Average of 2019 program tracking data
A162: Business Standard | B162: Strip Curtains Freezer | C162: 260.4 | D162: C&I | E162: Refrigeration | F162: per freezer with curtains installed | G162: per sq. ft. | H162: 10.22 | I162: IL TRM V11 Vol 2 | J162: 758 | K162: =ROUND(AB162*AS162,4) -> 331.5 | L162: IL TRM v10 Vol2 | M162: 650 | O162: 1 | P162: IL TRM v10 Vol2 | Q162: 651 | R162: 0.0378 | S162: IL TRM v10 Vol2 | T162: 650 | U162: 8766 | V162: Indiana TRM v1 | W162: 651 | X162: 4 | Y162: IL TRM v10 Vol2 | Z162: 649 | AA162: Strip Curtain - Energy Savings (kWh/sq ft) | AB162: =AVERAGE(168.5,494.5) -> 331.5 | AC162: IL TRM v10 Vol2 (average of supermarket freezer values) | AD162: 650 | AE162: No strip curtain | AI162: =ROUND(AB162*AS162,4) | AJ162: =ROUND(K162/U162*O162,4) | AK162: IL TRM v10 Vol2 | AL162: 650 | AM162: 2024-01-01 | AS162: 1 | AT162: Square Footage | AU162: Deemed value
A163: Business Standard | B163: Strip Curtains Cooler | C163: 261.3 | D163: C&I | E163: Refrigeration | F163: per cooler with curtains installed | G163: per unit | H163: 250 | I163: PY2 Tracking Data | K163: =ROUND(AB163*AS163,4) -> 4864.2 | L163: IL TRM v10 Vol2 | M163: 650 | O163: 1 | P163: IL TRM v10 Vol2 | Q163: 651 | R163: =ROUND(K163/U163*O163,4) -> 0.5549 | S163: IL TRM v10 Vol2 | T163: 650 | U163: 8766 | V163: Indiana TRM v1 | W163: 651 | X163: 4 | Y163: IL TRM v10 Vol2 | Z163: 649 | AA163: Strip Curtain - Energy Savings (kWh/sq ft) | AB163: =AVERAGE(40.9,119.9) -> 80.4 | AC163: IL TRM v10 Vol2 (average of supermarket cooler values) | AD163: 650 | AE163: No strip curtain | AI163: =ROUND(AB163*AS163,4) | AJ163: =ROUND(K163/U163*O163,4) | AK163: IL TRM v10 Vol2 | AL163: 650 | AM163: 2023-01-01 | AN163: 2023-12-31 | AS163: 60.5 | AT163: Square Footage | AU163: Average of 2019 program tracking data
A164: Business Standard | B164: Strip Curtains Cooler | C164: 261.4 | D164: C&I | E164: Refrigeration | F164: per cooler with curtains installed | G164: per sq. ft. | H164: 10.22 | I164: IL TRM V11 Vol 2 | J164: 758 | K164: =ROUND(AB164*AS164,4) -> 80.4 | L164: IL TRM v10 Vol2 | M164: 650 | O164: 1 | P164: IL TRM v10 Vol2 | Q164: 651 | R164: 0.0092 | S164: IL TRM v10 Vol2 | T164: 650 | U164: 8766 | V164: Indiana TRM v1 | W164: 651 | X164: 4 | Y164: IL TRM v10 Vol2 | Z164: 649 | AA164: Strip Curtain - Energy Savings (kWh/sq ft) | AB164: =AVERAGE(40.9,119.9) -> 80.4 | AC164: IL TRM v10 Vol2 (average of supermarket cooler values) | AD164: 650 | AE164: No strip curtain | AI164: =ROUND(AB164*AS164,4) | AJ164: =ROUND(K164/U164*O164,4) | AK164: IL TRM v10 Vol2 | AL164: 650 | AM164: 2024-01-01 | AS164: 1 | AT164: Square Footage | AU164: Deemed value
A165: Business Standard | B165: VSD Pumps (Chilled Water Pump) | C165: 283.2 | D165: C&I | E165: Pumps/Fans | G165: per hp | H165: 1330 | I165: IL TRM V9 vol2 | J165: 280 | K165: =ROUND(AS165*BA165/AW165*BE165,4) -> 260.1581 | L165: Calculated Value | R165: =ROUND(AS165*BI165/AW165,4) -> 0 | S165: Calculated Value | X165: 15 | Y165: IL TRM V9 vol2 | Z165: 280 | AA165: VSD applied to a motor without a VSD | AC165: IL TRM V9 vol2 | AD165: 280 | AE165: Motor without a VSD | AG165: IL TRM V9 vol2 | AH165: 280 | AI165: =ROUND(AS165*BA165/AW165*BE165,4) | AJ165: =ROUND(AS165*BI165/AW165,4) | AK165: IL TRM V9 vol2 | AL165: 281 | AM165: 2022-01-01 | AS165: 1 | AT165: System Brake Horsepower (BHP = Nominal Motor HP*Motor Load Factor) Where, Motor Load Factor = 65%, if actual value is unknown | AU165: IL TRM V9 vol2 | AV165: 281 | AW165: 0.93 | AX165: EFFi (Motor Efficiency) | AY165: IL TRM V9 vol2 | AZ165: 281 | BA165: 2987 | BB165: Cooling Run Hours | BC165: IL TRM v9 vol2 | BD165: 282 | BE165: 0.081 | BF165: Energy Savings Factor (ESF) | BG165: IL TRM v9 vol2 | BH165: 282 | BI165: 0 | BJ165: Demand Savings Factor (DSF) | BK165: IL TRM v9 vol2 | BL165: 283
A166: Business Standard | B166: Networked Lighting Controls | C166: 284.3 | D166: C&I | E166: Lighting | G166: per wattage controlled | H166: 56 | I166: IL TRM v10 Vol2 | J166: 600 | K166: =ROUND(AB166*AS166*BA166*BI166/1000,4) -> 26833.429 | L166: Calculated Value | O166: 0.15 | P166: IL TRM v10 Vol2 | R166: =ROUND(AB166*(BE166-O166)*BM166/1000,4) -> 5.4442 | S166: Calculated Value | W166: 602 | X166: 15 | Y166: IL TRM v10 Vol2 | Z166: 599 | AA166: Control system that meets the DLC networked lighting control specifications. | AB166: 7655 | AC166: Average watts controlled per system from program tracking data | AE166: LED lighting system with no existing or basic lighting controls. | AI166: =ROUND(AB166*AS166*BA166*BI166/1000,4) | AJ166: =ROUND(AB166*(BE166-O166)*BM166/1000,4) | AK166: IL TRM v10 Vol2 | AL166: 601604 | AM166: 2023-01-01 | AN166: 2023-12-31 | AS166: 0.61 | AT166: LLLC Energy Savings Factor | AU166: ILTRM v10 vol 2 | AV166: 603 | BA166: 5177 | BB166: Annual Operating Hours | BC166: PY2 portfolio weighted average | BE166: 0.71 | BF166: Coincidence Factor (CF)_baseline | BG166: PY2 portfolio weighted average | BI166: 1.11 | BJ166: Waste Heat Factor Energy | BK166: PY2 portfolio weighted average | BM166: 1.27 | BN166: Waste Heat Factor_Demand | BO166: PY2 portfolio weighted average
A167: Business Standard | B167: Networked Lighting Controls | C167: 284.4 | D167: C&I | E167: Lighting | G167: per wattage controlled | H167: 56 | I167: IL TRM V11 Vol2 | J167: 708 | K167: =ROUND(AB167*AS167*BA167*BI167/1000,4) -> 21902.7197 | L167: Calculated Value | O167: 0.15 | P167: IL TRM V11 Vol2 | Q167: 712 | R167: =ROUND(AB167*(BE167-O167)*BM167/1000,4) -> 4.9996 | S167: Calculated Value | X167: 15 | Y167: IL TRM V11 Vol2 | Z167: 707 | AA167: Control system that meets the DLC networked lighting control specifications. | AB167: 6515 | AC167: Average watts controlled per system from PY3 program tracking data | AE167: LED lighting system with no existing or basic lighting controls. | AI167: =ROUND(AB167*AS167*BA167*BI167/1000,4) | AJ167: =ROUND(AB167*(BE167-O167)*BM167/1000,4) | AK167: IL TRM V11 Vol2 | AL167: 709, 712 | AM167: 2024-01-01 | AS167: 0.61 | AT167: LLLC Energy Savings Factor | AU167: ILTRM V11 Vol 2 | AV167: 711 | BA167: 4920.800596 | BB167: Annual Operating Hours | BC167: Weighted average annual HOU from verified participant data from the MEEIA Cycle 3 PY1-3 portfolio with preference on most recent year of evaluated results if sufficient participation occurred | BE167: 0.7448818487 | BF167: Coincidence Factor (CF)_baseline | BG167: Weighted average peak coincident factor from verified participant data from the MEEIA Cycle 3 PY1-3 portfolio with preference on most recent year of evaluated results if sufficient participation occurred | BI167: 1.12 | BJ167: Waste Heat Factor Energy | BK167: Weighted average Waste Heat Factor Energy from verified participant data from the MEEIA Cycle 3 PY1-3 portfolio with preference on most recent year of evaluated results if sufficient participation occurred | BM167: 1.29 | BN167: Waste Heat Factor_Demand | BO167: Weighted average Waste Heat Factor Demand from verified participant data from the MEEIA Cycle 3 PY1-3 portfolio with preference on most recent year of evaluated results if sufficient participation occurred
A168: Business Standard | B168: Pre-Rinse Spray Valves Small | C168: 286 | D168: Small C&I | E168: Hot Water | F168: Direct Install | G168: per unit | H168: 92.9 | I168: IL TRM v6 vol2 | J168: 60 | K168: =ROUND((AF168-AB168)*60*BA168*BE168*8.33*1*(BM168-BI168)/BQ168/3413*BU168,4) -> 2769.6198 | L168: Calculated Value | O168: 0 | P168: IL TRM v6 vol2 | Q168: 60 | R168: =ROUND(0,4) -> 0 | S168: IL TRM v6 vol2 | T168: 61 | X168: 5 | Y168: IL TRM v6 vol2 | Z168: 60 | AA168: Low Flow (GPM) | AB168: 1.06 | AC168: IL TRM v6 vol2 | AD168: 62 | AE168: Standard (GPM) | AF168: 1.9 | AG168: IL TRM v6 vol2 | AH168: 62 | AI168: =ROUND((AF168-AB168)*60*BA168*BE168*8.33*1*(BM168-BI168)/BQ168/3413*BU168,4) | AJ168: =ROUND(0,4) | AK168: IL TRM v6 vol2 | AL168: 61 | AM168: 2020-01-01 | AS168: 1.9 | AT168: FLObase | AU168: IL TRM v6 vol2 | AV168: 62 | AW168: 1.06 | AX168: FLOeff | AY168: IL TRM v6 vol2 | AZ168: 62 | BA168: 1 | BB168: HOURSday | BC168: IL TRM v6 vol2 | BD168: 63 | BE168: 312 | BF168: Days per year | BG168: IL TRM v6 vol2 | BH168: 63 | BI168: 54.1 | BJ168: Tin | BK168: IL TRM v6 vol2 | BL168: 61 | BM168: 124.1 | BN168: Tout | BO168: IL TRM v6 vol2 | BP168: 61 | BQ168: 0.97 | BR168: Eff_Elec | BS168: IL TRM v6 vol2 | BT168: 61 | BU168: 1 | BV168: FLAG (1 for electric, 0 for gas) | BW168: IL TRM v6 vol2 | BX168: 61
A169: Business Standard | B169: Low Flow Faucet Aerator - Kitchen | C169: 287 | D169: Small C&I | E169: Hot Water | F169: Direct Install | G169: per unit | H169: 8 | I169: IL TRM v6 vol2 | J169: 90 | K169: =ROUND(AS169*(AW169-BA169)/AW169*BE169*BI169*BM169,4) -> 74.5049 | L169: Calculated Value | N169: =ROUND(K169/BQ169,4) -> 3.1044 | O169: 0.0064 | P169: IL TRM v6 vol2 | Q169: 94 | R169: =ROUND(K169/BQ169*BU169,4) -> 0.0199 | S169: Calculated Value | X169: 9 | Y169: IL TRM v6 vol2 | Z169: 90 | AA169: Energy Efficient Faucet Aerator rated at 2.2 GPM or less | AC169: IL TRM v6 vol2 | AD169: 90 | AE169: Standard Faucet Aerator rated at 2.75 GPM or more | AG169: IL TRM v6 vol2 | AH169: 90 | AI169: =ROUND(AS169*(AW169-BA169)/AW169*BE169*BI169*BM169,4) | AJ169: =ROUND(K169/BQ169*BU169,4) | AK169: IL TRM v6 vol2 | AL169: 91,93 | AM169: 2020-01-01 | AS169: 1 | AT169: %Electric DHW | AU169: IL TRM v6 vol2 | AV169: 91 | AW169: 1.39 | AX169: GPM_base | AY169: IL TRM v6 vol2 | AZ169: 91 | BA169: 0.94 | BB169: GPM_low | BC169: IL TRM v6 vol2 | BD169: 91 | BE169: 2500 | BF169: Usage | BG169: IL TRM v6 vol2 | BH169: 92 | BI169: 0.0969 | BJ169: EPG_electric | BK169: IL TRM v6 vol2 | BL169: 92 | BM169: 0.95 | BN169: In Service Rate (ISR) | BO169: IL TRM v6 vol2 | BP169: 93 | BQ169: 24 | BR169: Annual Recovery Hours | BS169: IL TRM v6 vol2 | BT169: 93 | BU169: 0.0064 | BV169: Coincidence Factor | BW169: IL TRM v6 vol2 | BX169: 94
A170: Business Standard | B170: Smart Power Strip | C170: 288 | D170: Small C&I | E170: Electronics | F170: Direct Install | G170: per unit | H170: 26 | I170: Program Tracking Data | K170: =ROUND(((AS170*(AW170-BA170)+BE170*(BI170-BM170))*BQ170*BU170),4) -> 108.5759 | L170: Calculated Value | O170: 0 | P170: IL TRM v6 vol2 | Q170: 498 | R170: =ROUND(0,4) -> 0 | S170: Calculated Value | X170: 7 | Y170: IL TRM v6 vol2 | Z170: 498 | AA170: Advanced power strip with a load-sensing master plug and at least two controlled plugs | AC170: IL TRM v6 vol2 | AD170: 498 | AE170: Standard power strip with surge protection that does not control connected loads | AG170: IL TRM v6 vol2 | AH170: 498 | AI170: =ROUND(((AS170*(AW170-BA170)+BE170*(BI170-BM170))*BQ170*BU170),4) | AJ170: =ROUND(0,4) | AK170: IL TRM v6 vol2 | AL170: 499 | AM170: 2020-01-01 | AN170: 2023-12-31 | AS170: 0.0315 | AT170: kWwkday | AU170: IL TRM v6 vol2 | AV170: 499 | AW170: 106 | AX170: hrswkday | AY170: IL TRM v6 vol2 | AZ170: 499 | BA170: 50 | BB170: hrswkday-open | BC170: IL TRM v6 vol2 | BD170: 499 | BE170: 0.00617 | BF170: kWwkend | BG170: IL TRM v6 vol2 | BH170: 499 | BI170: 62 | BJ170: hrswkend | BK170: IL TRM v6 vol2 | BL170: 499 | BM170: 0 | BN170: hrswkend-open | BO170: IL TRM v6 vol2 | BP170: 499 | BQ170: 52.2 | BR170: weeks/year | BS170: IL TRM v6 vol2 | BT170: 499 | BU170: 0.969 | BV170: ISR | BW170: IL TRM v6 vol2 | BX170: 499
A171: Business Standard | B171: Smart Power Strip | C171: 288.1 | D171: Small C&I | E171: Electronics | F171: Direct Install | G171: per unit | H171: 10 | I171: IL TRM V10 Vol 3 | J171: 63 | K171: =ROUND(((AS171*(AW171-BA171)+BE171*(BI171-BM171))*BQ171*BU171),4) -> 108.5759 | L171: Calculated Value | O171: 0 | P171: IL TRM v6 vol2 | Q171: 498 | R171: =ROUND(0,4) -> 0 | S171: Calculated Value | X171: 7 | Y171: IL TRM v6 vol2 | Z171: 498 | AA171: Advanced power strip with a load-sensing master plug and at least two controlled plugs | AC171: IL TRM v6 vol2 | AD171: 498 | AE171: Standard power strip with surge protection that does not control connected loads | AH171: IL TRM v6 vol2 | AI171: =ROUND(((AS171*(AW171-BA171)+BE171*(BI171-BM171))*BQ171*BU171),4) | AJ171: =ROUND(0,4) | AK171: IL TRM v6 vol2 | AL171: 499 | AM171: 2024-01-01 | AS171: 0.0315 | AT171: kWwkday | AU171: IL TRM v6 vol2 | AV171: 499 | AW171: 106 | AX171: hrswkday | AY171: IL TRM v6 vol2 | AZ171: 499 | BA171: 50 | BB171: hrswkday-open | BC171: IL TRM v6 vol2 | BD171: 499 | BE171: 0.00617 | BF171: kWwkend | BG171: IL TRM v6 vol2 | BH171: 499 | BI171: 62 | BJ171: hrswkend | BK171: IL TRM v6 vol2 | BL171: 499 | BM171: 0 | BN171: hrswkend-open | BO171: IL TRM v6 vol2 | BP171: 499 | BQ171: 52.2 | BR171: weeks/year | BS171: IL TRM v6 vol2 | BT171: 499 | BU171: 0.969 | BV171: ISR | BW171: IL TRM v6 vol2 | BX171: 499
A172: Business Standard | B172: Low Flow Showerhead | C172: 289 | D172: Small C&I | E172: Hot Water | F172: Direct Install | G172: per unit | H172: 12 | I172: IL TRM v6 vol2 | J172: 98 | K172: =ROUND((AS172*(AW172*BE172-BA172*BI172)*BM172*365.25)*BQ172*BU172,4) -> 1308.4014 | L172: Calculated Value | N172: =ROUND(K172/CG172,4) -> 1.941 | O172: 0.0278 | P172: IL TRM v6 vol2 | Q172: 98 | R172: =ROUND(K172/CG172*CC172,4) -> 0.054 | S172: Calculated Value | X172: 10 | Y172: IL TRM v6 vol2 | Z172: 98 | AA172: Energy efficient showerhead rated at 2.0 GPM or less | AC172: IL TRM v6 vol2 | AD172: 98 | AE172: Standard showerhead rated at 2.5 GPM or above | AG172: IL TRM v6 vol2 | AH172: 98 | AI172: =ROUND((AS172*(AW172*BE172-BA172*BI172)*BM172*365.25)*BQ172*BU172,4) | AJ172: =ROUND(K172/CG172*CC172,4) | AK172: IL TRM v6 vol2 | AL172: 99100 | AM172: 2020-01-01 | AS172: 1 | AT172: %Electric DHW | AU172: IL TRM v6 vol2 | AV172: 99 | AW172: 2.67 | AX172: GPM_base | AY172: IL TRM v6 vol2 | AZ172: 99 | BA172: 1.5 | BB172: GPM_low | BC172: IL TRM v6 vol2 | BD172: 99 | BE172: 8.2 | BF172: L_base | BG172: IL TRM v6 vol2 | BH172: 99 | BI172: 8.2 | BJ172: L_low | BK172: IL TRM v6 vol2 | BL172: 99 | BM172: 3 | BN172: NSPD | BO172: IL TRM v6 vol2 | BP172: 99 | BQ172: 0.127 | BR172: EPG_electric | BS172: IL TRM v6 vol2 | BT172: 99 | BU172: 0.98 | BV172: ISR | BW172: IL TRM v6 vol2 | BX172: 100 | BY172: 27.51 | BZ172: Gallons per hour recovery of electric water heater | CA172: IL TRM v6 vol2 | CB172: 100 | CC172: 0.0278 | CD172: Coincidence Factor | CE172: IL TRM v6 vol2 | CF172: 98 | CG172: =((AW172*BE172)*BM172*365.25)*0.773/BY172 -> 674.1018152 | CH172: Annual Recovery Hours | CI172: IL TRM v6 vol2 | CJ172: 100
A173: Business Standard | B173: Water Heater Pipe Insulation | C173: 290 | D173: Small C&I | E173: Hot Water | F173: Direct Install | G173: per foot | H173: 15 | I173: IL TRM v7 vol3 | J173: 171 | K173: =ROUND(((AS173/AW173-BA173/BE173)*BI173*BM173*BQ173/BU173/BY173),4) -> 102.7143 | L173: Calculated Value | N173: =ROUND(K173/U173,4) -> 0.0117 | O173: 1 | P173: IL TRM v7 vol3 | Q173: 171 | R173: =ROUND(K173/U173,4) -> 0.0117 | S173: Calculated Value | U173: 8766 | V173: IL TRM v7 vol3 | W173: 172 | X173: 15 | Y173: IL TRM v7 vol3 | Z173: 171 | AA173: 5 linear feet of insulation | AE173: none | AI173: =ROUND(((AS173/AW173-BA173/BE173)*BI173*BM173*BQ173/BU173/BY173),4) | AJ173: =ROUND(K173/U173,4) | AK173: IL TRM v7 vol3 | AL173: 171, 172 | AM173: 2020-01-01 | AS173: 0.196 | AT173: Cexist | AU173: IL TRM v7 vol3 | AV173: 172 | AW173: 1 | AX173: Rexist | AY173: IL TRM v7 vol3 | AZ173: 172 | BA173: 0.327 | BB173: Cnew | BC173: IL TRM v7 vol3 | BD173: 172 | BE173: 5 | BF173: Rnew | BG173: IL TRM v7 vol3 | BH173: 172 | BI173: 5 | BJ173: L | BK173: Tracking Data | BM173: 60 | BN173: DeltaT | BO173: IL TRM v7 vol3 | BP173: 172 | BQ173: 8766 | BR173: Hours | BS173: IL TRM v7 vol3 | BT173: 172 | BU173: 0.98 | BV173: eta DHW | BW173: IL TRM v7 vol3 | BX173: 172 | BY173: 3412 | BZ173: Conversion from BTU to kWh | CA173: IL TRM v7 vol3 | CB173: 172
A174: Business Standard | B174: Refrigerated Vending Machine Controls | C174: 291 | D174: Small C&I | E174: Refrigeration | F174: Direct Install | G174: per unit | H174: 180 | I174: IL TRM v6 vol2 | J174: 436 | K174: =ROUND(AS174/1000*AW174*BA174,4) -> 1612.944 | L174: Calculated Value | O174: 0 | P174: IL TRM v6 vol2 | Q174: 436 | R174: =ROUND(0,4) -> 0 | S174: IL TRM v6 vol2 | T174: 437 | X174: 5 | Y174: IL TRM v6 vol2 | Z174: 436 | AA174: Standard efficiency refrigerated vending machine with a control system. | AC174: IL TRM v6 vol2 | AD174: 436 | AE174: Standard efficiency refrigerated vending machine without a control system. | AG174: IL TRM v6 vol2 | AH174: 436 | AI174: =ROUND(AS174/1000*AW174*BA174,4) | AJ174: =ROUND(0,4) | AK174: IL TRM v6 vol2 | AL174: 437 | AM174: 2020-01-01 | AS174: 400 | AT174: WATTSbase | AU174: IL TRM v6 vol2 | AV174: 436 | AW174: 8766 | AX174: Hours | AY174: IL TRM v6 vol2 | AZ174: 436 | BA174: 0.46 | BB174: Energy Savings Factor (ESF) | BC174: IL TRM v6 vol2 | BD174: 436
A175: Business Standard | B175: Smart Thermostat | C175: 292 | D175: Small C&I | E175: HVAC | F175: Direct Install | G175: per unit | H175: 181 | I175: Program Tracking Data | K175: =ROUND((AS175+BI175*(0.83*AW175+0.83*BA175+1.67*BM175-293.018)-0.0922*AW175*BA175+1.291*BM175) - (AS175+CC175*(0.83*BQ175+0.83*BU175+1.67*BM175-293.018)-0.0922*BQ175*BU175+1.291*BM175),4) -> 121.978 | L175: Calculated Value | O175: 0 | P175: IL TRM v6 vol2 | Q175: 220 | R175: =ROUND(0,4) -> 0 | S175: Calculated Value | X175: 8 | Y175: MO TRM 2017 vol2 | Z175: 114 | AA175: Thermostat that has capability to adjust temperature setpoints without manual intervention | AC175: IL TRM v6 vol2 | AD175: 220 | AE175: Non-programmable thermostat requiring manual intervention to change temperature setpoints | AG175: IL TRM v6 vol2 | AH175: 220 | AI175: =ROUND((AS175+BI175*(0.83*AW175+0.83*BA175+1.67*BM175-293.018)-0.0922*AW175*BA175+1.291*BM175) - (AS175+CC175*(0.83*BQ175+0.83*BU175+1.67*BM175-293.018)-0.0922*BQ175*BU175+1.291*BM175),4) | AJ175: =ROUND(0,4) | AK175: IL TRM v6 vol2 | AL175: 221 | AM175: 2020-01-01 | AN175: 2023-12-31 | AS175: 928.924 | AT175: Climate zone coefficient (CZ) | AU175: IL TRM v6 vol2 | AV175: 222 | AW175: 0 | AX175: Degrees of cooling setback_base | AY175: IL TRM v6 vol2 | AZ175: 221 | BA175: 0 | BB175: Degrees of heating setback_base | BC175: IL TRM v6 vol2 | BD175: 221 | BE175: Continuous | BF175: Fan mode during occupied period_base (Fo_base) | BG175: IL TRM v6 vol2 | BH175: 222 | BI175: 0 | BJ175: Fan mode during unoccupied period_base (Fu_base) | BK175: IL TRM v6 vol2 | BL175: 222 | BM175: 98 | BN175: Weekly hours thermostat is in occupied mode | BO175: IL TRM v6 vol2 | BP175: 222 | BQ175: 10 | BR175: Degrees of cooling setback_ee | BS175: IL TRM v6 vol2 | BT175: 221 | BU175: 10 | BV175: Degrees of heating setback_ee | BW175: IL TRM v6 vol2 | BX175: 221 | BY175: Continuous | BZ175: Fan mode during occupied period_ee (Fo_ee) | CA175: IL TRM v6 vol2 | CB175: 222 | CC175: 1 | CD175: Fan mode during unoccupied period_ee (Fu_ee) | CE175: IL TRM v6 vol2 | CF175: 222
A176: Business Standard | B176: Smart Thermostat | C176: 292.1 | D176: Small C&I | E176: HVAC | F176: Direct Install | G176: per unit | H176: 175 | I176: IL TRM V11 Vol 2 | J176: 521 | K176: =ROUND((AS176+BI176*(0.83*AW176+0.83*BA176+1.67*BM176-293.018)-0.0922*AW176*BA176+1.291*BM176) - (AS176+CC176*(0.83*BQ176+0.83*BU176+1.67*BM176-293.018)-0.0922*BQ176*BU176+1.291*BM176),4) -> 121.978 | L176: Calculated Value | O176: 0 | P176: IL TRM v6 vol2 | Q176: 220 | R176: =ROUND(0,4) -> 0 | S176: Calculated Value | X176: 8 | Y176: MO TRM 2017 vol2 | Z176: 114 | AA176: Thermostat that has capability to adjust temperature setpoints without manual intervention | AC176: IL TRM v6 vol2 | AD176: 220 | AE176: Non-programmable thermostat requiring manual intervention to change temperature setpoints | AH176: IL TRM v6 vol2 | AI176: =ROUND((AS176+BI176*(0.83*AW176+0.83*BA176+1.67*BM176-293.018)-0.0922*AW176*BA176+1.291*BM176) - (AS176+CC176*(0.83*BQ176+0.83*BU176+1.67*BM176-293.018)-0.0922*BQ176*BU176+1.291*BM176),4) | AJ176: =ROUND(0,4) | AK176: IL TRM v6 vol2 | AL176: 221 | AM176: 2024-01-01 | AS176: 928.924 | AT176: Climate zone coefficient (CZ) | AU176: IL TRM v6 vol2 | AV176: 222 | AW176: 0 | AX176: Degrees of cooling setback_base | AY176: IL TRM v6 vol2 | AZ176: 221 | BA176: 0 | BB176: Degrees of heating setback_base | BC176: IL TRM v6 vol2 | BD176: 221 | BE176: Continuous | BF176: Fan mode during occupied period_base (Fo_base) | BG176: IL TRM v6 vol2 | BH176: 222 | BI176: 0 | BJ176: Fan mode during unoccupied period_base (Fu_base) | BK176: IL TRM v6 vol2 | BL176: 222 | BM176: 98 | BN176: Weekly hours thermostat is in occupied mode | BO176: IL TRM v6 vol2 | BP176: 222 | BQ176: 10 | BR176: Degrees of cooling setback_ee | BS176: IL TRM v6 vol2 | BT176: 221 | BU176: 10 | BV176: Degrees of heating setback_ee | BW176: IL TRM v6 vol2 | BX176: 221 | BY176: Continuous | BZ176: Fan mode during occupied period_ee (Fo_ee) | CA176: IL TRM v6 vol2 | CB176: 222 | CC176: 1 | CD176: Fan mode during unoccupied period_ee (Fu_ee) | CE176: IL TRM v6 vol2 | CF176: 222
A177: Business Standard | B177: LED A-19 - 9W | C177: 293 | D177: Small C&I | E177: Lighting | F177: Direct Install | G177: per unit | H177: 1.96 | I177: IL TRM v6 vol2 | J177: 370 | K177: =ROUND((AS177-AW177)/1000*BA177*BE177*BM177,4) -> 128.9397 | L177: Calculated Value | O177: 0.66 | P177: IL TRM v6 vol2 | Q177: 337-338 (portfolio weighted average) | R177: =ROUND((AS177-AW177)/1000*BI177*BM177*BQ177,4) -> 0.0336 | S177: Calculated Value | X177: 15 | Y177: IL TRM v6 vol2 | Z177: 363 | AA177: ENERGY STAR labeled LED lamp | AC177: IL TRM v6 vol2 | AD177: 363 | AE177: Non-ENERGY STAR lamp | AG177: IL TRM v6 vol2 | AH177: 363 | AI177: =ROUND((AS177-AW177)/1000*BA177*BE177*BM177,4) | AJ177: =ROUND((AS177-AW177)/1000*BI177*BM177*BQ177,4) | AK177: IL TRM v6 vol2 | AL177: 364368 | AM177: 2020-01-01 | AN177: 2023-12-31 | AS177: 43 | AT177: WATTSbase | AU177: IL TRM v6 vol2 | AV177: 363 | AW177: 9 | AX177: WATTSee | AY177: Program Tracking Data | BA177: 2954 | BB177: Hours | BC177: IL TRM v6 vol2 | BD177: 338 | BE177: 1.31 | BF177: Waste Heat Factor Energy (WHFe) | BG177: IL TRM v6 vol2 | BH177: 338 | BI177: 1.53 | BJ177: Waste Heat Factor Demand (WHFd) | BK177: IL TRM v6 vol2 | BL177: 338 | BM177: 0.98 | BN177: In Service Rate (ISR) | BO177: IL TRM v6 vol2 | BP177: 363 | BQ177: 0.66 | BR177: Coincidence Factor (CF) | BS177: IL TRM v6 vol2 | BT177: 338
A178: Business Standard | B178: LED BR30 -12W | C178: 294 | D178: Small C&I | E178: Lighting | F178: Direct Install | G178: per unit | H178: 1.65 | I178: IL TRM v6 vol2 | J178: 370 | K178: =ROUND((AS178-AW178)/1000*BA178*BE178*BM178,4) -> 200.9943 | L178: Calculated Value | O178: 0.66 | P178: IL TRM v6 vol2 | Q178: 337-338 (portfolio weighted average) | R178: =ROUND((AS178-AW178)/1000*BI178*BM178*BQ178,4) -> 0.0524 | S178: Calculated Value | X178: 15 | Y178: IL TRM v6 vol2 | Z178: 363 | AA178: ENERGY STAR labeled LED lamp | AC178: IL TRM v6 vol2 | AD178: 363 | AE178: Non-ENERGY STAR lamp | AG178: IL TRM v6 vol2 | AH178: 363 | AI178: =ROUND((AS178-AW178)/1000*BA178*BE178*BM178,4) | AJ178: =ROUND((AS178-AW178)/1000*BI178*BM178*BQ178,4) | AK178: IL TRM v6 vol2 | AL178: 364368 | AM178: 2020-01-01 | AN178: 2023-12-31 | AS178: 65 | AT178: WATTSbase | AU178: IL TRM v6 vol2 | AV178: 363 | AW178: 12 | AX178: WATTSee | AY178: Program Tracking Data | BA178: 2954 | BB178: Hours | BC178: IL TRM v6 vol2 | BD178: 338 | BE178: 1.31 | BF178: Waste Heat Factor Energy (WHFe) | BG178: IL TRM v6 vol2 | BH178: 338 | BI178: 1.53 | BJ178: Waste Heat Factor Demand (WHFd) | BK178: IL TRM v6 vol2 | BL178: 338 | BM178: 0.98 | BN178: In Service Rate (ISR) | BO178: IL TRM v6 vol2 | BP178: 363 | BQ178: 0.66 | BR178: Coincidence Factor (CF) | BS178: IL TRM v6 vol2 | BT178: 338
A179: Business Standard | B179: LED BR30 - 8W | C179: 295 | D179: Small C&I | E179: Lighting | F179: Direct Install | G179: per unit | H179: 1.65 | I179: IL TRM v6 vol2 | J179: 370 | K179: =ROUND((AS179-AW179)/1000*BA179*BE179*BM179,4) -> 159.2785 | L179: Calculated Value | O179: 0.66 | P179: IL TRM v6 vol2 | Q179: 337-338 (portfolio weighted average) | R179: =ROUND((AS179-AW179)/1000*BI179*BM179*BQ179,4) -> 0.0416 | S179: Calculated Value | X179: 15 | Y179: IL TRM v6 vol2 | Z179: 363 | AA179: ENERGY STAR labeled LED lamp | AC179: IL TRM v6 vol2 | AD179: 363 | AE179: Non-ENERGY STAR lamp | AG179: IL TRM v6 vol2 | AH179: 363 | AI179: =ROUND((AS179-AW179)/1000*BA179*BE179*BM179,4) | AJ179: =ROUND((AS179-AW179)/1000*BI179*BM179*BQ179,4) | AK179: IL TRM v6 vol2 | AL179: 364368 | AM179: 2020-01-01 | AN179: 2023-12-31 | AS179: 50 | AT179: WATTSbase | AU179: IL TRM v6 vol2 | AV179: 363 | AW179: 8 | AX179: WATTSee | AY179: Program Tracking Data | BA179: 2954 | BB179: Hours | BC179: IL TRM v6 vol2 | BD179: 338 | BE179: 1.31 | BF179: Waste Heat Factor Energy (WHFe) | BG179: IL TRM v6 vol2 | BH179: 338 | BI179: 1.53 | BJ179: Waste Heat Factor Demand (WHFd) | BK179: IL TRM v6 vol2 | BL179: 338 | BM179: 0.98 | BN179: In Service Rate (ISR) | BO179: IL TRM v6 vol2 | BP179: 363 | BQ179: 0.66 | BR179: Coincidence Factor (CF) | BS179: IL TRM v6 vol2 | BT179: 338
A180: Business Standard | B180: LED BR20 - 7.5W | C180: 296 | D180: Small C&I | E180: Lighting | F180: Direct Install | G180: per unit | H180: 1.65 | I180: IL TRM v6 vol2 | J180: 370 | K180: =ROUND((AS180-AW180)/1000*BA180*BE180*BM180,4) -> 142.2129 | L180: Calculated Value | O180: 0.66 | P180: IL TRM v6 vol2 | Q180: 337-338 (portfolio weighted average) | R180: =ROUND((AS180-AW180)/1000*BI180*BM180*BQ180,4) -> 0.0371 | S180: Calculated Value | X180: 15 | Y180: IL TRM v6 vol2 | Z180: 363 | AA180: ENERGY STAR labeled LED lamp | AC180: IL TRM v6 vol2 | AD180: 363 | AE180: Non-ENERGY STAR lamp | AG180: IL TRM v6 vol2 | AH180: 363 | AI180: =ROUND((AS180-AW180)/1000*BA180*BE180*BM180,4) | AJ180: =ROUND((AS180-AW180)/1000*BI180*BM180*BQ180,4) | AK180: IL TRM v6 vol2 | AL180: 364368 | AM180: 2020-01-01 | AN180: 2023-12-31 | AS180: 45 | AT180: WATTSbase | AU180: IL TRM v6 vol2 | AV180: 363 | AW180: 7.5 | AX180: WATTSee | AY180: Program Tracking Data | BA180: 2954 | BB180: Hours | BC180: IL TRM v6 vol2 | BD180: 338 | BE180: 1.31 | BF180: Waste Heat Factor Energy (WHFe) | BG180: IL TRM v6 vol2 | BH180: 338 | BI180: 1.53 | BJ180: Waste Heat Factor Demand (WHFd) | BK180: IL TRM v6 vol2 | BL180: 338 | BM180: 0.98 | BN180: In Service Rate (ISR) | BO180: IL TRM v6 vol2 | BP180: 363 | BQ180: 0.66 | BR180: Coincidence Factor (CF) | BS180: IL TRM v6 vol2 | BT180: 338
A181: Business Standard | B181: LED G25 - 8W | C181: 297 | D181: Small C&I | E181: Lighting | F181: Direct Install | G181: per unit | H181: 1.66 | I181: IL TRM v6 vol2 | J181: 370 | K181: =ROUND((AS181-AW181)/1000*BA181*BE181*BM181,4) -> 197.202 | L181: Calculated Value | O181: 0.66 | P181: IL TRM v6 vol2 | Q181: 337-338 (portfolio weighted average) | R181: =ROUND((AS181-AW181)/1000*BI181*BM181*BQ181,4) -> 0.0515 | S181: Calculated Value | X181: 15 | Y181: IL TRM v6 vol2 | Z181: 363 | AA181: ENERGY STAR labeled LED lamp | AC181: IL TRM v6 vol2 | AD181: 363 | AE181: Non-ENERGY STAR lamp | AG181: IL TRM v6 vol2 | AH181: 363 | AI181: =ROUND((AS181-AW181)/1000*BA181*BE181*BM181,4) | AJ181: =ROUND((AS181-AW181)/1000*BI181*BM181*BQ181,4) | AK181: IL TRM v6 vol2 | AL181: 364368 | AM181: 2020-01-01 | AN181: 2023-12-31 | AS181: 60 | AT181: WATTSbase | AU181: IL TRM v6 vol2 | AV181: 363 | AW181: 8 | AX181: WATTSee | AY181: Program Tracking Data | BA181: 2954 | BB181: Hours | BC181: IL TRM v6 vol2 | BD181: 338 | BE181: 1.31 | BF181: Waste Heat Factor Energy (WHFe) | BG181: IL TRM v6 vol2 | BH181: 338 | BI181: 1.53 | BJ181: Waste Heat Factor Demand (WHFd) | BK181: IL TRM v6 vol2 | BL181: 338 | BM181: 0.98 | BN181: In Service Rate (ISR) | BO181: IL TRM v6 vol2 | BP181: 363 | BQ181: 0.66 | BR181: Coincidence Factor (CF) | BS181: IL TRM v6 vol2 | BT181: 338
A182: Business Standard | B182: Automatic door closer for walk-in coolers | C182: 299 | D182: Small C&I | E182: Refrigeration | G182: per unit | H182: 156.82 | I182: IL TRM v6 vol2 | J182: 434 | K182: =ROUND(943,4) -> 943 | L182: Calculated Value | O182: NA | P182: IL TRM v6 vol2 | Q182: 434 | R182: =ROUND(0.137,4) -> 0.137 | S182: Calculated Value | X182: 8 | Y182: IL TRM v6 vol2 | Z182: 434 | AA182: Installation of an automatic, hydraulic-type door closer | AC182: IL TRM v6 vol2 | AD182: 434 | AE182: Walk-in cooler without an automatic closure | AG182: IL TRM v6 vol2 | AH182: 434 | AI182: =ROUND(943,4) | AJ182: =ROUND(0.137,4) | AK182: IL TRM v6 vol2 | AL182: 434 | AM182: 2020-01-01
A183: Business Standard | B183: Automatic door closer for walk-in freezers | C183: 300 | D183: Small C&I | E183: Refrigeration | G183: per unit | H183: 156.82 | I183: IL TRM v6 vol2 | J183: 434 | K183: =ROUND(2307,4) -> 2307 | L183: Calculated Value | O183: NA | P183: IL TRM v6 vol2 | Q183: 434 | R183: =ROUND(0.309,4) -> 0.309 | S183: Calculated Value | X183: 8 | Y183: IL TRM v6 vol2 | Z183: 434 | AA183: Installation of an automatic, hydraulic-type door closer | AC183: IL TRM v6 vol2 | AD183: 434 | AE183: Walk-in freezer without an automatic closure | AG183: IL TRM v6 vol2 | AH183: 434 | AI183: =ROUND(2307,4) | AJ183: =ROUND(0.309,4) | AK183: IL TRM v6 vol2 | AL183: 434 | AM183: 2020-01-01
A184: Business Standard | B184: Door heater controls for cooler (Humidity-based controls) | C184: 301 | D184: Small C&I | E184: Refrigeration | G184: per unit | H184: 300 | I184: IL TRM v6 vol2 | J184: 439 | K184: =ROUND(AS184*AW184*BA184*BE184*BI184,4) -> 541.1427 | L184: Calculated Value | O184: 0 | P184: IL TRM v6 vol2 | Q184: 439 | R184: =ROUND(0,4) -> 0 | S184: IL TRM v6 vol2 | T184: 440 | X184: 12 | Y184: IL TRM v6 vol2 | Z184: 439 | AA184: Door heater control utilizing humidity or conductivity control | AC184: IL TRM v6 vol2 | AD184: 439 | AE184: Standard heated door with no controls installed | AG184: IL TRM v6 vol2 | AH184: 439 | AI184: =ROUND(AS184*AW184*BA184*BE184*BI184,4) | AJ184: =ROUND(0,4) | AK184: IL TRM v6 vol2 | AL184: 440 | AM184: 2020-01-01 | AS184: 0.092 | AT184: kWbase | AU184: IL TRM v6 vol2 | AV184: 440 | AW184: 1 | AX184: Numdoors | AY184: IL TRM v6 vol2 | AZ184: 440 | BA184: 0.55 | BB184: Energy Savings Factor (ESF) | BC184: IL TRM v6 vol2 | BD184: 440 | BE184: 1.22 | BF184: Bonus Factor (BF) | BG184: IL TRM v6 vol2 | BH184: 440 | BI184: 8766 | BJ184: Annual hours of operation | BK184: IL TRM v6 vol2 | BL184: 440
A185: Business Standard | B185: Door heater controls for freezer (Humidity-based controls) | C185: 302 | D185: Small C&I | E185: Refrigeration | G185: per unit | H185: 300 | I185: IL TRM v6 vol2 | J185: 439 | K185: =ROUND(AS185*AW185*BA185*BE185*BI185,4) -> 1278.6088 | L185: Calculated Value | O185: 0 | P185: IL TRM v6 vol2 | Q185: 439 | R185: =ROUND(0,4) -> 0 | S185: IL TRM v6 vol2 | T185: 440 | X185: 12 | Y185: IL TRM v6 vol2 | Z185: 439 | AA185: Door heater control utilizing humidity or conductivity control | AC185: IL TRM v6 vol2 | AD185: 439 | AE185: Standard heated door with no controls installed | AG185: IL TRM v6 vol2 | AH185: 439 | AI185: =ROUND(AS185*AW185*BA185*BE185*BI185,4) | AJ185: =ROUND(0,4) | AK185: IL TRM v6 vol2 | AL185: 440 | AM185: 2020-01-01 | AS185: 0.195 | AT185: kWbase | AU185: IL TRM v6 vol2 | AV185: 440 | AW185: 1 | AX185: Numdoors | AY185: IL TRM v6 vol2 | AZ185: 440 | BA185: 0.55 | BB185: Energy Savings Factor (ESF) | BC185: IL TRM v6 vol2 | BD185: 440 | BE185: 1.36 | BF185: Bonus Factor (BF) | BG185: IL TRM v6 vol2 | BH185: 440 | BI185: 8766 | BJ185: Annual hours of operation | BK185: IL TRM v6 vol2 | BL185: 440
A186: Business Standard | B186: ECM Motors Walk-In Coolers & Freezers | C186: 303 | D186: Small C&I | E186: Refrigeration | G186: per motor | H186: 177 | I186: IL TRM v6 vol2 | J186: 442 | K186: =ROUND(AS186*AW186,4) -> 408 | L186: IL TRM v6 vol2 | M186: 443 | O186: 1 | P186: IL TRM v6 vol2 | Q186: 442 | R186: =ROUND(AS186*AW186/BA186*BE186,4) -> 0.0466 | S186: Calculated Value | X186: 15 | Y186: IL TRM v6 vol2 | Z186: 442 | AA186: ECM Motor | AC186: IL TRM v6 vol2 | AD186: 442 | AE186: Standard Motor | AG186: IL TRM v6 vol2 | AH186: 442 | AI186: =ROUND(AS186*AW186,4) | AJ186: =ROUND(AS186*AW186/BA186*BE186,4) | AK186: IL TRM v6 vol2 | AL186: 442443 | AM186: 2020-01-01 | AS186: 1 | AT186: Number of Motors | AU186: IL TRM v6 vol2 | AV186: 442 | AW186: 408 | AX186: Savings per motor | AY186: IL TRM v6 vol2 | AZ186: 442 | BA186: 8760 | BB186: Full Load hours per year | BC186: IL TRM v6 vol2 | BD186: 442 | BE186: 1 | BF186: Summer Peak Coincidence Factor (CF) | BG186: IL TRM v6 vol2 | BH186: 442
A187: Business Standard | B187: Strip curtain for walk-in coolers - Convenience Store (No strip curtain) | C187: 304 | D187: Small C&I | E187: Refrigeration | G187: sq.ft of door opening | H187: 10.22 | I187: IL TRM v6 vol2 | J187: 450 | K187: =ROUND(20,4) -> 20 | L187: IL TRM v6 vol2 | M187: 451 | O187: 1 | P187: IL TRM v6 vol2 | Q187: 452 | R187: =ROUND(AS187/8766*O187,4) -> 0.0023 | S187: Calculated Value | X187: 4 | Y187: IL TRM v6 vol2 | Z187: 450 | AA187: Strip curtain at least 0.06 inches thick | AC187: IL TRM v6 vol2 | AD187: 450 | AE187: No strip curtain | AG187: IL TRM v6 vol2 | AH187: 450 | AI187: =ROUND(20,4) | AJ187: =ROUND(AS187/8766*O187,4) | AK187: IL TRM v6 vol2 | AL187: 451452 | AM187: 2020-01-01 | AS187: 20 | AT187: ΔkWh/sq ft | AU187: IL TRM v6 vol2 | AV187: 450 | AW187: 21 | AX187: Area | AY187: IL TRM v6 vol2 | AZ187: 450 | BA187: 1 | BB187: Coincidence Factor (CF) | BC187: IL TRM v6 vol2 | BD187: 450
A188: Business Standard | B188: Strip curtain for walk-in freezers - Convenience Store (No strip curtain) | C188: 305 | D188: Small C&I | E188: Refrigeration | G188: sq.ft of door opening | H188: 10.22 | I188: IL TRM v6 vol2 | J188: 450 | K188: =ROUND(27,4) -> 27 | L188: IL TRM v6 vol2 | M188: 451 | O188: 1 | P188: IL TRM v6 vol2 | Q188: 452 | R188: =ROUND(AS188/8766*O188,4) -> 0.0031 | S188: Calculated Value | X188: 4 | Y188: IL TRM v6 vol2 | Z188: 450 | AA188: Strip curtain at least 0.06 inches thick | AC188: IL TRM v6 vol2 | AD188: 450 | AE188: No strip curtain | AG188: IL TRM v6 vol2 | AH188: 450 | AI188: =ROUND(27,4) | AJ188: =ROUND(AS188/8766*O188,4) | AK188: IL TRM v6 vol2 | AL188: 451452 | AM188: 2020-01-01 | AS188: 27 | AT188: ΔkWh/sq ft | AU188: IL TRM v6 vol2 | AV188: 450 | AW188: 21 | AX188: Area | AY188: IL TRM v6 vol2 | AZ188: 450 | BA188: 1 | BB188: Coincidence Factor (CF) | BC188: IL TRM v6 vol2 | BD188: 450
A189: Business Standard | B189: Strip curtain for walk-in coolers - Restaurant (No strip curtain) | C189: 306 | D189: Small C&I | E189: Refrigeration | G189: sq.ft of door opening | H189: 10.22 | I189: IL TRM v6 vol2 | J189: 450 | K189: =ROUND(30,4) -> 30 | L189: IL TRM v6 vol2 | M189: 451 | O189: 1 | P189: IL TRM v6 vol2 | Q189: 452 | R189: =ROUND(AS189/8766*O189,4) -> 0.0034 | S189: Calculated Value | X189: 4 | Y189: IL TRM v6 vol2 | Z189: 450 | AA189: Strip curtain at least 0.06 inches thick | AC189: IL TRM v6 vol2 | AD189: 450 | AE189: No strip curtain | AG189: IL TRM v6 vol2 | AH189: 450 | AI189: =ROUND(30,4) | AJ189: =ROUND(AS189/8766*O189,4) | AK189: IL TRM v6 vol2 | AL189: 451452 | AM189: 2020-01-01 | AS189: 30 | AT189: ΔkWh/sq ft | AU189: IL TRM v6 vol2 | AV189: 450 | AW189: 21 | AX189: Area | AY189: IL TRM v6 vol2 | AZ189: 450 | BA189: 1 | BB189: Coincidence Factor (CF) | BC189: IL TRM v6 vol2 | BD189: 450
A190: Business Standard | B190: Strip curtain for walk-in freezers - Restaurant (No strip curtain) | C190: 307 | D190: Small C&I | E190: Refrigeration | G190: sq.ft of door opening | H190: 10.22 | I190: IL TRM v6 vol2 | J190: 450 | K190: =ROUND(119,4) -> 119 | L190: IL TRM v6 vol2 | M190: 451 | O190: 1 | P190: IL TRM v6 vol2 | Q190: 452 | R190: =ROUND(AS190/8766*O190,4) -> 0.0136 | S190: Calculated Value | X190: 4 | Y190: IL TRM v6 vol2 | Z190: 450 | AA190: Strip curtain at least 0.06 inches thick | AC190: IL TRM v6 vol2 | AD190: 450 | AE190: No strip curtain | AG190: IL TRM v6 vol2 | AH190: 450 | AI190: =ROUND(119,4) | AJ190: =ROUND(AS190/8766*O190,4) | AK190: IL TRM v6 vol2 | AL190: 451452 | AM190: 2020-01-01 | AS190: 119 | AT190: ΔkWh/sq ft | AU190: IL TRM v6 vol2 | AV190: 450 | AW190: 21 | AX190: Area | AY190: IL TRM v6 vol2 | AZ190: 450 | BA190: 1 | BB190: Coincidence Factor (CF) | BC190: IL TRM v6 vol2 | BD190: 450
A191: Business Standard | B191: Interior LED Linear Lamp Replacing 8ft T8 or T12 Lamp | C191: 313.4 | D191: C&I | E191: Lighting | G191: per lamp | H191: 9.5 | I191: PY2 portfolio weighted average | K191: =ROUND((AF191-AB191)/1000*U191*AS191,4) -> 95.5788 | L191: Calculated Value | N191: =(AF191-AB191)/1000*AW191 -> 0.02676492 | O191: 0.68 | P191: PY2 portfolio weighted average | R191: =ROUND(N191*O191,4) -> 0.0182 | S191: Calculated Value | U191: 4128 | V191: PY2 portfolio weighted average | X191: =50000/U191 -> 12.1124031 | Y191: Calculated Value based on HOU and lifetime hours | Z191: 566 | AA191: 8' LED Lamp | AB191: 38.258 | AC191: PY2 portfolio weighted average | AE191: 96", T-8 lamp, Instant Start Ballast, NLO | AF191: 59.5 | AG191: PG&E Appendix B, average of Fluorescent, (1) 96", T-8 lamp, Instant Start Ballast, NLO and F96T12/ES Fluorescent, (1) 96", ES lamp | AI191: =ROUND((AF191-AB191)/1000*U191*AS191,4) | AJ191: =ROUND(N191*O191,4) | AK191: IL TRM v10 Vol2 | AL191: 556561 | AM191: 2023-01-01 | AN191: 2023-12-31 | AS191: 1.09 | AT191: Waste Heat Factor Energy | AU191: PY2 portfolio weighted average | AW191: 1.26 | AX191: Waste Heat Factor_Demand | AY191: PY2 portfolio weighted average
A192: Business Standard | B192: Interior LED Linear Lamp Replacing 8ft T8 or T12 Lamp | C192: 313.5 | D192: C&I | E192: Lighting | G192: per lamp | H192: 13 | I192: IL TRM V11 Vol2 | K192: =ROUND((AF192-AB192)/1000*U192*AS192,4) -> 93.6234 | L192: Calculated Value | N192: =(AF192-AB192)/1000*AW192 -> 0.030392 | O192: 0.6925424893 | P192: Weighted average peak coincident factor from verified participant data from the MEEIA Cycle 3 PY1-3 portfolio with preference on most recent year of evaluated results if sufficient participation occurred | R192: =ROUND(N192*O192,4) -> 0.021 | S192: Calculated Value | U192: 3635.578299 | V192: Weighted average HOU from verified participant data from the MEEIA Cycle 3 PY1-3 portfolio with preference on most recent year of evaluated results if sufficient participation occurred | X192: =50000/U192 -> 13.7529702 | Y192: Calculated Value based on HOU and lifetime hours | Z192: 669 | AA192: 8' LED Lamp | AB192: 36.3 | AC192: Weighted average efficient wattage from verified participant data from the MEEIA Cycle 3 PY1-3 portfolio with preference on most recent year of evaluated results if sufficient participation occurred | AE192: 96", T-8 lamp, Instant Start Ballast, NLO | AF192: 59.5 | AH192: PG&E Appendix B, average of Fluorescent, (1) 96", T-8 lamp, Instant Start Ballast, NLO and F96T12/ES Fluorescent, (1) 96", ES lamp | AI192: =ROUND((AF192-AB192)/1000*U192*AS192,4) | AJ192: =ROUND(N192*O192,4) | AK192: IL TRM V11 Vol2 | AL192: 660665 | AM192: 2024-01-01 | AS192: 1.11 | AT192: Waste Heat Factor Energy | AU192: Weighted average Waste Heat Factor Energy from verified participant data from the MEEIA Cycle 3 PY1-3 portfolio with preference on most recent year of evaluated results if sufficient participation occurred | AW192: 1.31 | AX192: Waste Heat Factor Demand | AY192: Weighted average Waste Heat Factor Demand from verified participant data from the MEEIA Cycle 3 PY1-3 portfolio with preference on most recent year of evaluated results if sufficient participation occurred
A193: Business Standard | B193: VSD Pumps (Hot Water Pump) | C193: 323.1 | D193: C&I | E193: Pumps/Fans | G193: per hp | H193: 1330 | I193: IL TRM V9 vol2 | J193: 280 | K193: =ROUND(AS193*BA193/AW193*BE193,4) -> 1348.8839 | L193: Calculated Value | R193: =ROUND(AS193*BI193/AW193,4) -> 0 | S193: Calculated Value | X193: 15 | Y193: IL TRM V9 vol2 | Z193: 280 | AA193: VSD applied to a motor without a VSD | AC193: IL TRM V9 vol2 | AD193: 280 | AE193: Motor without a VSD | AG193: IL TRM V9 vol2 | AH193: 280 | AI193: =ROUND(AS193*BA193/AW193*BE193,4) | AJ193: =ROUND(AS193*BI193/AW193,4) | AK193: IL TRM V9 vol2 | AL193: 281 | AM193: 2022-01-01 | AS193: 1 | AT193: System Brake Horsepower (BHP = Nominal Motor HP*Motor Load Factor) Where, Motor Load Factor = 65%, if actual value is unknown | AU193: IL TRM V9 vol2 | AV193: 281 | AW193: 0.93 | AX193: EFFi (Motor Efficiency) | AY193: IL TRM V9 vol2 | AZ193: 281 | BA193: 5038 | BB193: Heating Run Hours | BC193: IL TRM v9 vol2 | BD193: 282 | BE193: 0.249 | BF193: Energy Savings Factor (ESF) | BG193: IL TRM v9 vol2 | BH193: 282 | BI193: 0 | BJ193: Demand Savings Factor (DSF) | BK193: IL TRM v9 vol2 | BL193: 283
A194: Business Standard | B194: VSD Fans (Cooling Tower Fan) | C194: 324.1 | D194: C&I | E194: Pumps/Fans | G194: per hp | H194: 1330 | I194: IL TRM V9 vol2 | J194: 280 | K194: =ROUND(AS194*BA194/AW194*BE194,4) -> 1612.3376 | L194: Calculated Value | R194: =ROUND(AS194*BI194/AW194,4) -> 0.4376 | S194: Calculated Value | X194: 15 | Y194: IL TRM V9 vol2 | Z194: 280 | AA194: VSD applied to a motor without a VSD | AC194: IL TRM V9 vol2 | AD194: 280 | AE194: Motor without a VSD | AG194: IL TRM V9 vol2 | AH194: 280 | AI194: =ROUND(AS194*BA194/AW194*BE194,4) | AJ194: =ROUND(AS194*BI194/AW194,4) | AK194: IL TRM V9 vol2 | AL194: 281 | AM194: 2022-01-01 | AS194: 1 | AT194: System Brake Horsepower (BHP = Nominal Motor HP*Motor Load Factor) Where, Motor Load Factor = 65%, if actual value is unknown | AU194: IL TRM V9 vol2 | AV194: 281 | AW194: 0.93 | AX194: EFFi (Motor Efficiency) | AY194: IL TRM V9 vol2 | AZ194: 281 | BA194: 2987 | BB194: Cooling Run Hours | BC194: IL TRM v9 vol2 | BD194: 282 | BE194: 0.502 | BF194: Energy Savings Factor (ESF) | BG194: IL TRM v9 vol2 | BH194: 282 | BI194: 0.407 | BJ194: Demand Savings Factor (DSF) | BK194: IL TRM v9 vol2 | BL194: 283
A195: Business Standard | B195: Door heater controls for cooler (Conductivity-based controls) | C195: 325 | D195: Small C&I | E195: Refrigeration | G195: per unit | H195: 200 | I195: IL TRM v6 vol2 | J195: 439 | K195: =ROUND(AS195*AW195*BA195*BE195*BI195,4) -> 688.7271 | L195: Calculated Value | O195: 0 | P195: IL TRM v6 vol2 | Q195: 439 | R195: =ROUND(0,4) -> 0 | S195: IL TRM v6 vol2 | T195: 440 | X195: 12 | Y195: IL TRM v6 vol2 | Z195: 439 | AA195: Door heater control utilizing humidity or conductivity control | AC195: IL TRM v6 vol2 | AD195: 439 | AE195: Standard heated door with no controls installed | AG195: IL TRM v6 vol2 | AH195: 439 | AI195: =ROUND(AS195*AW195*BA195*BE195*BI195,4) | AJ195: =ROUND(0,4) | AK195: IL TRM v6 vol2 | AL195: 440 | AM195: 2020-01-01 | AS195: 0.092 | AT195: kWbase | AU195: IL TRM v6 vol2 | AV195: 440 | AW195: 1 | AX195: Numdoors | AY195: IL TRM v6 vol2 | AZ195: 440 | BA195: 0.7 | BB195: Energy Savings Factor (ESF) | BC195: IL TRM v6 vol2 | BD195: 440 | BE195: 1.22 | BF195: Bonus Factor (BF) | BG195: IL TRM v6 vol2 | BH195: 440 | BI195: 8766 | BJ195: Annual hours of operation | BK195: IL TRM v6 vol2 | BL195: 440
A196: Business Standard | B196: Door heater controls for freezer (Conductivity-based controls) | C196: 326 | D196: Small C&I | E196: Refrigeration | G196: per unit | H196: 200 | I196: IL TRM v6 vol2 | J196: 439 | K196: =ROUND(AS196*AW196*BA196*BE196*BI196,4) -> 1627.3202 | L196: Calculated Value | O196: 0 | P196: IL TRM v6 vol2 | Q196: 439 | R196: =ROUND(0,4) -> 0 | S196: IL TRM v6 vol2 | T196: 440 | X196: 12 | Y196: IL TRM v6 vol2 | Z196: 439 | AA196: Door heater control utilizing humidity or conductivity control | AC196: IL TRM v6 vol2 | AD196: 439 | AE196: Standard heated door with no controls installed | AG196: IL TRM v6 vol2 | AH196: 439 | AI196: =ROUND(AS196*AW196*BA196*BE196*BI196,4) | AJ196: =ROUND(0,4) | AK196: IL TRM v6 vol2 | AL196: 440 | AM196: 2020-01-01 | AS196: 0.195 | AT196: kWbase | AU196: IL TRM v6 vol2 | AV196: 440 | AW196: 1 | AX196: Numdoors | AY196: IL TRM v6 vol2 | AZ196: 440 | BA196: 0.7 | BB196: Energy Savings Factor (ESF) | BC196: IL TRM v6 vol2 | BD196: 440 | BE196: 1.36 | BF196: Bonus Factor (BF) | BG196: IL TRM v6 vol2 | BH196: 440 | BI196: 8766 | BJ196: Annual hours of operation | BK196: IL TRM v6 vol2 | BL196: 440
A197: Business Standard | B197: Low Flow Faucet Aerator - Bathroom | C197: 327 | D197: Small C&I | E197: Hot Water | F197: Direct Install | G197: per unit | H197: 8 | I197: IL TRM v6 vol2 | J197: 90 | K197: =ROUND(AS197*(AW197-BA197)/AW197*BE197*BI197*BM197,4) -> 61.1263 | L197: Calculated Value | N197: =ROUND(K197/BQ197,4) -> 2.5469 | O197: 0.0064 | P197: IL TRM v6 vol2 | Q197: 94 | R197: =ROUND(K197/BQ197*BU197,4) -> 0.0163 | S197: Calculated Value | X197: 9 | Y197: IL TRM v6 vol2 | Z197: 90 | AA197: Energy Efficient Faucet Aerator rated at 1.5 GPM or less | AC197: IL TRM v6 vol2 | AD197: 90 | AE197: Standard Faucet Aerator rated at 2.25 GPM or more | AG197: IL TRM v6 vol2 | AH197: 90 | AI197: =ROUND(AS197*(AW197-BA197)/AW197*BE197*BI197*BM197,4) | AJ197: =ROUND(K197/BQ197*BU197,4) | AK197: IL TRM v6 vol2 | AL197: 91,93 | AM197: 2020-01-01 | AS197: 1 | AT197: %Electric DHW | AU197: IL TRM v6 vol2 | AV197: 91 | AW197: 1.39 | AX197: GPM_base | AY197: IL TRM v6 vol2 | AZ197: 91 | BA197: 0.94 | BB197: GPM_low | BC197: IL TRM v6 vol2 | BD197: 91 | BE197: 2500 | BF197: Usage | BG197: IL TRM v6 vol2 | BH197: 92 | BI197: 0.0795 | BJ197: EPG_electric | BK197: IL TRM v6 vol2 | BL197: 92 | BM197: 0.95 | BN197: In Service Rate (ISR) | BO197: IL TRM v6 vol2 | BP197: 93 | BQ197: 24 | BR197: Annual Recovery Hours | BS197: IL TRM v6 vol2 | BT197: 93 | BU197: 0.0064 | BV197: Coincidence Factor | BW197: IL TRM v6 vol2 | BX197: 94
A198: Business Standard | B198: Strip curtain for walk-in freezers - Convenience Store (Old strip curtain) | C198: 328 | D198: Small C&I | E198: Refrigeration | G198: sq.ft of door opening | H198: 10.22 | I198: IL TRM v6 vol2 | J198: 450 | K198: =ROUND(8,4) -> 8 | L198: IL TRM v6 vol2 | M198: 451 | O198: 1 | P198: IL TRM v6 vol2 | Q198: 452 | R198: =ROUND(AS198/8766*O198,4) -> 0.0009 | S198: Calculated Value | X198: 4 | Y198: IL TRM v6 vol2 | Z198: 450 | AA198: Strip curtain at least 0.06 inches thick | AC198: IL TRM v6 vol2 | AD198: 450 | AE198: Old, ineffective strip curtain | AG198: IL TRM v6 vol2 | AH198: 450 | AI198: =ROUND(8,4) | AJ198: =ROUND(AS198/8766*O198,4) | AK198: IL TRM v6 vol2 | AL198: 451452 | AM198: 2020-01-01 | AS198: 8 | AT198: ΔkWh/sq ft | AU198: IL TRM v6 vol2 | AV198: 450 | AW198: 21 | AX198: Area | AY198: IL TRM v6 vol2 | AZ198: 450 | BA198: 1 | BB198: Coincidence Factor (CF) | BC198: IL TRM v6 vol2 | BD198: 450
A199: Business Standard | B199: Strip curtain for walk-in freezers - Restaurant (Old strip curtain) | C199: 329 | D199: Small C&I | E199: Refrigeration | G199: sq.ft of door opening | H199: 10.22 | I199: IL TRM v6 vol2 | J199: 450 | K199: =ROUND(34,4) -> 34 | L199: IL TRM v6 vol2 | M199: 451 | O199: 1 | P199: IL TRM v6 vol2 | Q199: 452 | R199: =ROUND(AS199/8766*O199,4) -> 0.0039 | S199: Calculated Value | X199: 4 | Y199: IL TRM v6 vol2 | Z199: 450 | AA199: Strip curtain at least 0.06 inches thick | AC199: IL TRM v6 vol2 | AD199: 450 | AE199: Old, ineffective strip curtain | AG199: IL TRM v6 vol2 | AH199: 450 | AI199: =ROUND(34,4) | AJ199: =ROUND(AS199/8766*O199,4) | AK199: IL TRM v6 vol2 | AL199: 451452 | AM199: 2020-01-01 | AS199: 34 | AT199: ΔkWh/sq ft | AU199: IL TRM v6 vol2 | AV199: 450 | AW199: 21 | AX199: Area | AY199: IL TRM v6 vol2 | AZ199: 450 | BA199: 1 | BB199: Coincidence Factor (CF) | BC199: IL TRM v6 vol2 | BD199: 450
A200: Business Standard | B200: Strip curtain for walk-in coolers - Convenience Store (Old strip curtain) | C200: 330 | D200: Small C&I | E200: Refrigeration | G200: sq.ft of door opening | H200: 10.22 | I200: IL TRM v6 vol2 | J200: 450 | K200: =ROUND(5,4) -> 5 | L200: IL TRM v6 vol2 | M200: 451 | O200: 1 | P200: IL TRM v6 vol2 | Q200: 452 | R200: =ROUND(AS200/8766*O200,4) -> 0.0006 | S200: Calculated Value | X200: 4 | Y200: IL TRM v6 vol2 | Z200: 450 | AA200: Strip curtain at least 0.06 inches thick | AC200: IL TRM v6 vol2 | AD200: 450 | AE200: Old, ineffective strip curtain | AG200: IL TRM v6 vol2 | AH200: 450 | AI200: =ROUND(5,4) | AJ200: =ROUND(AS200/8766*O200,4) | AK200: IL TRM v6 vol2 | AL200: 451452 | AM200: 2020-01-01 | AS200: 5 | AT200: ΔkWh/sq ft | AU200: IL TRM v6 vol2 | AV200: 450 | AW200: 21 | AX200: Area | AY200: IL TRM v6 vol2 | AZ200: 450 | BA200: 1 | BB200: Coincidence Factor (CF) | BC200: IL TRM v6 vol2 | BD200: 450
... 750 more rows
